NUMERO_MANDATO;RIGA_MANDATO;QUIET;IMPORTO_RIGA;IMPORTO_MANDATO;BENEFICIARIO;CIG;TITOLO_PAGAMENTO;DATA_MANDATO;CAPITOLO;ARTICOLO;NUMERO_IMPEGNO;TITOLO;DESCR_TITOLO;LIVELLO_II;DESCR_LIVELLO_II;LIVELLO_III;DESCR_LIVELLO_III;LIVELLO_IV;DESCR_LIVELLO_IV;LIVELLO_V;DESCR_LIVELLO_V;DATA_PAG_EFF;
848;1;0;"1,00";"1,00";TESORIERE COMUNALE BANCO SARDEGNA SASSARI; ;COMMISSIONI;03-07-2017;152;0;0;1;Spese correnti;3;Acquisto di beni e servizi;2;Acquisto di servizi;17;Servizi finanziari;999;Spese per servizi finanziari n.a.c.;03-07-2017;
849;1;0;"1,00";"1,00";TESORIERE COMUNALE BANCO SARDEGNA SASSARI; ;COMMISSIONI;03-07-2017;152;0;0;1;Spese correnti;3;Acquisto di beni e servizi;2;Acquisto di servizi;17;Servizi finanziari;999;Spese per servizi finanziari n.a.c.;03-07-2017;
850;1;0;"27,62";"1.909,40";MC LINK SPA;Z441C42009;Fatt.n. 610001407 del 14/06/2017 FATTURA DI VENDITA SERVIZI;04-07-2017;118;3;39;1;Spese correnti;3;Acquisto di beni e servizi;2;Acquisto di servizi;5;Utenze e canoni;1;Telefonia fissa;04-07-2017;
850;2;0;"48,80";"1.909,40";MC LINK SPA;Z441C42009;Fatt.n. 610001558 del 26/06/2017 FATTURA DI VENDITA SERVIZI;04-07-2017;118;3;39;1;Spese correnti;3;Acquisto di beni e servizi;2;Acquisto di servizi;5;Utenze e canoni;1;Telefonia fissa;04-07-2017;
850;3;0;"154,26";"1.909,40";MC LINK SPA;Z441C42009;Fatt.n. 610001563 del 26/06/2017 FATTURA DI VENDITA SERVIZI;04-07-2017;118;3;39;1;Spese correnti;3;Acquisto di beni e servizi;2;Acquisto di servizi;5;Utenze e canoni;1;Telefonia fissa;04-07-2017;
850;4;0;"156,16";"1.909,40";MC LINK SPA;Z441C42009;Fatt.n. 610001562 del 26/06/2017 FATTURA DI VENDITA SERVIZI;04-07-2017;118;3;39;1;Spese correnti;3;Acquisto di beni e servizi;2;Acquisto di servizi;5;Utenze e canoni;1;Telefonia fissa;04-07-2017;
850;5;0;"204,96";"1.909,40";MC LINK SPA;Z441C42009;Fatt.n. 610001561 del 26/06/2017 FATTURA DI VENDITA SERVIZI;04-07-2017;118;3;39;1;Spese correnti;3;Acquisto di beni e servizi;2;Acquisto di servizi;5;Utenze e canoni;1;Telefonia fissa;04-07-2017;
850;6;0;"536,80";"1.909,40";MC LINK SPA;Z441C42009;Fatt.n. 610001559 del 26/06/2017 FATTURA DI VENDITA SERVIZI;04-07-2017;118;3;39;1;Spese correnti;3;Acquisto di beni e servizi;2;Acquisto di servizi;5;Utenze e canoni;1;Telefonia fissa;04-07-2017;
850;7;0;"780,80";"1.909,40";MC LINK SPA;Z441C42009;Fatt.n. 610001560 del 26/06/2017 FATTURA DI VENDITA SERVIZI;04-07-2017;118;3;39;1;Spese correnti;3;Acquisto di beni e servizi;2;Acquisto di servizi;5;Utenze e canoni;1;Telefonia fissa;04-07-2017;
851;1;0;"792,22";"792,22";VODAFONE OMNITEL N.V.;ZDE1DD8EAD;Fatt.n. AH11212981 del 28/06/2017 scissione pagamenti;04-07-2017;618;3;56;1;Spese correnti;3;Acquisto di beni e servizi;2;Acquisto di servizi;5;Utenze e canoni;1;Telefonia fissa;04-07-2017;
852;1;0;"394,24";"394,24";L'ARCOBALENO di Muggianu Rosanna;ZCC1EAEC90;Fatt.n. 313B del 28/06/2017;04-07-2017;714;0;112;1;Spese correnti;3;Acquisto di beni e servizi;1;Acquisto di beni;1;"Giornali, riviste e pubblicazioni";2;Pubblicazioni;04-07-2017;
853;1;0;"280,60";"280,60";CHIRIGONI ALESSANDRO;Z3B1E2B889;SALDO Fatt.n. 04_PA_17  del 19/05/2017 Fattura Vendita Comune di Tula;04-07-2017;82;1;73;1;Spese correnti;3;Acquisto di beni e servizi;2;Acquisto di servizi;9;Manutenzione ordinaria e riparazioni;11;Manutenzione ordinaria e riparazioni di altri beni materiali;04-07-2017;
854;1;0;"244,00";"244,00";Artemedia S.r.l.;ZCC1E7EFCC;Fatt.n. 310-PA2017 del 30/06/2017;04-07-2017;1266;0;100;1;Spese correnti;3;Acquisto di beni e servizi;1;Acquisto di beni;2;Altri beni di consumo;1;"Carta, cancelleria e stampati";04-07-2017;
855;1;0;"2.044,29";"2.044,29";COOP. SPES a r.l.;ZE71CACBD3;Fatt.n. 30 PA del 30/06/2017 Fattura Cliente;04-07-2017;118;5;23;1;Spese correnti;3;Acquisto di beni e servizi;2;Acquisto di servizi;13;Servizi ausiliari per il funzionamento dell'ente;2;Servizi di pulizia e lavanderia;04-07-2017;
856;1;0;"11.388,01";"11.388,01";CONSAI SRL;Z761F231D8;CONTRATTI POLIZZE ASSICURATIVE  - LIQ. N. 260;04-07-2017;100;0;131;1;Spese correnti;10;Altre spese correnti;4;Premi di assicurazione;1;Premi di assicurazione contro i danni;3;Premi di assicurazione per responsabilità civile verso terzi;04-07-2017;
857;1;0;"3.101,59";"3.101,59";CONSAI SRL;Z761F231D8;CONTRATTI POLIZZE ASSICURATIVE  -DET. N. 260;04-07-2017;1302;7;132;1;Spese correnti;3;Acquisto di beni e servizi;2;Acquisto di servizi;11;Prestazioni professionali e specialistiche;999;Altre prestazioni professionali e specialistiche n.a.c.;04-07-2017;
858;1;0;"200,00";"200,00";OMESSO NOMINATIVO NEL RISPETTO DELLA NORMATIVA SULLA PROTEZIONE DATI PERSONALI; ;SERVIZI ALLA PERSONA. INSERIMENTO SOFFERENTI MENTALI IN STRUTTURE RESIDENZIALI.IMPEGNO DI SPESA ANNO 2017.;04-07-2017;1412;0;18;1;Spese correnti;3;Acquisto di beni e servizi;2;Acquisto di servizi;15;Contratti di servizio pubblico;8;Contratti di servizio di assistenza sociale residenziale e semiresidenziale;04-07-2017;
859;1;0;"426,14";"426,14";OMESSO NOMINATIVO NEL RISPETTO DELLA NORMATIVA SULLA PROTEZIONE DATI PERSONALI; ;DELIBERA REGIONALE N. 70/15/2016 -FONDO REGIONALE PER LA NONAUTOSUFFICIENZA.PROROGA PIANI PERSONALIZZATI LEGGE N. 162/1998 ANNUALITA'2016/GESTIONE 2017.IMPEGNO DI SPESA .;04-07-2017;1420;2;27;1;Spese correnti;4;Trasferimenti correnti;2;Trasferimenti correnti a Famiglie;2;Interventi assistenziali;999;Altri assegni e sussidi assistenziali;04-07-2017;
860;1;0;"137,46";"137,46";OMESSO NOMINATIVO NEL RISPETTO DELLA NORMATIVA SULLA PROTEZIONE DATI PERSONALI; ;DELIBERA REGIONALE N. 70/15/2016 -FONDO REGIONALE PER LA NONAUTOSUFFICIENZA.PROROGA PIANI PERSONALIZZATI LEGGE N. 162/1998 ANNUALITA'2016/GESTIONE 2017.IMPEGNO DI SPESA .;04-07-2017;1420;2;27;1;Spese correnti;4;Trasferimenti correnti;2;Trasferimenti correnti a Famiglie;2;Interventi assistenziali;999;Altri assegni e sussidi assistenziali;04-07-2017;
861;1;0;"187,50";"187,50";OMESSO NOMINATIVO NEL RISPETTO DELLA NORMATIVA SULLA PROTEZIONE DATI PERSONALI; ;DELIBERA REGIONALE N. 70/15/2016 -FONDO REGIONALE PER LA NONAUTOSUFFICIENZA.PROROGA PIANI PERSONALIZZATI LEGGE N. 162/1998 ANNUALITA'2016/GESTIONE 2017.IMPEGNO DI SPESA .;04-07-2017;1420;2;27;1;Spese correnti;4;Trasferimenti correnti;2;Trasferimenti correnti a Famiglie;2;Interventi assistenziali;999;Altri assegni e sussidi assistenziali;04-07-2017;
862;1;0;"194,56";"194,56";OMESSO NOMINATIVO NEL RISPETTO DELLA NORMATIVA SULLA PROTEZIONE DATI PERSONALI; ;DELIBERA REGIONALE N. 70/15/2016 -FONDO REGIONALE PER LA NONAUTOSUFFICIENZA.PROROGA PIANI PERSONALIZZATI LEGGE N. 162/1998 ANNUALITA'2016/GESTIONE 2017.IMPEGNO DI SPESA .;04-07-2017;1420;2;27;1;Spese correnti;4;Trasferimenti correnti;2;Trasferimenti correnti a Famiglie;2;Interventi assistenziali;999;Altri assegni e sussidi assistenziali;04-07-2017;
863;1;0;"89,09";"89,09";OMESSO NOMINATIVO NEL RISPETTO DELLA NORMATIVA SULLA PROTEZIONE DATI PERSONALI; ;DELIBERA REGIONALE N. 70/15/2016 -FONDO REGIONALE PER LA NONAUTOSUFFICIENZA.PROROGA PIANI PERSONALIZZATI LEGGE N. 162/1998 ANNUALITA'2016/GESTIONE 2017.IMPEGNO DI SPESA .;04-07-2017;1420;2;27;1;Spese correnti;4;Trasferimenti correnti;2;Trasferimenti correnti a Famiglie;2;Interventi assistenziali;999;Altri assegni e sussidi assistenziali;04-07-2017;
864;1;0;"193,85";"193,85";OMESSO NOMINATIVO NEL RISPETTO DELLA NORMATIVA SULLA PROTEZIONE DATI PERSONALI; ;DELIBERA REGIONALE N. 70/15/2016 -FONDO REGIONALE PER LA NONAUTOSUFFICIENZA.PROROGA PIANI PERSONALIZZATI LEGGE N. 162/1998 ANNUALITA'2016/GESTIONE 2017.IMPEGNO DI SPESA .;04-07-2017;1420;2;27;1;Spese correnti;4;Trasferimenti correnti;2;Trasferimenti correnti a Famiglie;2;Interventi assistenziali;999;Altri assegni e sussidi assistenziali;04-07-2017;
865;1;0;"368,18";"368,18";OMESSO NOMINATIVO NEL RISPETTO DELLA NORMATIVA SULLA PROTEZIONE DATI PERSONALI; ;DELIBERA REGIONALE N. 70/15/2016 -FONDO REGIONALE PER LA NONAUTOSUFFICIENZA.PROROGA PIANI PERSONALIZZATI LEGGE N. 162/1998 ANNUALITA'2016/GESTIONE 2017.IMPEGNO DI SPESA .;04-07-2017;1420;2;27;1;Spese correnti;4;Trasferimenti correnti;2;Trasferimenti correnti a Famiglie;2;Interventi assistenziali;999;Altri assegni e sussidi assistenziali;04-07-2017;
866;1;0;"987,35";"987,35";OMESSO NOMINATIVO NEL RISPETTO DELLA NORMATIVA SULLA PROTEZIONE DATI PERSONALI; ;DELIBERA REGIONALE N. 70/15/2016 -FONDO REGIONALE PER LA NONAUTOSUFFICIENZA.PROROGA PIANI PERSONALIZZATI LEGGE N. 162/1998 ANNUALITA'2016/GESTIONE 2017.IMPEGNO DI SPESA .;04-07-2017;1420;2;27;1;Spese correnti;4;Trasferimenti correnti;2;Trasferimenti correnti a Famiglie;2;Interventi assistenziali;999;Altri assegni e sussidi assistenziali;04-07-2017;
867;1;0;"243,10";"243,10";OMESSO NOMINATIVO NEL RISPETTO DELLA NORMATIVA SULLA PROTEZIONE DATI PERSONALI; ;DELIBERA REGIONALE N. 70/15/2016 -FONDO REGIONALE PER LA NONAUTOSUFFICIENZA.PROROGA PIANI PERSONALIZZATI LEGGE N. 162/1998 ANNUALITA'2016/GESTIONE 2017.IMPEGNO DI SPESA .;04-07-2017;1420;2;27;1;Spese correnti;4;Trasferimenti correnti;2;Trasferimenti correnti a Famiglie;2;Interventi assistenziali;999;Altri assegni e sussidi assistenziali;04-07-2017;
868;1;0;"137,02";"137,02";OMESSO NOMINATIVO NEL RISPETTO DELLA NORMATIVA SULLA PROTEZIONE DATI PERSONALI; ;DELIBERA REGIONALE N. 70/15/2016 -FONDO REGIONALE PER LA NONAUTOSUFFICIENZA.PROROGA PIANI PERSONALIZZATI LEGGE N. 162/1998 ANNUALITA'2016/GESTIONE 2017.IMPEGNO DI SPESA .;04-07-2017;1420;2;27;1;Spese correnti;4;Trasferimenti correnti;2;Trasferimenti correnti a Famiglie;2;Interventi assistenziali;999;Altri assegni e sussidi assistenziali;04-07-2017;
869;1;0;"178,36";"178,36";OMESSO NOMINATIVO NEL RISPETTO DELLA NORMATIVA SULLA PROTEZIONE DATI PERSONALI; ;DELIBERA REGIONALE N. 70/15/2016 -FONDO REGIONALE PER LA NONAUTOSUFFICIENZA.PROROGA PIANI PERSONALIZZATI LEGGE N. 162/1998 ANNUALITA'2016/GESTIONE 2017.IMPEGNO DI SPESA .;04-07-2017;1420;2;27;1;Spese correnti;4;Trasferimenti correnti;2;Trasferimenti correnti a Famiglie;2;Interventi assistenziali;999;Altri assegni e sussidi assistenziali;04-07-2017;
871;1;0;"457,50";"457,50";OTIS SERVIZI SRL;Z2B1CAB78C;Fatt.n. 3FO17061488 del 23/06/2017 Competenze Servizi di Manutenzione;05-07-2017;255;0;25;1;Spese correnti;3;Acquisto di beni e servizi;2;Acquisto di servizi;9;Manutenzione ordinaria e riparazioni;8;Manutenzione ordinaria e riparazioni di beni immobili;05-07-2017;
872;1;0;"85,20";"85,20";MAGGIOLI SPA;ZD51EE6D2D;Fatt.n. 0005825307 del 29/06/2017 FORNITURA DI LIBRI;05-07-2017;82;0;121;1;Spese correnti;3;Acquisto di beni e servizi;1;Acquisto di beni;2;Altri beni di consumo;14;Stampati specialistici;05-07-2017;
873;1;0;"190,73";"190,73";OMESSO NOMINATIVO NEL RISPETTO DELLA NORMATIVA SULLA PROTEZIONE DATI PERSONALI; ;DELIBERA REGIONALE N. 70/15/2016 -FONDO REGIONALE PER LA NONAUTOSUFFICIENZA.PROROGA PIANI PERSONALIZZATI LEGGE N. 162/1998 ANNUALITA'2016/GESTIONE 2017.IMPEGNO DI SPESA .;05-07-2017;1420;2;27;1;Spese correnti;4;Trasferimenti correnti;2;Trasferimenti correnti a Famiglie;2;Interventi assistenziali;999;Altri assegni e sussidi assistenziali;05-07-2017;
874;1;0;"178,34";"178,34";OMESSO NOMINATIVO NEL RISPETTO DELLA NORMATIVA SULLA PROTEZIONE DATI PERSONALI; ;DELIBERA REGIONALE N. 70/15/2016 -FONDO REGIONALE PER LA NONAUTOSUFFICIENZA.PROROGA PIANI PERSONALIZZATI LEGGE N. 162/1998 ANNUALITA'2016/GESTIONE 2017.IMPEGNO DI SPESA .;05-07-2017;1420;2;27;1;Spese correnti;4;Trasferimenti correnti;2;Trasferimenti correnti a Famiglie;2;Interventi assistenziali;999;Altri assegni e sussidi assistenziali;05-07-2017;
875;1;0;"632,06";"632,06";OMESSO NOMINATIVO NEL RISPETTO DELLA NORMATIVA SULLA PROTEZIONE DATI PERSONALI; ;DELIBERA REGIONALE N. 70/15/2016 -FONDO REGIONALE PER LA NONAUTOSUFFICIENZA.PROROGA PIANI PERSONALIZZATI LEGGE N. 162/1998 ANNUALITA'2016/GESTIONE 2017.IMPEGNO DI SPESA .;05-07-2017;1420;2;27;1;Spese correnti;4;Trasferimenti correnti;2;Trasferimenti correnti a Famiglie;2;Interventi assistenziali;999;Altri assegni e sussidi assistenziali;05-07-2017;
876;1;0;"1.354,93";"1.354,93";OMESSO NOMINATIVO NEL RISPETTO DELLA NORMATIVA SULLA PROTEZIONE DATI PERSONALI; ;DELIBERA REGIONALE N. 70/15/2016 -FONDO REGIONALE PER LA NONAUTOSUFFICIENZA.PROROGA PIANI PERSONALIZZATI LEGGE N. 162/1998 ANNUALITA'2016/GESTIONE 2017.IMPEGNO DI SPESA .;05-07-2017;1420;2;27;1;Spese correnti;4;Trasferimenti correnti;2;Trasferimenti correnti a Famiglie;2;Interventi assistenziali;999;Altri assegni e sussidi assistenziali;05-07-2017;
877;1;0;"105,25";"105,25";FIORI MARIO;Z4B1E69347;Fatt.n. FATTPA 7_17 del 30/06/2017;06-07-2017;1261;0;98;1;Spese correnti;3;Acquisto di beni e servizi;2;Acquisto di servizi;99;Altri servizi;999;Altri servizi diversi n.a.c.;06-07-2017;
878;1;0;"133,00";"133,00";FIORI MARIO;z611ce4d1d;Fatt.n. FATTPA 7_17 del 30/06/2017;06-07-2017;1300;8;30;1;Spese correnti;3;Acquisto di beni e servizi;1;Acquisto di beni;2;Altri beni di consumo;2;"Carburanti, combustibili e lubrificanti";06-07-2017;
879;1;0;"1.144,07";"1.144,07";SIAE;ZAC1F21F10;Fatt.n. 1617019071 del 30/06/2017;07-07-2017;746;0;137;1;Spese correnti;3;Acquisto di beni e servizi;2;Acquisto di servizi;2;"Organizzazione eventi, pubblicita` e servizi per trasferta";5;Organizzazione e partecipazione a manifestazioni e convegni;07-07-2017;
880;1;0;"2.501,00";"2.501,00";HALLEY SARDEGNA SRL;ZD71D0213A;Fatt.n. 0000645 del 30/06/2017;07-07-2017;82;2;45;1;Spese correnti;3;Acquisto di beni e servizi;2;Acquisto di servizi;19;Servizi informatici e di telecomunicazioni;1;Gestione e manutenzione applicazioni;07-07-2017;
881;1;0;"1.333,00";"1.333,00";Cooperativa Sviluppo Servizi Italia;ZCD1CE6D2A;Fatt.n. 120 del 30/06/2017;07-07-2017;1416;0;12;1;Spese correnti;3;Acquisto di beni e servizi;2;Acquisto di servizi;11;Prestazioni professionali e specialistiche;999;Altre prestazioni professionali e specialistiche n.a.c.;07-07-2017;
882;1;0;"600,00";"600,00";CANOPOLI GIOVANNINO; ;"Programma di assegnazione contributi alle Associazioni locali e Comitati per l'organizzazione delle manifestazioni di carattere sociale, culturale, religioso e sportivo - Anno 2017";07-07-2017;760;0;147;1;Spese correnti;4;Trasferimenti correnti;4;Trasferimenti correnti a Istituzioni Sociali Private;1;Trasferimenti correnti a Istituzioni Sociali Private;1;Trasferimenti correnti a Istituzioni Sociali Private;07-07-2017;
884;1;0;"1.400,00";"1.400,00";COMITATO CARNEVALE TULESE; ;"Programma di assegnazione contributi alle Associazioni locali e Comitati per l'organizzazione delle manifestazioni di carattere sociale, culturale, religioso e sportivo - Anno 2017";07-07-2017;760;0;147;1;Spese correnti;4;Trasferimenti correnti;4;Trasferimenti correnti a Istituzioni Sociali Private;1;Trasferimenti correnti a Istituzioni Sociali Private;1;Trasferimenti correnti a Istituzioni Sociali Private;07-07-2017;
885;1;0;"401,16";"401,16";OMESSO NOMINATIVO NEL RISPETTO DELLA NORMATIVA SULLA PROTEZIONE DATI PERSONALI; ;DELIBERA REGIONALE N. 70/15/2016 -FONDO REGIONALE PER LA NONAUTOSUFFICIENZA.PROROGA PIANI PERSONALIZZATI LEGGE N. 162/1998 ANNUALITA'2016/GESTIONE 2017.IMPEGNO DI SPESA .;07-07-2017;1420;2;27;1;Spese correnti;4;Trasferimenti correnti;2;Trasferimenti correnti a Famiglie;2;Interventi assistenziali;999;Altri assegni e sussidi assistenziali;07-07-2017;
886;1;0;"579,64";"579,64";OMESSO NOMINATIVO NEL RISPETTO DELLA NORMATIVA SULLA PROTEZIONE DATI PERSONALI; ;DELIBERA REGIONALE N. 70/15/2016 -FONDO REGIONALE PER LA NONAUTOSUFFICIENZA.PROROGA PIANI PERSONALIZZATI LEGGE N. 162/1998 ANNUALITA'2016/GESTIONE 2017.IMPEGNO DI SPESA .;07-07-2017;1420;2;27;1;Spese correnti;4;Trasferimenti correnti;2;Trasferimenti correnti a Famiglie;2;Interventi assistenziali;999;Altri assegni e sussidi assistenziali;07-07-2017;
887;1;0;"93,72";"93,72";OMESSO NOMINATIVO NEL RISPETTO DELLA NORMATIVA SULLA PROTEZIONE DATI PERSONALI; ;DELIBERA REGIONALE N. 70/15/2016 -FONDO REGIONALE PER LA NONAUTOSUFFICIENZA.PROROGA PIANI PERSONALIZZATI LEGGE N. 162/1998 ANNUALITA'2016/GESTIONE 2017.IMPEGNO DI SPESA .;07-07-2017;1420;2;27;1;Spese correnti;4;Trasferimenti correnti;2;Trasferimenti correnti a Famiglie;2;Interventi assistenziali;999;Altri assegni e sussidi assistenziali;07-07-2017;
888;1;0;"188,90";"188,90";OMESSO NOMINATIVO NEL RISPETTO DELLA NORMATIVA SULLA PROTEZIONE DATI PERSONALI; ;DELIBERA REGIONALE N. 70/15/2016 -FONDO REGIONALE PER LA NONAUTOSUFFICIENZA.PROROGA PIANI PERSONALIZZATI LEGGE N. 162/1998 ANNUALITA'2016/GESTIONE 2017.IMPEGNO DI SPESA .;07-07-2017;1420;2;27;1;Spese correnti;4;Trasferimenti correnti;2;Trasferimenti correnti a Famiglie;2;Interventi assistenziali;999;Altri assegni e sussidi assistenziali;07-07-2017;
889;1;0;"90,35";"90,35";OMESSO NOMINATIVO NEL RISPETTO DELLA NORMATIVA SULLA PROTEZIONE DATI PERSONALI; ;DELIBERA REGIONALE N. 70/15/2016 -FONDO REGIONALE PER LA NONAUTOSUFFICIENZA.PROROGA PIANI PERSONALIZZATI LEGGE N. 162/1998 ANNUALITA'2016/GESTIONE 2017.IMPEGNO DI SPESA .;07-07-2017;1420;2;27;1;Spese correnti;4;Trasferimenti correnti;2;Trasferimenti correnti a Famiglie;2;Interventi assistenziali;999;Altri assegni e sussidi assistenziali;07-07-2017;
890;1;0;"3.631,78";"3.631,78";PUDDU PALMIRO;ZD71C6B73C;Fatt.n. 09/PA/2017 del 30/06/2017 SERVIZIO;07-07-2017;1302;0;22;1;Spese correnti;3;Acquisto di beni e servizi;2;Acquisto di servizi;13;Servizi ausiliari per il funzionamento dell'ente;999;Altri servizi ausiliari n.a.c.;07-07-2017;
891;1;0;"42,35";"1.100,88";MARRAS GIORGIA;X1D17D5749;Fatt.n. 5 17 del 28/06/2017 Ft ex art.6 c.5 COMUNE DI TULA;10-07-2017;2098;0;19;2;Spese in conto capitale;2;Investimenti fissi lordi e acquisto di terreni;3;Beni immateriali;5;Incarichi professionali per la realizzazione di investimenti;1;Incarichi professionali per la realizzazione di investimenti;10-07-2017;
891;2;0;"1.058,53";"1.100,88";MARRAS GIORGIA;X1D17D5749;Fatt.n. 5 17 del 28/06/2017 Ft ex art.6 c.5 COMUNE DI TULA;10-07-2017;2098;0;19;2;Spese in conto capitale;2;Investimenti fissi lordi e acquisto di terreni;3;Beni immateriali;5;Incarichi professionali per la realizzazione di investimenti;1;Incarichi professionali per la realizzazione di investimenti;10-07-2017;
892;1;0;"267,67";"267,67";OMESSO NOMINATIVO NEL RISPETTO DELLA NORMATIVA SULLA PROTEZIONE DATI PERSONALI; ;DELIBERA REGIONALE N. 70/15/2016 -FONDO REGIONALE PER LA NONAUTOSUFFICIENZA.PROROGA PIANI PERSONALIZZATI LEGGE N. 162/1998 ANNUALITA'2016/GESTIONE 2017.IMPEGNO DI SPESA .;11-07-2017;1420;2;27;1;Spese correnti;4;Trasferimenti correnti;2;Trasferimenti correnti a Famiglie;2;Interventi assistenziali;999;Altri assegni e sussidi assistenziali;11-07-2017;
893;1;0;"331,79";"331,79";OMESSO NOMINATIVO NEL RISPETTO DELLA NORMATIVA SULLA PROTEZIONE DATI PERSONALI; ;DELIBERA REGIONALE N. 70/15/2016 -FONDO REGIONALE PER LA NONAUTOSUFFICIENZA.PROROGA PIANI PERSONALIZZATI LEGGE N. 162/1998 ANNUALITA'2016/GESTIONE 2017.IMPEGNO DI SPESA .;11-07-2017;1420;2;27;1;Spese correnti;4;Trasferimenti correnti;2;Trasferimenti correnti a Famiglie;2;Interventi assistenziali;999;Altri assegni e sussidi assistenziali;11-07-2017;
894;1;0;"207,26";"207,26";OMESSO NOMINATIVO NEL RISPETTO DELLA NORMATIVA SULLA PROTEZIONE DATI PERSONALI; ;DELIBERA REGIONALE N. 70/15/2016 -FONDO REGIONALE PER LA NONAUTOSUFFICIENZA.PROROGA PIANI PERSONALIZZATI LEGGE N. 162/1998 ANNUALITA'2016/GESTIONE 2017.IMPEGNO DI SPESA .;11-07-2017;1420;2;27;1;Spese correnti;4;Trasferimenti correnti;2;Trasferimenti correnti a Famiglie;2;Interventi assistenziali;999;Altri assegni e sussidi assistenziali;11-07-2017;
895;1;0;"604,00";"604,00";OMESSO NOMINATIVO NEL RISPETTO DELLA NORMATIVA SULLA PROTEZIONE DATI PERSONALI; ;L.R. 11/185-PROVVIDENZE A FAVORE DI NEFROPATICI-PRESA IN CARICO ANNO 2017 E IMPEGNO DI SPESA.;11-07-2017;1438;0;33;1;Spese correnti;4;Trasferimenti correnti;2;Trasferimenti correnti a Famiglie;2;Interventi assistenziali;999;Altri assegni e sussidi assistenziali;11-07-2017;
896;1;0;"604,00";"604,00";OMESSO NOMINATIVO NEL RISPETTO DELLA NORMATIVA SULLA PROTEZIONE DATI PERSONALI; ;L.R. 11/185-PROVVIDENZE A FAVORE DI NEFROPATICI-PRESA IN CARICO ANNO 2017 E IMPEGNO DI SPESA.;11-07-2017;1438;0;33;1;Spese correnti;4;Trasferimenti correnti;2;Trasferimenti correnti a Famiglie;2;Interventi assistenziali;999;Altri assegni e sussidi assistenziali;11-07-2017;
897;1;0;"159,00";"159,00";OMESSO NOMINATIVO NEL RISPETTO DELLA NORMATIVA SULLA PROTEZIONE DATI PERSONALI; ;"IMPEGNO DI SPESA PER L.R. N.9/2014, ART 1- RICONOSCIMENTO BENEFICI ANNO 2017.";11-07-2017;1438;0;140;1;Spese correnti;4;Trasferimenti correnti;2;Trasferimenti correnti a Famiglie;2;Interventi assistenziali;999;Altri assegni e sussidi assistenziali;11-07-2017;
898;1;0;"4.723,37";"4.723,37";CONSORZIO NETWORK ETICO;687819848C;Fatt.n. 2/1075 del 07/07/2017 SERV.SAD;11-07-2017;1412;0;3;1;Spese correnti;3;Acquisto di beni e servizi;2;Acquisto di servizi;15;Contratti di servizio pubblico;9;Contratti di servizio di assistenza sociale domiciliare;11-07-2017;
899;1;0;"323,79";"323,79";OMESSO NOMINATIVO NEL RISPETTO DELLA NORMATIVA SULLA PROTEZIONE DATI PERSONALI; ;DELIBERA REGIONALE N. 70/15/2016 -FONDO REGIONALE PER LA NONAUTOSUFFICIENZA.PROROGA PIANI PERSONALIZZATI LEGGE N. 162/1998 ANNUALITA'2016/GESTIONE 2017.IMPEGNO DI SPESA .;12-07-2017;1420;2;27;1;Spese correnti;4;Trasferimenti correnti;2;Trasferimenti correnti a Famiglie;2;Interventi assistenziali;999;Altri assegni e sussidi assistenziali;12-07-2017;
900;1;0;"508,95";"508,95";OMESSO NOMINATIVO NEL RISPETTO DELLA NORMATIVA SULLA PROTEZIONE DATI PERSONALI; ;DELIBERA REGIONALE N. 70/15/2016 -FONDO REGIONALE PER LA NONAUTOSUFFICIENZA.PROROGA PIANI PERSONALIZZATI LEGGE N. 162/1998 ANNUALITA'2016/GESTIONE 2017.IMPEGNO DI SPESA .;12-07-2017;1420;2;27;1;Spese correnti;4;Trasferimenti correnti;2;Trasferimenti correnti a Famiglie;2;Interventi assistenziali;999;Altri assegni e sussidi assistenziali;12-07-2017;
901;1;0;"224,20";"224,20";OMESSO NOMINATIVO NEL RISPETTO DELLA NORMATIVA SULLA PROTEZIONE DATI PERSONALI; ;DELIBERA REGIONALE N. 70/15/2016 -FONDO REGIONALE PER LA NONAUTOSUFFICIENZA.PROROGA PIANI PERSONALIZZATI LEGGE N. 162/1998 ANNUALITA'2016/GESTIONE 2017.IMPEGNO DI SPESA .;12-07-2017;1420;2;27;1;Spese correnti;4;Trasferimenti correnti;2;Trasferimenti correnti a Famiglie;2;Interventi assistenziali;999;Altri assegni e sussidi assistenziali;12-07-2017;
902;1;0;"51.843,03";"51.843,03";ITM TELEMATICA;6934049E3D;Fatt.n. 427 PA del 27/06/2017 DET. N. 17 DEL 01/02/2017 REG.GEN.LE N. 38 CIG 6934049E3D BUONO N.233/2017/SS COMUNE DI TULA REALIZZAZIONE RETE DI MONITORAGGIO AMBIENTALE PER LA SICUREZZA DEL CITTADINO E DEL TERRITORIO;14-07-2017;2037;0;346;2;Spese in conto capitale;2;Investimenti fissi lordi e acquisto di terreni;1;Beni materiali;4;Impianti e macchinari;2;Impianti;14-07-2017;
903;1;0;"1.970,00";"1.970,00";GEOM. DELEDDA GIANNI;Z791ECF464;Fatt.n. 000001-2017-01 del 10/07/2017;14-07-2017;3121;0;119;2;Spese in conto capitale;2;Investimenti fissi lordi e acquisto di terreni;1;Beni materiali;9;Beni immobili;12;Infrastrutture stradali;14-07-2017;
904;1;0;"218,79";"218,79";CERAMICHE ORVEJ DI MASALA FERNANDO;Z4B1E69347;"Fatt.n. 1/PA del 10/07/2017 VOSTRO DARE PER ACQUISTO MATERIALE FERRAMENTA VARIO, DET 52 DEL 25/02/2015 CIG X8C1217367";14-07-2017;1261;0;98;1;Spese correnti;3;Acquisto di beni e servizi;2;Acquisto di servizi;99;Altri servizi;999;Altri servizi diversi n.a.c.;14-07-2017;
905;1;0;"303,00";"303,00";OMESSO NOMINATIVO NEL RISPETTO DELLA NORMATIVA SULLA PROTEZIONE DATI PERSONALI; ;DELIBERA REGIONALE N. 70/15/2016 -FONDO REGIONALE PER LA NONAUTOSUFFICIENZA.PROROGA PIANI PERSONALIZZATI LEGGE N. 162/1998 ANNUALITA'2016/GESTIONE 2017.IMPEGNO DI SPESA .;17-07-2017;1420;2;27;1;Spese correnti;4;Trasferimenti correnti;2;Trasferimenti correnti a Famiglie;2;Interventi assistenziali;999;Altri assegni e sussidi assistenziali;17-07-2017;
906;1;0;"604,00";"604,00";OMESSO NOMINATIVO NEL RISPETTO DELLA NORMATIVA SULLA PROTEZIONE DATI PERSONALI; ;L.R. 11/185-PROVVIDENZE A FAVORE DI NEFROPATICI-PRESA IN CARICO ANNO 2017 E IMPEGNO DI SPESA.;17-07-2017;1438;0;33;1;Spese correnti;4;Trasferimenti correnti;2;Trasferimenti correnti a Famiglie;2;Interventi assistenziali;999;Altri assegni e sussidi assistenziali;17-07-2017;
907;1;0;"945,76";"945,76";COOP. NUOVE IDEE;Z391D734B5;Fatt.n. FATTPA 70_17 del 12/07/2017;17-07-2017;1413;0;52;1;Spese correnti;3;Acquisto di beni e servizi;2;Acquisto di servizi;99;Altri servizi;999;Altri servizi diversi n.a.c.;17-07-2017;
908;1;0;"952,41";"952,41";COOP. NUOVE IDEE;Z391D734B5;Fatt.n. FATTPA 71_17 del 12/07/2017;17-07-2017;1416;0;53;1;Spese correnti;3;Acquisto di beni e servizi;2;Acquisto di servizi;11;Prestazioni professionali e specialistiche;999;Altre prestazioni professionali e specialistiche n.a.c.;17-07-2017;
909;1;0;"7.210,88";"7.210,88";COOP. NUOVE IDEE; ;Fatt.n. FATTPA 69_17 del 12/07/2017;17-07-2017;1420;0;26;1;Spese correnti;3;Acquisto di beni e servizi;2;Acquisto di servizi;15;Contratti di servizio pubblico;9;Contratti di servizio di assistenza sociale domiciliare;17-07-2017;
910;1;0;"827,84";"827,84";COOP. NUOVE IDEE; ;Fatt.n. FATTPA 75_17 del 12/07/2017;17-07-2017;1434;0;152;1;Spese correnti;4;Trasferimenti correnti;2;Trasferimenti correnti a Famiglie;2;Interventi assistenziali;999;Altri assegni e sussidi assistenziali;17-07-2017;
911;1;0;"634,40";"634,40";MURA ENRICO;Z9F1CFECE0;Fatt.n. FATTPA 7_17 del 11/07/2017;17-07-2017;254;0;10;1;Spese correnti;3;Acquisto di beni e servizi;2;Acquisto di servizi;11;Prestazioni professionali e specialistiche;999;Altre prestazioni professionali e specialistiche n.a.c.;17-07-2017;
912;1;0;"2.379,00";"2.379,00";MUNTONI MARIO;ZA81F27830;Fatt.n. FATTPA 1_17 del 13/07/2017;17-07-2017;255;0;139;1;Spese correnti;3;Acquisto di beni e servizi;2;Acquisto di servizi;9;Manutenzione ordinaria e riparazioni;8;Manutenzione ordinaria e riparazioni di beni immobili;17-07-2017;
913;1;0;"1.282,51";"1.282,51";ENEL ENERGIA;Z5E1D69123;Fatt.n. 004800947859 del 09/07/2017;17-07-2017;1012;4;42;1;Spese correnti;3;Acquisto di beni e servizi;2;Acquisto di servizi;5;Utenze e canoni;4;Energia elettrica;17-07-2017;
914;1;0;"585,08";"585,08";ENEL ENERGIA;Z5E1D69123;Fatt.n. 004800947857 del 09/07/2017;17-07-2017;1012;4;42;1;Spese correnti;3;Acquisto di beni e servizi;2;Acquisto di servizi;5;Utenze e canoni;4;Energia elettrica;17-07-2017;
915;1;0;"44,77";"44,77";ENEL ENERGIA;Z5E1D69123;Fatt.n. 004800947858 del 09/07/2017;17-07-2017;1012;4;42;1;Spese correnti;3;Acquisto di beni e servizi;2;Acquisto di servizi;5;Utenze e canoni;4;Energia elettrica;17-07-2017;
916;1;0;"152,44";"152,44";ENEL ENERGIA;Z5E1D69123;Fatt.n. 004800947860 del 09/07/2017;17-07-2017;1012;4;42;1;Spese correnti;3;Acquisto di beni e servizi;2;Acquisto di servizi;5;Utenze e canoni;4;Energia elettrica;17-07-2017;
917;1;0;"79,87";"203,74";SERVIZIO ELETTRICO NAZIONALE - SERVIZIO DI MAGGIOR TUTE;X7A192E4F0;Fatt.n. 907154150716016 del 10/07/2017;17-07-2017;1013;0;84;1;Spese correnti;3;Acquisto di beni e servizi;2;Acquisto di servizi;5;Utenze e canoni;4;Energia elettrica;17-07-2017;
917;2;0;"123,87";"203,74";SERVIZIO ELETTRICO NAZIONALE - SERVIZIO DI MAGGIOR TUTE;X7A192E4F0;Fatt.n. 907157770720016 del 10/07/2017;17-07-2017;1013;0;84;1;Spese correnti;3;Acquisto di beni e servizi;2;Acquisto di servizi;5;Utenze e canoni;4;Energia elettrica;17-07-2017;
918;1;0;"29,76";"150,21";SERVIZIO ELETTRICO NAZIONALE - SERVIZIO DI MAGGIOR TUTE;ZA31EAC900;Fatt.n. 907152430000416 del 10/07/2017;17-07-2017;1012;4;43;1;Spese correnti;3;Acquisto di beni e servizi;2;Acquisto di servizi;5;Utenze e canoni;4;Energia elettrica;17-07-2017;
918;2;0;"59,58";"150,21";SERVIZIO ELETTRICO NAZIONALE - SERVIZIO DI MAGGIOR TUTE;ZA31EAC900;Fatt.n. 907152430000316 del 10/07/2017;17-07-2017;1012;4;43;1;Spese correnti;3;Acquisto di beni e servizi;2;Acquisto di servizi;5;Utenze e canoni;4;Energia elettrica;17-07-2017;
918;3;0;"60,87";"150,21";SERVIZIO ELETTRICO NAZIONALE - SERVIZIO DI MAGGIOR TUTE;ZA31EAC900;Fatt.n. 907152430000216 del 10/07/2017;17-07-2017;1012;4;43;1;Spese correnti;3;Acquisto di beni e servizi;2;Acquisto di servizi;5;Utenze e canoni;4;Energia elettrica;17-07-2017;
919;1;0;"5.000,00";"5.000,00";PINTADU ALESSANDRO; ;APPROVAZIONE BANDO  PER L'EROGAZIONE DI CONTRIBUTI A BENEFICIO DI PRIVATI PER INTERVENTI DI RESTAURO MURATURE ESTERNE - COPERTURE CON RIQUALIFICAZIONE ENERGETICA- INSTALLAZIONE SOLARE TERMICO;17-07-2017;1820;0;104;1;Spese correnti;4;Trasferimenti correnti;2;Trasferimenti correnti a Famiglie;5;Altri trasferimenti a famiglie;999;Altri trasferimenti a famiglie n.a.c.;17-07-2017;
920;1;0;"2.200,00";"2.200,00";BECCIU GIOVANNI; ;APPROVAZIONE BANDO  PER L'EROGAZIONE DI CONTRIBUTI A BENEFICIO DI PRIVATI PER INTERVENTI DI RESTAURO MURATURE ESTERNE - COPERTURE CON RIQUALIFICAZIONE ENERGETICA- INSTALLAZIONE SOLARE TERMICO;17-07-2017;1820;0;104;1;Spese correnti;4;Trasferimenti correnti;2;Trasferimenti correnti a Famiglie;5;Altri trasferimenti a famiglie;999;Altri trasferimenti a famiglie n.a.c.;17-07-2017;
921;1;0;"3.800,00";"3.800,00";SINI GAVINO; ;APPROVAZIONE BANDO  PER L'EROGAZIONE DI CONTRIBUTI A BENEFICIO DI PRIVATI PER INTERVENTI DI RESTAURO MURATURE ESTERNE - COPERTURE CON RIQUALIFICAZIONE ENERGETICA- INSTALLAZIONE SOLARE TERMICO;17-07-2017;1820;0;104;1;Spese correnti;4;Trasferimenti correnti;2;Trasferimenti correnti a Famiglie;5;Altri trasferimenti a famiglie;999;Altri trasferimenti a famiglie n.a.c.;17-07-2017;
922;1;0;"84,46";"84,46";ENEL ENERGIA;Z5C1DD8230;Fatt.n. 004801007077 del 14/07/2017;18-07-2017;824;0;60;1;Spese correnti;3;Acquisto di beni e servizi;2;Acquisto di servizi;5;Utenze e canoni;4;Energia elettrica;18-07-2017;
923;1;0;"89,35";"89,35";ENEL ENERGIA;ZED18EAB1A;Fatt.n. 004801007076 del 14/07/2017;18-07-2017;824;0;55;1;Spese correnti;3;Acquisto di beni e servizi;2;Acquisto di servizi;5;Utenze e canoni;4;Energia elettrica;18-07-2017;
924;1;0;"979,90";"979,90";COOP. NUOVE IDEE;Z7C1E09453;Fatt.n. FATTPA 68_17 del 12/07/2017;18-07-2017;715;0;76;1;Spese correnti;3;Acquisto di beni e servizi;2;Acquisto di servizi;11;Prestazioni professionali e specialistiche;999;Altre prestazioni professionali e specialistiche n.a.c.;18-07-2017;
925;1;0;"227,29";"227,29";ASSOCIAZIONE PRIMAVERA ONLUS;ZCF1E79B4E;Fatt.n. 49C/17/PA del 06/07/2017;18-07-2017;1349;0;99;1;Spese correnti;3;Acquisto di beni e servizi;2;Acquisto di servizi;15;Contratti di servizio pubblico;11;Contratti di servizio per la lotta al randagismo;18-07-2017;
926;1;0;"2,00";"256,77";POSTE ITALIANE Spa;Z8D1F0ACEA;Fatt.n. 8717199184 del 17/07/2017 Fattura Elettronica relativa all'Identificativo Rendiconto 2092851530;18-07-2017;118;2;127;1;Spese correnti;3;Acquisto di beni e servizi;2;Acquisto di servizi;16;Servizi amministrativi;2;Spese postali;18-07-2017;
926;2;0;"254,77";"256,77";POSTE ITALIANE Spa;Z8D1F0ACEA;Fatt.n. 8717199184 del 17/07/2017 Fattura Elettronica relativa all'Identificativo Rendiconto 2092851530;18-07-2017;118;2;127;1;Spese correnti;3;Acquisto di beni e servizi;2;Acquisto di servizi;16;Servizi amministrativi;2;Spese postali;18-07-2017;
927;1;0;"292,80";"292,80";PUDDU PALMIRO;ZAE1F13545;Fatt.n. 10/PA/2017 del 17/07/2017 SERVIZIO;20-07-2017;1302;0;128;1;Spese correnti;3;Acquisto di beni e servizi;2;Acquisto di servizi;13;Servizi ausiliari per il funzionamento dell'ente;999;Altri servizi ausiliari n.a.c.;20-07-2017;
928;1;0;"102,19";"102,19";ENEL ENERGIA;Z111EAE54D;Fatt.n. 004801007078 del 14/07/2017;20-07-2017;1488;3;115;1;Spese correnti;3;Acquisto di beni e servizi;2;Acquisto di servizi;5;Utenze e canoni;4;Energia elettrica;20-07-2017;
929;1;0;"96,45";"96,45";ENEL ENERGIA;XF2192E4ED;Fatt.n. 004801007079 del 14/07/2017;20-07-2017;1488;3;81;1;Spese correnti;3;Acquisto di beni e servizi;2;Acquisto di servizi;5;Utenze e canoni;4;Energia elettrica;20-07-2017;
930;1;0;"154,45";"154,45";ENEL ENERGIA;Z111EAE54D;Fatt.n. 004801007074 del 14/07/2017;20-07-2017;1300;0;113;1;Spese correnti;3;Acquisto di beni e servizi;1;Acquisto di beni;2;Altri beni di consumo;999;Altri beni e materiali di consumo n.a.c.;20-07-2017;
931;1;0;"145,47";"145,47";ENEL ENERGIA;Z111EAE54D;Fatt.n. 004801007075 del 14/07/2017;20-07-2017;1300;0;113;1;Spese correnti;3;Acquisto di beni e servizi;1;Acquisto di beni;2;Altri beni di consumo;999;Altri beni e materiali di consumo n.a.c.;20-07-2017;
932;1;0;"36,56";"36,56";ENEL ENERGIA;XF2192E4ED;Fatt.n. 004801007129 del 14/07/2017;20-07-2017;1013;0;80;1;Spese correnti;3;Acquisto di beni e servizi;2;Acquisto di servizi;5;Utenze e canoni;4;Energia elettrica;20-07-2017;
933;1;0;"36,56";"36,56";ENEL ENERGIA;XF2192E4ED;Fatt.n. 004801007130 del 14/07/2017;20-07-2017;1013;0;80;1;Spese correnti;3;Acquisto di beni e servizi;2;Acquisto di servizi;5;Utenze e canoni;4;Energia elettrica;20-07-2017;
934;1;0;"61,74";"61,74";ENEL ENERGIA;XF2192E4ED;Fatt.n. 004801007131 del 14/07/2017;20-07-2017;1013;0;80;1;Spese correnti;3;Acquisto di beni e servizi;2;Acquisto di servizi;5;Utenze e canoni;4;Energia elettrica;20-07-2017;
935;1;0;"68,89";"68,89";ENEL ENERGIA;XF2192E4ED;Fatt.n. 004801007132 del 14/07/2017;20-07-2017;1013;0;80;1;Spese correnti;3;Acquisto di beni e servizi;2;Acquisto di servizi;5;Utenze e canoni;4;Energia elettrica;20-07-2017;
936;1;0;"650,74";"650,74";SATTA GESUINO; ;ART. 82 D. LGS. N. 267/2000 - INDENNITA DI CARICA AL SINDACO LUGLIO.DET.N.232;20-07-2017;14;1;9;1;Spese correnti;3;Acquisto di beni e servizi;2;Acquisto di servizi;1;Organi e incarichi istituzionali dell'amministrazione;1;Organi istituzionali dell'amministrazione - Indennità;20-07-2017;
937;1;0;"195,22";"748,34";CANU MARIA PAOLA; ;ART. 82 D. LGS. N. 267/2000 - INDENNITA ASSESSORI LUGLIO 2017. DET. N. 232;20-07-2017;14;1;9;1;Spese correnti;3;Acquisto di beni e servizi;2;Acquisto di servizi;1;Organi e incarichi istituzionali dell'amministrazione;1;Organi istituzionali dell'amministrazione - Indennità;20-07-2017;
937;2;0;"97,61";"748,34";GAIAS GIANFRANCO; ;ART. 82 D. LGS. N. 267/2000 - INDENNITA ASSESSORI LUGLIO 2017. DET. N. 232;20-07-2017;14;1;9;1;Spese correnti;3;Acquisto di beni e servizi;2;Acquisto di servizi;1;Organi e incarichi istituzionali dell'amministrazione;1;Organi istituzionali dell'amministrazione - Indennità;20-07-2017;
937;3;0;"260,29";"748,34";PUDDU EMANUELE; ;ART. 82 D. LGS. N. 267/2000 - INDENNITA ASSESSORI LUGLIO 2017. DET. N. 232;20-07-2017;14;1;9;1;Spese correnti;3;Acquisto di beni e servizi;2;Acquisto di servizi;1;Organi e incarichi istituzionali dell'amministrazione;1;Organi istituzionali dell'amministrazione - Indennità;20-07-2017;
937;4;0;"195,22";"748,34";SERUSI BIANCA; ;ART. 82 D. LGS. N. 267/2000 - INDENNITA ASSESSORI LUGLIO 2017. DET. N. 232;20-07-2017;14;1;9;1;Spese correnti;3;Acquisto di beni e servizi;2;Acquisto di servizi;1;Organi e incarichi istituzionali dell'amministrazione;1;Organi istituzionali dell'amministrazione - Indennità;20-07-2017;
938;1;0;"118,92";"118,92";TESORERIA PROV.LE DELLO STATO; ;IRAP SU INDENNITA AMMINISTRATORI LUGLIO;20-07-2017;14;1;0;1;Spese correnti;3;Acquisto di beni e servizi;2;Acquisto di servizi;1;Organi e incarichi istituzionali dell'amministrazione;1;Organi istituzionali dell'amministrazione - Indennità;20-07-2017;
939;1;0;"1.250,00";"1.250,00";ASS. SPORTIVA GRUPPO IPPICO TULESE;ZAC1F21F10;Organizzazione Rassegna E-State a Tula 2017. Impegno di spesa;20-07-2017;746;0;137;1;Spese correnti;3;Acquisto di beni e servizi;2;Acquisto di servizi;2;"Organizzazione eventi, pubblicita` e servizi per trasferta";5;Organizzazione e partecipazione a manifestazioni e convegni;20-07-2017;
940;1;0;"500,00";"500,00";OMESSO NOMINATIVO NEL RISPETTO DELLA NORMATIVA SULLA PROTEZIONE DATI PERSONALI; ;SERVIZI ALLA PERSONA. INSERIMENTO SOFFERENTI MENTALI IN STRUTTURE RESIDENZIALI.IMPEGNO DI SPESA ANNO 2017.;20-07-2017;1412;0;18;1;Spese correnti;3;Acquisto di beni e servizi;2;Acquisto di servizi;15;Contratti di servizio pubblico;9;Contratti di servizio di assistenza sociale domiciliare;20-07-2017;
967;1;0;"120,42";"158,78";TESORERIA PROV.LE DELLO STATO; ;VERS.CONTRIB. MESE: LUGLIO 17 A CARICO DELL`ENTE;21-07-2017;2037;0;346;2;Spese in conto capitale;2;Investimenti fissi lordi e acquisto di terreni;1;Beni materiali;4;Impianti e macchinari;2;Impianti;21-07-2017;
967;2;0;"38,36";"158,78";TESORERIA PROV.LE DELLO STATO; ;VERSAMENTO CONTRIBUTI O RITENUTE  MESE DI: LUGLIO 17 IRAP;21-07-2017;2037;0;346;2;Spese in conto capitale;2;Investimenti fissi lordi e acquisto di terreni;1;Beni materiali;4;Impianti e macchinari;2;Impianti;21-07-2017;
968;1;0;"18,17";"75,22";TESORERIA PROV.LE DELLO STATO; ;VERS. IMPOSTE MESE: LUGLIO 17 PER I.R.A.P.;21-07-2017;3121;0;287;2;Spese in conto capitale;2;Investimenti fissi lordi e acquisto di terreni;1;Beni materiali;9;Beni immobili;14;Opere per la sistemazione del suolo;21-07-2017;
968;2;0;"57,05";"75,22";TESORERIA PROV.LE DELLO STATO; ;VERSAMENTO CPDEL MESE DI: LUGLIO 17;21-07-2017;3121;0;287;2;Spese in conto capitale;2;Investimenti fissi lordi e acquisto di terreni;1;Beni materiali;9;Beni immobili;14;Opere per la sistemazione del suolo;21-07-2017;
971;1;0;"451,36";"451,36";DIPENDENTI COMUNALI; ;COMPENSO AL RUP.contributo lavori videosorveglianza. ATTO N. 270;21-07-2017;2037;0;346;2;Spese in conto capitale;2;Investimenti fissi lordi e acquisto di terreni;1;Beni materiali;4;Impianti e macchinari;2;Impianti;21-07-2017;
972;1;0;"214,14";"214,14";DIPENDENTI COMUNALI; ;COMPENSO AL RUP CANTIERI VERDI 2016 - LAVORI PER L'INCREMENTO E LA TUTELA DELLE AREE FORESTALI. ATTO N. 278;21-07-2017;3516;0;323;2;Spese in conto capitale;5;Altre spese in conto capitale;99;Altre spese in conto capitale n.a.c.;99;Altre spese in conto capitale n.a.c.;999;Altre spese in conto capitale n.a.c.;21-07-2017;
973;1;0;"213,85";"213,85";DIPENDENTI COMUNALI; ;COMPENSO AL RUP Lavori di completamento riqualificazione della Piazza IV Novembre - ATTO N. 284;21-07-2017;3121;0;287;2;Spese in conto capitale;2;Investimenti fissi lordi e acquisto di terreni;1;Beni materiali;9;Beni immobili;12;Infrastrutture stradali;21-07-2017;
974;1;0;"216,85";"216,85";DIPENDENTI COMUNALI; ;COMPENSO AL RUP Lavori di Riqualificazione delle Vie Cavour e Mazzini. ATTO N. 281;21-07-2017;3121;0;313;2;Spese in conto capitale;2;Investimenti fissi lordi e acquisto di terreni;1;Beni materiali;9;Beni immobili;12;Infrastrutture stradali;21-07-2017;
975;1;0;"98,15";"98,15";DIPENDENTI COMUNALI; ;MANUTENZIONE STRAORDINARIA MARCIAPIEDI VIA SANDRO PERTINI E ADEGUAMENTO RETE IDRICA. Compreso compenso RUP. ATTO N. 282;21-07-2017;3121;0;340;2;Spese in conto capitale;2;Investimenti fissi lordi e acquisto di terreni;1;Beni materiali;9;Beni immobili;12;Infrastrutture stradali;21-07-2017;
976;1;0;"132,05";"132,05";DIPENDENTI COMUNALI; ;COMPENSO AL RUP Approvazione progetto definitivo Interventi volti alla fruizione dell'area archeologica Sa Mandra Manna" ATTO N. 283;21-07-2017;2611;0;190;2;Spese in conto capitale;2;Investimenti fissi lordi e acquisto di terreni;1;Beni materiali;9;Beni immobili;999;Beni immobili n.a.c.;21-07-2017;
977;1;0;"343,50";"343,50";DIPENDENTI COMUNALI; ;Lavori di Realizzazione Ecocentro Comunale. COMPENSO AL RUP. ATTO N. 269;21-07-2017;3368;0;125;2;Spese in conto capitale;2;Investimenti fissi lordi e acquisto di terreni;1;Beni materiali;9;Beni immobili;999;Beni immobili n.a.c.;21-07-2017;
978;1;0;"35,23";"46,45";TESORERIA PROV.LE DELLO STATO; ;VERS. CONTRIBUTI E IRAP COMPENSI AL RUP;21-07-2017;2611;0;190;2;Spese in conto capitale;2;Investimenti fissi lordi e acquisto di terreni;1;Beni materiali;9;Beni immobili;999;Beni immobili n.a.c.;21-07-2017;
978;2;0;"11,22";"46,45";TESORERIA PROV.LE DELLO STATO; ;VERS. CONTRIBUTI E IRAP COMPENSI AL RUP;21-07-2017;2611;0;190;2;Spese in conto capitale;2;Investimenti fissi lordi e acquisto di terreni;1;Beni materiali;9;Beni immobili;999;Beni immobili n.a.c.;21-07-2017;
979;1;0;"29,19";"120,83";TESORERIA PROV.LE DELLO STATO;7104167012;VERS. CPDEL E IRAP SU COMPENSI AL RUP;21-07-2017;3368;0;125;2;Spese in conto capitale;2;Investimenti fissi lordi e acquisto di terreni;1;Beni materiali;9;Beni immobili;999;Beni immobili n.a.c.;21-07-2017;
979;2;0;"91,64";"120,83";TESORERIA PROV.LE DELLO STATO;7104167012;VERS. CPDEL E IRAP SU COMPENSI AL RUP;21-07-2017;3368;0;125;2;Spese in conto capitale;2;Investimenti fissi lordi e acquisto di terreni;1;Beni materiali;9;Beni immobili;999;Beni immobili n.a.c.;21-07-2017;
980;1;0;"18,20";"75,33";TESORERIA PROV.LE DELLO STATO; ;VERS. CPDEL E IRAP COMPENSI AL RUP;21-07-2017;3516;0;323;2;Spese in conto capitale;5;Altre spese in conto capitale;99;Altre spese in conto capitale n.a.c.;99;Altre spese in conto capitale n.a.c.;999;Altre spese in conto capitale n.a.c.;21-07-2017;
980;2;0;"57,13";"75,33";TESORERIA PROV.LE DELLO STATO; ;VERS. CPDEL E IRAP COMPENSI AL RUP;21-07-2017;3516;0;323;2;Spese in conto capitale;5;Altre spese in conto capitale;99;Altre spese in conto capitale n.a.c.;99;Altre spese in conto capitale n.a.c.;999;Altre spese in conto capitale n.a.c.;21-07-2017;
981;1;0;"26,80";"62,76";TESORERIA PROV.LE DELLO STATO; ;VERS. IRAP COMPENSI AL RUP;21-07-2017;3121;0;313;2;Spese in conto capitale;2;Investimenti fissi lordi e acquisto di terreni;1;Beni materiali;9;Beni immobili;12;Infrastrutture stradali;21-07-2017;
981;2;0;"35,96";"62,76";TESORERIA PROV.LE DELLO STATO; ;VERS. CPDEL E INADEL COMPENSI AL RUP;21-07-2017;3121;0;313;2;Spese in conto capitale;2;Investimenti fissi lordi e acquisto di terreni;1;Beni materiali;9;Beni immobili;12;Infrastrutture stradali;21-07-2017;
985;1;0;"1.626,66";"1.626,66";SOTGIU GIUSEPPE;Z311D4E83B;Fatt.n. 7/PA del 27/06/2017 AFFIDAMENTO LAVORI DI MANUTENZIONE ORDINARIA IMPIANTO DI ILLUMINAZIONE DITTA SOTGIU GIUSEPPE ANNO 2017- CIG Z311D4E83B REG. GEN NR. 56 DEL 09-02-2017-BIMESTRE MAGGIO-GIUGNO 2017;01-08-2017;1012;0;35;1;Spese correnti;3;Acquisto di beni e servizi;2;Acquisto di servizi;9;Manutenzione ordinaria e riparazioni;4;Manutenzione ordinaria e riparazioni di impianti e macchinari;01-08-2017;
986;1;0;"2.961,63";"2.961,63";CONSORZIO LA SORGENTE;ZO71D74C7D;Fatt.n. 3/134 del 18/07/2017 VENDITA;01-08-2017;1416;0;63;1;Spese correnti;3;Acquisto di beni e servizi;2;Acquisto di servizi;11;Prestazioni professionali e specialistiche;999;Altre prestazioni professionali e specialistiche n.a.c.;01-08-2017;
987;1;0;"103,15";"103,15";ENEL ENERGIA;ZED1E018D9;Fatt.n. 004801007133 del 14/07/2017;01-08-2017;566;4;70;1;Spese correnti;3;Acquisto di beni e servizi;2;Acquisto di servizi;5;Utenze e canoni;4;Energia elettrica;01-08-2017;
988;1;0;"1.445,90";"1.445,90";SEGESTA GESTIONI SRL;Z4C1D4ABDB;Fatt.n. X-787 del 03/07/2017;01-08-2017;1412;0;36;1;Spese correnti;3;Acquisto di beni e servizi;2;Acquisto di servizi;15;Contratti di servizio pubblico;9;Contratti di servizio di assistenza sociale domiciliare;01-08-2017;
989;1;0;"525,00";"525,00";OMESSO NOMINATIVO NEL RISPETTO DELLA NORMATIVA SULLA PROTEZIONE DATI PERSONALI; ;DELIBERA REGIONALE N. 70/15/2016 -FONDO REGIONALE PER LA NONAUTOSUFFICIENZA.PROROGA PIANI PERSONALIZZATI LEGGE N. 162/1998 ANNUALITA'2016/GESTIONE 2017.IMPEGNO DI SPESA .;01-08-2017;1420;2;27;1;Spese correnti;4;Trasferimenti correnti;2;Trasferimenti correnti a Famiglie;2;Interventi assistenziali;999;Altri assegni e sussidi assistenziali;01-08-2017;
990;1;0;"543,50";"543,50";OMESSO NOMINATIVO NEL RISPETTO DELLA NORMATIVA SULLA PROTEZIONE DATI PERSONALI; ;DELIBERA REGIONALE N. 70/15/2016 -FONDO REGIONALE PER LA NONAUTOSUFFICIENZA.PROROGA PIANI PERSONALIZZATI LEGGE N. 162/1998 ANNUALITA'2016/GESTIONE 2017.IMPEGNO DI SPESA .;01-08-2017;1420;2;27;1;Spese correnti;4;Trasferimenti correnti;2;Trasferimenti correnti a Famiglie;2;Interventi assistenziali;999;Altri assegni e sussidi assistenziali;01-08-2017;
991;1;0;"250,00";"250,00";OMESSO NOMINATIVO NEL RISPETTO DELLA NORMATIVA SULLA PROTEZIONE DATI PERSONALI; ;DELIBERA REGIONALE N. 70/15/2016 -FONDO REGIONALE PER LA NONAUTOSUFFICIENZA.PROROGA PIANI PERSONALIZZATI LEGGE N. 162/1998 ANNUALITA'2016/GESTIONE 2017.IMPEGNO DI SPESA .;01-08-2017;1420;2;27;1;Spese correnti;4;Trasferimenti correnti;2;Trasferimenti correnti a Famiglie;2;Interventi assistenziali;999;Altri assegni e sussidi assistenziali;01-08-2017;
992;1;0;"162,79";"162,79";OMESSO NOMINATIVO NEL RISPETTO DELLA NORMATIVA SULLA PROTEZIONE DATI PERSONALI; ;DELIBERA REGIONALE N. 70/15/2016 -FONDO REGIONALE PER LA NONAUTOSUFFICIENZA.PROROGA PIANI PERSONALIZZATI LEGGE N. 162/1998 ANNUALITA'2016/GESTIONE 2017.IMPEGNO DI SPESA .;01-08-2017;1420;2;27;1;Spese correnti;4;Trasferimenti correnti;2;Trasferimenti correnti a Famiglie;2;Interventi assistenziali;999;Altri assegni e sussidi assistenziali;01-08-2017;
993;1;0;"103,00";"103,00";OMESSO NOMINATIVO NEL RISPETTO DELLA NORMATIVA SULLA PROTEZIONE DATI PERSONALI; ;DELIBERA REGIONALE N. 70/15/2016 -FONDO REGIONALE PER LA NONAUTOSUFFICIENZA.PROROGA PIANI PERSONALIZZATI LEGGE N. 162/1998 ANNUALITA'2016/GESTIONE 2017.IMPEGNO DI SPESA .;01-08-2017;1420;2;27;1;Spese correnti;4;Trasferimenti correnti;2;Trasferimenti correnti a Famiglie;2;Interventi assistenziali;999;Altri assegni e sussidi assistenziali;01-08-2017;
994;1;0;"436,05";"436,05";OMESSO NOMINATIVO NEL RISPETTO DELLA NORMATIVA SULLA PROTEZIONE DATI PERSONALI; ;DELIBERA REGIONALE N. 70/15/2016 -FONDO REGIONALE PER LA NONAUTOSUFFICIENZA.PROROGA PIANI PERSONALIZZATI LEGGE N. 162/1998 ANNUALITA'2016/GESTIONE 2017.IMPEGNO DI SPESA .;01-08-2017;1420;2;27;1;Spese correnti;4;Trasferimenti correnti;2;Trasferimenti correnti a Famiglie;2;Interventi assistenziali;999;Altri assegni e sussidi assistenziali;01-08-2017;
995;1;0;"225,00";"225,00";OMESSO NOMINATIVO NEL RISPETTO DELLA NORMATIVA SULLA PROTEZIONE DATI PERSONALI; ;DELIBERA REGIONALE N. 70/15/2016 -FONDO REGIONALE PER LA NONAUTOSUFFICIENZA.PROROGA PIANI PERSONALIZZATI LEGGE N. 162/1998 ANNUALITA'2016/GESTIONE 2017.IMPEGNO DI SPESA .;01-08-2017;1420;2;27;1;Spese correnti;4;Trasferimenti correnti;2;Trasferimenti correnti a Famiglie;2;Interventi assistenziali;999;Altri assegni e sussidi assistenziali;01-08-2017;
996;1;0;"500,00";"500,00";OMESSO NOMINATIVO NEL RISPETTO DELLA NORMATIVA SULLA PROTEZIONE DATI PERSONALI; ;IMPEGNO DI SPESA PER L.R. N. 18/2016- REDDITO D'INCLUSIONE SOCIALE-AGGIUDU TORRAU-AVVIO ATTIVITA'.;01-08-2017;1435;0;148;1;Spese correnti;3;Acquisto di beni e servizi;2;Acquisto di servizi;99;Altri servizi;999;Altri servizi diversi n.a.c.;01-08-2017;
997;1;0;"400,00";"400,00";OMESSO NOMINATIVO NEL RISPETTO DELLA NORMATIVA SULLA PROTEZIONE DATI PERSONALI; ;IMPEGNO DI SPESA PER L.R. N. 18/2016- REDDITO D'INCLUSIONE SOCIALE-AGGIUDU TORRAU-AVVIO ATTIVITA'.;01-08-2017;1435;0;148;1;Spese correnti;3;Acquisto di beni e servizi;2;Acquisto di servizi;99;Altri servizi;999;Altri servizi diversi n.a.c.;01-08-2017;
998;1;0;"400,00";"400,00";OMESSO NOMINATIVO NEL RISPETTO DELLA NORMATIVA SULLA PROTEZIONE DATI PERSONALI; ;IMPEGNO DI SPESA PER L.R. N. 18/2016- REDDITO D'INCLUSIONE SOCIALE-AGGIUDU TORRAU-AVVIO ATTIVITA'.;01-08-2017;1435;0;148;1;Spese correnti;3;Acquisto di beni e servizi;2;Acquisto di servizi;99;Altri servizi;999;Altri servizi diversi n.a.c.;01-08-2017;
999;1;0;"200,00";"200,00";OMESSO NOMINATIVO NEL RISPETTO DELLA NORMATIVA SULLA PROTEZIONE DATI PERSONALI; ;IMPEGNO DI SPESA PER L.R. N. 18/2016- REDDITO D'INCLUSIONE SOCIALE-AGGIUDU TORRAU-AVVIO ATTIVITA'.;01-08-2017;1435;0;148;1;Spese correnti;3;Acquisto di beni e servizi;2;Acquisto di servizi;99;Altri servizi;999;Altri servizi diversi n.a.c.;01-08-2017;
1000;1;0;"200,00";"200,00";OMESSO NOMINATIVO NEL RISPETTO DELLA NORMATIVA SULLA PROTEZIONE DATI PERSONALI; ;IMPEGNO DI SPESA PER L.R. N. 18/2016- REDDITO D'INCLUSIONE SOCIALE-AGGIUDU TORRAU-AVVIO ATTIVITA'.;01-08-2017;1435;0;148;1;Spese correnti;3;Acquisto di beni e servizi;2;Acquisto di servizi;99;Altri servizi;999;Altri servizi diversi n.a.c.;01-08-2017;
1001;1;0;"200,00";"200,00";OMESSO NOMINATIVO NEL RISPETTO DELLA NORMATIVA SULLA PROTEZIONE DATI PERSONALI; ;IMPEGNO DI SPESA PER L.R. N. 18/2016- REDDITO D'INCLUSIONE SOCIALE-AGGIUDU TORRAU-AVVIO ATTIVITA'.;01-08-2017;1435;0;148;1;Spese correnti;3;Acquisto di beni e servizi;2;Acquisto di servizi;99;Altri servizi;999;Altri servizi diversi n.a.c.;01-08-2017;
1002;1;0;"300,00";"300,00";OMESSO NOMINATIVO NEL RISPETTO DELLA NORMATIVA SULLA PROTEZIONE DATI PERSONALI; ;IMPEGNO DI SPESA PER L.R. N. 18/2016- REDDITO D'INCLUSIONE SOCIALE-AGGIUDU TORRAU-AVVIO ATTIVITA'.;01-08-2017;1435;0;148;1;Spese correnti;3;Acquisto di beni e servizi;2;Acquisto di servizi;99;Altri servizi;999;Altri servizi diversi n.a.c.;01-08-2017;
1003;1;0;"200,00";"200,00";OMESSO NOMINATIVO NEL RISPETTO DELLA NORMATIVA SULLA PROTEZIONE DATI PERSONALI; ;IMPEGNO DI SPESA PER L.R. N. 18/2016- REDDITO D'INCLUSIONE SOCIALE-AGGIUDU TORRAU-AVVIO ATTIVITA'.;01-08-2017;1435;0;148;1;Spese correnti;3;Acquisto di beni e servizi;2;Acquisto di servizi;99;Altri servizi;999;Altri servizi diversi n.a.c.;01-08-2017;
1004;1;0;"200,00";"200,00";OMESSO NOMINATIVO NEL RISPETTO DELLA NORMATIVA SULLA PROTEZIONE DATI PERSONALI; ;IMPEGNO DI SPESA PER L.R. N. 18/2016- REDDITO D'INCLUSIONE SOCIALE-AGGIUDU TORRAU-AVVIO ATTIVITA'.;01-08-2017;1435;0;148;1;Spese correnti;3;Acquisto di beni e servizi;2;Acquisto di servizi;99;Altri servizi;999;Altri servizi diversi n.a.c.;01-08-2017;
1005;1;0;"300,00";"300,00";OMESSO NOMINATIVO NEL RISPETTO DELLA NORMATIVA SULLA PROTEZIONE DATI PERSONALI; ;IMPEGNO DI SPESA PER L.R. N. 18/2016- REDDITO D'INCLUSIONE SOCIALE-AGGIUDU TORRAU-AVVIO ATTIVITA'.;01-08-2017;1435;0;148;1;Spese correnti;3;Acquisto di beni e servizi;2;Acquisto di servizi;99;Altri servizi;999;Altri servizi diversi n.a.c.;01-08-2017;
1006;1;0;"400,00";"400,00";OMESSO NOMINATIVO NEL RISPETTO DELLA NORMATIVA SULLA PROTEZIONE DATI PERSONALI; ;IMPEGNO DI SPESA PER L.R. N. 18/2016- REDDITO D'INCLUSIONE SOCIALE-AGGIUDU TORRAU-AVVIO ATTIVITA'.;01-08-2017;1435;0;148;1;Spese correnti;3;Acquisto di beni e servizi;2;Acquisto di servizi;99;Altri servizi;999;Altri servizi diversi n.a.c.;01-08-2017;
1007;1;0;"800,00";"800,00";UNIONE SCACCHISTICA COMUNI DEL LOGUDORO; ;CONCESSIONE CONTRIBUTI A FAVORE DI ASSOCIAZIONI SPORTIVE E CULTURALI.;01-08-2017;722;0;353;1;Spese correnti;4;Trasferimenti correnti;1;Trasferimenti correnti a Amministrazioni Pubbliche;2;Trasferimenti correnti a Amministrazioni Locali;999;Trasferimenti correnti a altre Amministrazioni Locali n.a.c.;01-08-2017;
1008;1;0;"3.597,36";"3.597,36";Visicaro Marco;ZE21C50EB7;Fatt.n. 006PA-2017 del 20/07/2017 SALDO FINALE COMPENSO PRESTAZIONI PROFESSIONALI PROGETTO VIA CAVOUR E VIA MAZZINI;01-08-2017;3121;0;312;2;Spese in conto capitale;2;Investimenti fissi lordi e acquisto di terreni;1;Beni materiali;9;Beni immobili;12;Infrastrutture stradali;01-08-2017;
1009;1;0;"207,00";"207,00";CHESSA LUCIA; ;IMPEGNO DI SPESA PER RIMBORSO SPESE DI VIAGGIO AGLI ALUNNI PENDOLARI DELLE SCUOLE SECONDARIE DI II GRADO A.S. 2016/2017.;01-08-2017;674;0;154;1;Spese correnti;4;Trasferimenti correnti;2;Trasferimenti correnti a Famiglie;2;Interventi assistenziali;999;Altri assegni e sussidi assistenziali;01-08-2017;
1011;1;0;"207,00";"207,00";ASOLE SILVIA; ;IMPEGNO DI SPESA PER RIMBORSO SPESE DI VIAGGIO AGLI ALUNNI PENDOLARI DELLE SCUOLE SECONDARIE DI II GRADO A.S. 2016/2017.;01-08-2017;674;0;154;1;Spese correnti;4;Trasferimenti correnti;2;Trasferimenti correnti a Famiglie;2;Interventi assistenziali;999;Altri assegni e sussidi assistenziali;01-08-2017;
1012;1;0;"207,00";"207,00";TANDA SALVATORE; ;IMPEGNO DI SPESA PER RIMBORSO SPESE DI VIAGGIO AGLI ALUNNI PENDOLARI DELLE SCUOLE SECONDARIE DI II GRADO A.S. 2016/2017.;01-08-2017;674;0;154;1;Spese correnti;4;Trasferimenti correnti;2;Trasferimenti correnti a Famiglie;2;Interventi assistenziali;999;Altri assegni e sussidi assistenziali;01-08-2017;
1013;1;0;"207,00";"207,00";SALIS SALVATORINA; ;IMPEGNO DI SPESA PER RIMBORSO SPESE DI VIAGGIO AGLI ALUNNI PENDOLARI DELLE SCUOLE SECONDARIE DI II GRADO A.S. 2016/2017.;01-08-2017;674;0;154;1;Spese correnti;4;Trasferimenti correnti;2;Trasferimenti correnti a Famiglie;2;Interventi assistenziali;999;Altri assegni e sussidi assistenziali;01-08-2017;
1014;1;0;"325,00";"325,00";SINI LORETA; ;IMPEGNO DI SPESA PER RIMBORSO SPESE DI VIAGGIO AGLI ALUNNI PENDOLARI DELLE SCUOLE SECONDARIE DI II GRADO A.S. 2016/2017.;01-08-2017;674;0;154;1;Spese correnti;4;Trasferimenti correnti;2;Trasferimenti correnti a Famiglie;2;Interventi assistenziali;999;Altri assegni e sussidi assistenziali;01-08-2017;
1015;1;0;"207,00";"207,00";SATTA FRANCA; ;IMPEGNO DI SPESA PER RIMBORSO SPESE DI VIAGGIO AGLI ALUNNI PENDOLARI DELLE SCUOLE SECONDARIE DI II GRADO A.S. 2016/2017.;01-08-2017;674;0;154;1;Spese correnti;4;Trasferimenti correnti;2;Trasferimenti correnti a Famiglie;2;Interventi assistenziali;999;Altri assegni e sussidi assistenziali;01-08-2017;
1016;1;0;"414,00";"414,00";BERRIA MARIA GIOVANNA; ;IMPEGNO DI SPESA PER RIMBORSO SPESE DI VIAGGIO AGLI ALUNNI PENDOLARI DELLE SCUOLE SECONDARIE DI II GRADO A.S. 2016/2017.;01-08-2017;674;0;154;1;Spese correnti;4;Trasferimenti correnti;2;Trasferimenti correnti a Famiglie;2;Interventi assistenziali;999;Altri assegni e sussidi assistenziali;01-08-2017;
1017;1;0;"207,00";"207,00";MANNU MARINELLA; ;IMPEGNO DI SPESA PER RIMBORSO SPESE DI VIAGGIO AGLI ALUNNI PENDOLARI DELLE SCUOLE SECONDARIE DI II GRADO A.S. 2016/2017.;01-08-2017;674;0;154;1;Spese correnti;4;Trasferimenti correnti;2;Trasferimenti correnti a Famiglie;2;Interventi assistenziali;999;Altri assegni e sussidi assistenziali;01-08-2017;
1018;1;0;"207,00";"207,00";FURRU MARIA LEONARDA; ;IMPEGNO DI SPESA PER RIMBORSO SPESE DI VIAGGIO AGLI ALUNNI PENDOLARI DELLE SCUOLE SECONDARIE DI II GRADO A.S. 2016/2017.;01-08-2017;674;0;154;1;Spese correnti;4;Trasferimenti correnti;2;Trasferimenti correnti a Famiglie;2;Interventi assistenziali;999;Altri assegni e sussidi assistenziali;01-08-2017;
1019;1;0;"207,00";"207,00";TESTONI RITA; ;IMPEGNO DI SPESA PER RIMBORSO SPESE DI VIAGGIO AGLI ALUNNI PENDOLARI DELLE SCUOLE SECONDARIE DI II GRADO A.S. 2016/2017.;01-08-2017;674;0;154;1;Spese correnti;4;Trasferimenti correnti;2;Trasferimenti correnti a Famiglie;2;Interventi assistenziali;999;Altri assegni e sussidi assistenziali;01-08-2017;
1020;1;0;"207,00";"207,00";SPANU PIERA RITA; ;IMPEGNO DI SPESA PER RIMBORSO SPESE DI VIAGGIO AGLI ALUNNI PENDOLARI DELLE SCUOLE SECONDARIE DI II GRADO A.S. 2016/2017.;01-08-2017;674;0;154;1;Spese correnti;4;Trasferimenti correnti;2;Trasferimenti correnti a Famiglie;2;Interventi assistenziali;999;Altri assegni e sussidi assistenziali;01-08-2017;
1021;1;0;"325,00";"325,00";SECHI DONATELLA; ;IMPEGNO DI SPESA PER RIMBORSO SPESE DI VIAGGIO AGLI ALUNNI PENDOLARI DELLE SCUOLE SECONDARIE DI II GRADO A.S. 2016/2017.;01-08-2017;674;0;154;1;Spese correnti;4;Trasferimenti correnti;2;Trasferimenti correnti a Famiglie;2;Interventi assistenziali;999;Altri assegni e sussidi assistenziali;01-08-2017;
1022;1;0;"118,00";"118,00";FIORI LAURA; ;IMPEGNO DI SPESA PER RIMBORSO SPESE DI VIAGGIO AGLI ALUNNI PENDOLARI DELLE SCUOLE SECONDARIE DI II GRADO A.S. 2016/2017.;01-08-2017;674;0;154;1;Spese correnti;4;Trasferimenti correnti;2;Trasferimenti correnti a Famiglie;2;Interventi assistenziali;999;Altri assegni e sussidi assistenziali;01-08-2017;
1023;1;0;"207,00";"207,00";BECCA MARIA MADDALENA; ;IMPEGNO DI SPESA PER RIMBORSO SPESE DI VIAGGIO AGLI ALUNNI PENDOLARI DELLE SCUOLE SECONDARIE DI II GRADO A.S. 2016/2017.;01-08-2017;674;0;154;1;Spese correnti;4;Trasferimenti correnti;2;Trasferimenti correnti a Famiglie;2;Interventi assistenziali;999;Altri assegni e sussidi assistenziali;01-08-2017;
1024;1;0;"207,00";"207,00";PINTADU MARIA CATERINA; ;IMPEGNO DI SPESA PER RIMBORSO SPESE DI VIAGGIO AGLI ALUNNI PENDOLARI DELLE SCUOLE SECONDARIE DI II GRADO A.S. 2016/2017.;01-08-2017;674;0;154;1;Spese correnti;4;Trasferimenti correnti;2;Trasferimenti correnti a Famiglie;2;Interventi assistenziali;999;Altri assegni e sussidi assistenziali;01-08-2017;
1025;1;0;"768,00";"768,00";SANNA CRISTINA; ;IMPEGNO DI SPESA PER RIMBORSO SPESE DI VIAGGIO AGLI ALUNNI PENDOLARI DELLE SCUOLE SECONDARIE DI II GRADO A.S. 2016/2017.;01-08-2017;674;0;154;1;Spese correnti;4;Trasferimenti correnti;2;Trasferimenti correnti a Famiglie;2;Interventi assistenziali;999;Altri assegni e sussidi assistenziali;01-08-2017;
1026;1;0;"207,00";"207,00";SANNA MARGHERITA; ;IMPEGNO DI SPESA PER RIMBORSO SPESE DI VIAGGIO AGLI ALUNNI PENDOLARI DELLE SCUOLE SECONDARIE DI II GRADO A.S. 2016/2017.;01-08-2017;674;0;154;1;Spese correnti;4;Trasferimenti correnti;2;Trasferimenti correnti a Famiglie;2;Interventi assistenziali;999;Altri assegni e sussidi assistenziali;01-08-2017;
1027;1;0;"207,00";"207,00";CAMPESI MANILA; ;IMPEGNO DI SPESA PER RIMBORSO SPESE DI VIAGGIO AGLI ALUNNI PENDOLARI DELLE SCUOLE SECONDARIE DI II GRADO A.S. 2016/2017.;01-08-2017;674;0;154;1;Spese correnti;4;Trasferimenti correnti;2;Trasferimenti correnti a Famiglie;2;Interventi assistenziali;999;Altri assegni e sussidi assistenziali;01-08-2017;
1028;1;0;"207,00";"207,00";FRAU PAOLA; ;IMPEGNO DI SPESA PER RIMBORSO SPESE DI VIAGGIO AGLI ALUNNI PENDOLARI DELLE SCUOLE SECONDARIE DI II GRADO A.S. 2016/2017.;01-08-2017;674;0;154;1;Spese correnti;4;Trasferimenti correnti;2;Trasferimenti correnti a Famiglie;2;Interventi assistenziali;999;Altri assegni e sussidi assistenziali;01-08-2017;
1029;1;0;"207,00";"207,00";SECCHI LUCIA; ;IMPEGNO DI SPESA PER RIMBORSO SPESE DI VIAGGIO AGLI ALUNNI PENDOLARI DELLE SCUOLE SECONDARIE DI II GRADO A.S. 2016/2017.;01-08-2017;674;0;154;1;Spese correnti;4;Trasferimenti correnti;2;Trasferimenti correnti a Famiglie;2;Interventi assistenziali;999;Altri assegni e sussidi assistenziali;01-08-2017;
1030;1;0;"414,00";"414,00";SERUSI SILVANA; ;IMPEGNO DI SPESA PER RIMBORSO SPESE DI VIAGGIO AGLI ALUNNI PENDOLARI DELLE SCUOLE SECONDARIE DI II GRADO A.S. 2016/2017.;01-08-2017;674;0;154;1;Spese correnti;4;Trasferimenti correnti;2;Trasferimenti correnti a Famiglie;2;Interventi assistenziali;999;Altri assegni e sussidi assistenziali;01-08-2017;
1031;1;0;"207,00";"207,00";SOLINAS MARIA ELENA; ;IMPEGNO DI SPESA PER RIMBORSO SPESE DI VIAGGIO AGLI ALUNNI PENDOLARI DELLE SCUOLE SECONDARIE DI II GRADO A.S. 2016/2017.;01-08-2017;674;0;154;1;Spese correnti;4;Trasferimenti correnti;2;Trasferimenti correnti a Famiglie;2;Interventi assistenziali;999;Altri assegni e sussidi assistenziali;01-08-2017;
1032;1;0;"207,00";"207,00";OBINO PAOLO; ;IMPEGNO DI SPESA PER RIMBORSO SPESE DI VIAGGIO AGLI ALUNNI PENDOLARI DELLE SCUOLE SECONDARIE DI II GRADO A.S. 2016/2017.;01-08-2017;674;0;154;1;Spese correnti;4;Trasferimenti correnti;2;Trasferimenti correnti a Famiglie;2;Interventi assistenziali;999;Altri assegni e sussidi assistenziali;01-08-2017;
1033;1;0;"207,00";"207,00";CHESSA GRAZIETTA; ;IMPEGNO DI SPESA PER RIMBORSO SPESE DI VIAGGIO AGLI ALUNNI PENDOLARI DELLE SCUOLE SECONDARIE DI II GRADO A.S. 2016/2017.;01-08-2017;674;0;154;1;Spese correnti;4;Trasferimenti correnti;2;Trasferimenti correnti a Famiglie;2;Interventi assistenziali;999;Altri assegni e sussidi assistenziali;01-08-2017;
1034;1;0;"207,00";"207,00";LANGIU CONSUELO; ;IMPEGNO DI SPESA PER RIMBORSO SPESE DI VIAGGIO AGLI ALUNNI PENDOLARI DELLE SCUOLE SECONDARIE DI II GRADO A.S. 2016/2017.;01-08-2017;674;0;154;1;Spese correnti;4;Trasferimenti correnti;2;Trasferimenti correnti a Famiglie;2;Interventi assistenziali;999;Altri assegni e sussidi assistenziali;01-08-2017;
1035;1;0;"207,00";"207,00";MURGIA ROSALIA; ;IMPEGNO DI SPESA PER RIMBORSO SPESE DI VIAGGIO AGLI ALUNNI PENDOLARI DELLE SCUOLE SECONDARIE DI II GRADO A.S. 2016/2017.;01-08-2017;674;0;154;1;Spese correnti;4;Trasferimenti correnti;2;Trasferimenti correnti a Famiglie;2;Interventi assistenziali;999;Altri assegni e sussidi assistenziali;01-08-2017;
1036;1;0;"207,00";"207,00";CORDA SONIA; ;IMPEGNO DI SPESA PER RIMBORSO SPESE DI VIAGGIO AGLI ALUNNI PENDOLARI DELLE SCUOLE SECONDARIE DI II GRADO A.S. 2016/2017.;01-08-2017;674;0;154;1;Spese correnti;4;Trasferimenti correnti;2;Trasferimenti correnti a Famiglie;2;Interventi assistenziali;999;Altri assegni e sussidi assistenziali;01-08-2017;
1037;1;0;"857,00";"857,00";CHESSA MARIA GIOVANNA; ;IMPEGNO DI SPESA PER RIMBORSO SPESE DI VIAGGIO AGLI ALUNNI PENDOLARI DELLE SCUOLE SECONDARIE DI II GRADO A.S. 2016/2017.;01-08-2017;674;0;154;1;Spese correnti;4;Trasferimenti correnti;2;Trasferimenti correnti a Famiglie;2;Interventi assistenziali;999;Altri assegni e sussidi assistenziali;01-08-2017;
1038;1;0;"118,00";"118,00";COLOMAIU CHIARA; ;IMPEGNO DI SPESA PER RIMBORSO SPESE DI VIAGGIO AGLI ALUNNI PENDOLARI DELLE SCUOLE SECONDARIE DI II GRADO A.S. 2016/2017.;01-08-2017;674;0;154;1;Spese correnti;4;Trasferimenti correnti;2;Trasferimenti correnti a Famiglie;2;Interventi assistenziali;999;Altri assegni e sussidi assistenziali;01-08-2017;
1039;1;0;"118,00";"118,00";LADU MARIA CRISTINA; ;IMPEGNO DI SPESA PER RIMBORSO SPESE DI VIAGGIO AGLI ALUNNI PENDOLARI DELLE SCUOLE SECONDARIE DI II GRADO A.S. 2016/2017.;01-08-2017;674;0;154;1;Spese correnti;4;Trasferimenti correnti;2;Trasferimenti correnti a Famiglie;2;Interventi assistenziali;999;Altri assegni e sussidi assistenziali;01-08-2017;
1040;1;0;"319,00";"319,00";PULINAS CATERINA; ;IMPEGNO DI SPESA PER RIMBORSO SPESE DI VIAGGIO AGLI ALUNNI PENDOLARI DELLE SCUOLE SECONDARIE DI II GRADO A.S. 2016/2017.;01-08-2017;674;0;154;1;Spese correnti;4;Trasferimenti correnti;2;Trasferimenti correnti a Famiglie;2;Interventi assistenziali;999;Altri assegni e sussidi assistenziali;01-08-2017;
1041;1;0;"207,00";"207,00";FIORI OLGA; ;IMPEGNO DI SPESA PER RIMBORSO SPESE DI VIAGGIO AGLI ALUNNI PENDOLARI DELLE SCUOLE SECONDARIE DI II GRADO A.S. 2016/2017.;01-08-2017;674;0;154;1;Spese correnti;4;Trasferimenti correnti;2;Trasferimenti correnti a Famiglie;2;Interventi assistenziali;999;Altri assegni e sussidi assistenziali;01-08-2017;
1042;1;0;"489,00";"489,00";SOTGIU ANASTASIA; ;IMPEGNO DI SPESA PER RIMBORSO SPESE DI VIAGGIO AGLI ALUNNI PENDOLARI DELLE SCUOLE SECONDARIE DI II GRADO A.S. 2016/2017.;01-08-2017;674;0;154;1;Spese correnti;4;Trasferimenti correnti;2;Trasferimenti correnti a Famiglie;2;Interventi assistenziali;999;Altri assegni e sussidi assistenziali;01-08-2017;
1043;1;0;"118,00";"118,00";SOTGIU GAVINA; ;IMPEGNO DI SPESA PER RIMBORSO SPESE DI VIAGGIO AGLI ALUNNI PENDOLARI DELLE SCUOLE SECONDARIE DI II GRADO A.S. 2016/2017.;01-08-2017;674;0;154;1;Spese correnti;4;Trasferimenti correnti;2;Trasferimenti correnti a Famiglie;2;Interventi assistenziali;999;Altri assegni e sussidi assistenziali;01-08-2017;
1044;1;0;"207,00";"207,00";SOLINAS ANNA RITA; ;IMPEGNO DI SPESA PER RIMBORSO SPESE DI VIAGGIO AGLI ALUNNI PENDOLARI DELLE SCUOLE SECONDARIE DI II GRADO A.S. 2016/2017.;01-08-2017;674;0;154;1;Spese correnti;4;Trasferimenti correnti;2;Trasferimenti correnti a Famiglie;2;Interventi assistenziali;999;Altri assegni e sussidi assistenziali;01-08-2017;
1045;1;0;"207,00";"207,00";SPANU ANTONIETTA; ;IMPEGNO DI SPESA PER RIMBORSO SPESE DI VIAGGIO AGLI ALUNNI PENDOLARI DELLE SCUOLE SECONDARIE DI II GRADO A.S. 2016/2017.;01-08-2017;674;0;154;1;Spese correnti;4;Trasferimenti correnti;2;Trasferimenti correnti a Famiglie;2;Interventi assistenziali;999;Altri assegni e sussidi assistenziali;01-08-2017;
1046;1;0;"650,00";"650,00";NICHOLSON SIOBHAN MARIA; ;IMPEGNO DI SPESA PER RIMBORSO SPESE DI VIAGGIO AGLI ALUNNI PENDOLARI DELLE SCUOLE SECONDARIE DI II GRADO A.S. 2016/2017.;01-08-2017;674;0;154;1;Spese correnti;4;Trasferimenti correnti;2;Trasferimenti correnti a Famiglie;2;Interventi assistenziali;999;Altri assegni e sussidi assistenziali;01-08-2017;
1047;1;0;"742,00";"742,00";BARROCU ELEONORA FRANCA; ;IMPEGNO DI SPESA PER RIMBORSO SPESE DI VIAGGIO AGLI ALUNNI PENDOLARI DELLE SCUOLE SECONDARIE DI II GRADO A.S. 2016/2017.;01-08-2017;674;0;154;1;Spese correnti;4;Trasferimenti correnti;2;Trasferimenti correnti a Famiglie;2;Interventi assistenziali;999;Altri assegni e sussidi assistenziali;01-08-2017;
1048;1;0;"207,00";"207,00";VINCIS SILVANA; ;IMPEGNO DI SPESA PER RIMBORSO SPESE DI VIAGGIO AGLI ALUNNI PENDOLARI DELLE SCUOLE SECONDARIE DI II GRADO A.S. 2016/2017.;01-08-2017;674;0;154;1;Spese correnti;4;Trasferimenti correnti;2;Trasferimenti correnti a Famiglie;2;Interventi assistenziali;999;Altri assegni e sussidi assistenziali;01-08-2017;
1049;1;0;"207,00";"207,00";FOIS GIOVANNA; ;IMPEGNO DI SPESA PER RIMBORSO SPESE DI VIAGGIO AGLI ALUNNI PENDOLARI DELLE SCUOLE SECONDARIE DI II GRADO A.S. 2016/2017.;01-08-2017;674;0;154;1;Spese correnti;4;Trasferimenti correnti;2;Trasferimenti correnti a Famiglie;2;Interventi assistenziali;999;Altri assegni e sussidi assistenziali;01-08-2017;
1050;1;0;"207,00";"207,00";USAI ANDREA; ;IMPEGNO DI SPESA PER RIMBORSO SPESE DI VIAGGIO AGLI ALUNNI PENDOLARI DELLE SCUOLE SECONDARIE DI II GRADO A.S. 2016/2017.;01-08-2017;674;0;154;1;Spese correnti;4;Trasferimenti correnti;2;Trasferimenti correnti a Famiglie;2;Interventi assistenziali;999;Altri assegni e sussidi assistenziali;01-08-2017;
1051;1;0;"650,00";"650,00";BUA GIACOMINA; ;IMPEGNO DI SPESA PER RIMBORSO SPESE DI VIAGGIO AGLI ALUNNI PENDOLARI DELLE SCUOLE SECONDARIE DI II GRADO A.S. 2016/2017.;01-08-2017;674;0;154;1;Spese correnti;4;Trasferimenti correnti;2;Trasferimenti correnti a Famiglie;2;Interventi assistenziali;999;Altri assegni e sussidi assistenziali;01-08-2017;
1052;1;0;"650,00";"650,00";MARENIC VINCENZA; ;IMPEGNO DI SPESA PER RIMBORSO SPESE DI VIAGGIO AGLI ALUNNI PENDOLARI DELLE SCUOLE SECONDARIE DI II GRADO A.S. 2016/2017.;01-08-2017;674;0;154;1;Spese correnti;4;Trasferimenti correnti;2;Trasferimenti correnti a Famiglie;2;Interventi assistenziali;999;Altri assegni e sussidi assistenziali;01-08-2017;
1053;1;0;"530,00";"530,00";DEMONTIS ANTONELLA; ;IMPEGNO DI SPESA PER RIMBORSO SPESE DI VIAGGIO AGLI ALUNNI PENDOLARI DELLE SCUOLE SECONDARIE DI II GRADO A.S. 2016/2017.;01-08-2017;674;0;154;1;Spese correnti;4;Trasferimenti correnti;2;Trasferimenti correnti a Famiglie;2;Interventi assistenziali;999;Altri assegni e sussidi assistenziali;01-08-2017;
1054;1;0;"650,00";"650,00";PUDDU CATERINA; ;IMPEGNO DI SPESA PER RIMBORSO SPESE DI VIAGGIO AGLI ALUNNI PENDOLARI DELLE SCUOLE SECONDARIE DI II GRADO A.S. 2016/2017.;01-08-2017;674;0;154;1;Spese correnti;4;Trasferimenti correnti;2;Trasferimenti correnti a Famiglie;2;Interventi assistenziali;999;Altri assegni e sussidi assistenziali;01-08-2017;
1055;1;0;"650,00";"650,00";CAMPESI TIZIANA; ;IMPEGNO DI SPESA PER RIMBORSO SPESE DI VIAGGIO AGLI ALUNNI PENDOLARI DELLE SCUOLE SECONDARIE DI II GRADO A.S. 2016/2017.;01-08-2017;674;0;154;1;Spese correnti;4;Trasferimenti correnti;2;Trasferimenti correnti a Famiglie;2;Interventi assistenziali;999;Altri assegni e sussidi assistenziali;01-08-2017;
1056;1;0;"650,00";"650,00";FRAU GIUSEPPINA; ;IMPEGNO DI SPESA PER RIMBORSO SPESE DI VIAGGIO AGLI ALUNNI PENDOLARI DELLE SCUOLE SECONDARIE DI II GRADO A.S. 2016/2017.;01-08-2017;674;0;154;1;Spese correnti;4;Trasferimenti correnti;2;Trasferimenti correnti a Famiglie;2;Interventi assistenziali;999;Altri assegni e sussidi assistenziali;01-08-2017;
1057;1;0;"650,00";"650,00";MASALA BARTOLOMEO; ;IMPEGNO DI SPESA PER RIMBORSO SPESE DI VIAGGIO AGLI ALUNNI PENDOLARI DELLE SCUOLE SECONDARIE DI II GRADO A.S. 2016/2017.;01-08-2017;674;0;154;1;Spese correnti;4;Trasferimenti correnti;2;Trasferimenti correnti a Famiglie;2;Interventi assistenziali;999;Altri assegni e sussidi assistenziali;01-08-2017;
1058;1;0;"1.671,00";"1.671,00";PILIU FRANCESCO; ;IMPEGNO DI SPESA PER RIMBORSO SPESE DI VIAGGIO AGLI ALUNNI PENDOLARI DELLE SCUOLE SECONDARIE DI II GRADO A.S. 2016/2017.;01-08-2017;674;0;154;1;Spese correnti;4;Trasferimenti correnti;2;Trasferimenti correnti a Famiglie;2;Interventi assistenziali;999;Altri assegni e sussidi assistenziali;01-08-2017;
1059;1;0;"1.300,00";"1.300,00";SATTA LEONARDA; ;IMPEGNO DI SPESA PER RIMBORSO SPESE DI VIAGGIO AGLI ALUNNI PENDOLARI DELLE SCUOLE SECONDARIE DI II GRADO A.S. 2016/2017.;01-08-2017;674;0;154;1;Spese correnti;4;Trasferimenti correnti;2;Trasferimenti correnti a Famiglie;2;Interventi assistenziali;999;Altri assegni e sussidi assistenziali;01-08-2017;
1060;1;0;"650,00";"650,00";BAZZU MONICA; ;IMPEGNO DI SPESA PER RIMBORSO SPESE DI VIAGGIO AGLI ALUNNI PENDOLARI DELLE SCUOLE SECONDARIE DI II GRADO A.S. 2016/2017.;01-08-2017;674;0;154;1;Spese correnti;4;Trasferimenti correnti;2;Trasferimenti correnti a Famiglie;2;Interventi assistenziali;999;Altri assegni e sussidi assistenziali;01-08-2017;
1061;1;0;"650,00";"650,00";BARROCU PIETRO; ;IMPEGNO DI SPESA PER RIMBORSO SPESE DI VIAGGIO AGLI ALUNNI PENDOLARI DELLE SCUOLE SECONDARIE DI II GRADO A.S. 2016/2017.;01-08-2017;674;0;154;1;Spese correnti;4;Trasferimenti correnti;2;Trasferimenti correnti a Famiglie;2;Interventi assistenziali;999;Altri assegni e sussidi assistenziali;01-08-2017;
1062;1;0;"8.877,48";"8.877,48";GPM RESTAURI s.r.l.;ZE21C50EB7;Fatt.n. FATTPA 9_17 del 20/07/2017;01-08-2017;3121;0;313;2;Spese in conto capitale;2;Investimenti fissi lordi e acquisto di terreni;1;Beni materiali;9;Beni immobili;12;Infrastrutture stradali;01-08-2017;
1063;1;0;"1.497,20";"1.497,20";GPM RESTAURI s.r.l.;ZE21C50EB7;"Fatt.n. FATTPA 10_17 del 20/07/2017 Comune di Tula-Lavori di manutenzione straordinaria vie Cavour-Mazzini,realizzazione intervento di posa cavidotto per interramento linee elettriche esterne-CIG:Z761F2B053 Det.98 del 28/06/2017";01-08-2017;3121;0;312;2;Spese in conto capitale;2;Investimenti fissi lordi e acquisto di terreni;1;Beni materiali;9;Beni immobili;12;Infrastrutture stradali;01-08-2017;
1064;1;0;"2.693,76";"2.693,76";GPM RESTAURI s.r.l.;ZE21C50EB7;"Fatt.n. FATTPA 10_17 del 20/07/2017 Comune di Tula-Lavori di manutenzione straordinaria vie Cavour-Mazzini,realizzazione intervento di posa cavidotto per interramento linee elettriche esterne-CIG:Z761F2B053 Det.98 del 28/06/2017";01-08-2017;3121;0;313;2;Spese in conto capitale;2;Investimenti fissi lordi e acquisto di terreni;1;Beni materiali;9;Beni immobili;12;Infrastrutture stradali;01-08-2017;
1065;1;0;"3.768,82";"3.768,82";GPM RESTAURI s.r.l.;Z761F2B053;"Fatt.n. FATTPA 10_17 del 20/07/2017 Comune di Tula-Lavori di manutenzione straordinaria vie Cavour-Mazzini,realizzazione intervento di posa cavidotto per interramento linee elettriche esterne-CIG:Z761F2B053 Det.98 del 28/06/2017";01-08-2017;3121;0;146;2;Spese in conto capitale;2;Investimenti fissi lordi e acquisto di terreni;1;Beni materiali;9;Beni immobili;12;Infrastrutture stradali;01-08-2017;
1066;1;0;"24,35";"24,35";MC LINK SPA;Z371DDA551;Fatt.n. 610001733 del 17/07/2017 FATTURA DI VENDITA SERVIZI;01-08-2017;118;3;64;1;Spese correnti;3;Acquisto di beni e servizi;2;Acquisto di servizi;5;Utenze e canoni;1;Telefonia fissa;01-08-2017;
1067;1;0;"1.171,50";"1.171,50";SABA ANNA; ;APPROVAZIONE BANDO  PER L'EROGAZIONE DI CONTRIBUTI A BENEFICIO DI PRIVATI PER INTERVENTI DI RESTAURO MURATURE ESTERNE - COPERTURE CON RIQUALIFICAZIONE ENERGETICA- INSTALLAZIONE SOLARE TERMICO;01-08-2017;1820;0;104;1;Spese correnti;4;Trasferimenti correnti;2;Trasferimenti correnti a Famiglie;5;Altri trasferimenti a famiglie;999;Altri trasferimenti a famiglie n.a.c.;01-08-2017;
1068;1;0;"3.331,37";"3.331,37";BECCA MARIO; ;APPROVAZIONE BANDO  PER L'EROGAZIONE DI CONTRIBUTI A BENEFICIO DI PRIVATI PER INTERVENTI DI RESTAURO MURATURE ESTERNE - COPERTURE CON RIQUALIFICAZIONE ENERGETICA- INSTALLAZIONE SOLARE TERMICO;01-08-2017;1820;0;104;1;Spese correnti;4;Trasferimenti correnti;2;Trasferimenti correnti a Famiglie;5;Altri trasferimenti a famiglie;999;Altri trasferimenti a famiglie n.a.c.;01-08-2017;
1069;1;0;"1.254,00";"1.254,00";CASULA FLAVIO; ;APPROVAZIONE BANDO  PER L'EROGAZIONE DI CONTRIBUTI A BENEFICIO DI PRIVATI PER INTERVENTI DI RESTAURO MURATURE ESTERNE - COPERTURE CON RIQUALIFICAZIONE ENERGETICA- INSTALLAZIONE SOLARE TERMICO;01-08-2017;1820;0;104;1;Spese correnti;4;Trasferimenti correnti;2;Trasferimenti correnti a Famiglie;5;Altri trasferimenti a famiglie;999;Altri trasferimenti a famiglie n.a.c.;01-08-2017;
1070;1;0;"13.377,02";"13.377,02";COOP. SPES a r.l.;698931338C;Fatt.n. 31 PA del 30/06/2017 Fattura Cliente;01-08-2017;3516;0;323;2;Spese in conto capitale;5;Altre spese in conto capitale;99;Altre spese in conto capitale n.a.c.;99;Altre spese in conto capitale n.a.c.;999;Altre spese in conto capitale n.a.c.;01-08-2017;
1071;1;0;"1.133,81";"1.133,81";COOP. NUOVE IDEE;Z7C1E09453;Fatt.n. FATTPA 82_17 del 31/07/2017;01-08-2017;715;0;76;1;Spese correnti;3;Acquisto di beni e servizi;2;Acquisto di servizi;11;Prestazioni professionali e specialistiche;999;Altre prestazioni professionali e specialistiche n.a.c.;01-08-2017;
1072;1;0;"332,93";"332,93";NETSPORTIQUE;Z101F3E03B;Annullamenteo determinazione n. 155 del 11.05.2017  e affidamento incarico alla ditta netsportique  fornitura n. 1 copia di reti calcio a 11 e n. 2 copia di reti calcio a 5;01-08-2017;2614;0;145;2;Spese in conto capitale;2;Investimenti fissi lordi e acquisto di terreni;1;Beni materiali;4;Impianti e macchinari;2;Impianti;01-08-2017;
1073;1;0;"118,00";"118,00";SOLINAS MARIA GIUSEPPINA; ;IMPEGNO DI SPESA PER RIMBORSO SPESE DI VIAGGIO AGLI ALUNNI PENDOLARI DELLE SCUOLE SECONDARIE DI II GRADO A.S. 2016/2017.;02-08-2017;674;0;154;1;Spese correnti;4;Trasferimenti correnti;2;Trasferimenti correnti a Famiglie;2;Interventi assistenziali;999;Altri assegni e sussidi assistenziali;02-08-2017;
1074;1;0;"200,00";"200,00";OMESSO NOMINATIVO NEL RISPETTO DELLA NORMATIVA SULLA PROTEZIONE DATI PERSONALI; ;SERVIZI ALLA PERSONA. INSERIMENTO SOFFERENTI MENTALI IN STRUTTURE RESIDENZIALI.IMPEGNO DI SPESA ANNO 2017.;02-08-2017;1412;0;18;1;Spese correnti;3;Acquisto di beni e servizi;2;Acquisto di servizi;15;Contratti di servizio pubblico;9;Contratti di servizio di assistenza sociale domiciliare;02-08-2017;
1075;1;0;"115,06";"115,06";OMESSO NOMINATIVO NEL RISPETTO DELLA NORMATIVA SULLA PROTEZIONE DATI PERSONALI; ;DELIBERA REGIONALE N. 70/15/2016 -FONDO REGIONALE PER LA NONAUTOSUFFICIENZA.PROROGA PIANI PERSONALIZZATI LEGGE N. 162/1998 ANNUALITA'2016/GESTIONE 2017.IMPEGNO DI SPESA .;02-08-2017;1420;2;27;1;Spese correnti;4;Trasferimenti correnti;2;Trasferimenti correnti a Famiglie;2;Interventi assistenziali;999;Altri assegni e sussidi assistenziali;02-08-2017;
1076;1;0;"241,69";"241,69";OMESSO NOMINATIVO NEL RISPETTO DELLA NORMATIVA SULLA PROTEZIONE DATI PERSONALI; ;DELIBERA REGIONALE N. 70/15/2016 -FONDO REGIONALE PER LA NONAUTOSUFFICIENZA.PROROGA PIANI PERSONALIZZATI LEGGE N. 162/1998 ANNUALITA'2016/GESTIONE 2017.IMPEGNO DI SPESA .;02-08-2017;1420;2;27;1;Spese correnti;4;Trasferimenti correnti;2;Trasferimenti correnti a Famiglie;2;Interventi assistenziali;999;Altri assegni e sussidi assistenziali;02-08-2017;
1077;1;0;"187,50";"187,50";OMESSO NOMINATIVO NEL RISPETTO DELLA NORMATIVA SULLA PROTEZIONE DATI PERSONALI; ;DELIBERA REGIONALE N. 70/15/2016 -FONDO REGIONALE PER LA NONAUTOSUFFICIENZA.PROROGA PIANI PERSONALIZZATI LEGGE N. 162/1998 ANNUALITA'2016/GESTIONE 2017.IMPEGNO DI SPESA .;02-08-2017;1420;2;27;1;Spese correnti;4;Trasferimenti correnti;2;Trasferimenti correnti a Famiglie;2;Interventi assistenziali;999;Altri assegni e sussidi assistenziali;02-08-2017;
1078;1;0;"133,33";"133,33";OMESSO NOMINATIVO NEL RISPETTO DELLA NORMATIVA SULLA PROTEZIONE DATI PERSONALI; ;DELIBERA REGIONALE N. 70/15/2016 -FONDO REGIONALE PER LA NONAUTOSUFFICIENZA.PROROGA PIANI PERSONALIZZATI LEGGE N. 162/1998 ANNUALITA'2016/GESTIONE 2017.IMPEGNO DI SPESA .;02-08-2017;1420;2;27;1;Spese correnti;4;Trasferimenti correnti;2;Trasferimenti correnti a Famiglie;2;Interventi assistenziali;999;Altri assegni e sussidi assistenziali;02-08-2017;
1079;1;0;"89,09";"89,09";OMESSO NOMINATIVO NEL RISPETTO DELLA NORMATIVA SULLA PROTEZIONE DATI PERSONALI; ;DELIBERA REGIONALE N. 70/15/2016 -FONDO REGIONALE PER LA NONAUTOSUFFICIENZA.PROROGA PIANI PERSONALIZZATI LEGGE N. 162/1998 ANNUALITA'2016/GESTIONE 2017.IMPEGNO DI SPESA .;02-08-2017;1420;2;27;1;Spese correnti;4;Trasferimenti correnti;2;Trasferimenti correnti a Famiglie;2;Interventi assistenziali;999;Altri assegni e sussidi assistenziali;02-08-2017;
1080;1;0;"137,46";"137,46";OMESSO NOMINATIVO NEL RISPETTO DELLA NORMATIVA SULLA PROTEZIONE DATI PERSONALI; ;DELIBERA REGIONALE N. 70/15/2016 -FONDO REGIONALE PER LA NONAUTOSUFFICIENZA.PROROGA PIANI PERSONALIZZATI LEGGE N. 162/1998 ANNUALITA'2016/GESTIONE 2017.IMPEGNO DI SPESA .;02-08-2017;1420;2;27;1;Spese correnti;4;Trasferimenti correnti;2;Trasferimenti correnti a Famiglie;2;Interventi assistenziali;999;Altri assegni e sussidi assistenziali;02-08-2017;
1081;1;0;"193,85";"193,85";OMESSO NOMINATIVO NEL RISPETTO DELLA NORMATIVA SULLA PROTEZIONE DATI PERSONALI; ;DELIBERA REGIONALE N. 70/15/2016 -FONDO REGIONALE PER LA NONAUTOSUFFICIENZA.PROROGA PIANI PERSONALIZZATI LEGGE N. 162/1998 ANNUALITA'2016/GESTIONE 2017.IMPEGNO DI SPESA .;02-08-2017;1420;2;27;1;Spese correnti;4;Trasferimenti correnti;2;Trasferimenti correnti a Famiglie;2;Interventi assistenziali;999;Altri assegni e sussidi assistenziali;02-08-2017;
1082;1;0;"92,93";"92,93";OMESSO NOMINATIVO NEL RISPETTO DELLA NORMATIVA SULLA PROTEZIONE DATI PERSONALI; ;DELIBERA REGIONALE N. 70/15/2016 -FONDO REGIONALE PER LA NONAUTOSUFFICIENZA.PROROGA PIANI PERSONALIZZATI LEGGE N. 162/1998 ANNUALITA'2016/GESTIONE 2017.IMPEGNO DI SPESA .;02-08-2017;1420;2;27;1;Spese correnti;4;Trasferimenti correnti;2;Trasferimenti correnti a Famiglie;2;Interventi assistenziali;999;Altri assegni e sussidi assistenziali;02-08-2017;
1083;1;0;"114,66";"114,66";OMESSO NOMINATIVO NEL RISPETTO DELLA NORMATIVA SULLA PROTEZIONE DATI PERSONALI; ;DELIBERA REGIONALE N. 70/15/2016 -FONDO REGIONALE PER LA NONAUTOSUFFICIENZA.PROROGA PIANI PERSONALIZZATI LEGGE N. 162/1998 ANNUALITA'2016/GESTIONE 2017.IMPEGNO DI SPESA .;02-08-2017;1420;2;27;1;Spese correnti;4;Trasferimenti correnti;2;Trasferimenti correnti a Famiglie;2;Interventi assistenziali;999;Altri assegni e sussidi assistenziali;02-08-2017;
1084;1;0;"318,50";"318,50";OMESSO NOMINATIVO NEL RISPETTO DELLA NORMATIVA SULLA PROTEZIONE DATI PERSONALI; ;DELIBERA REGIONALE N. 70/15/2016 -FONDO REGIONALE PER LA NONAUTOSUFFICIENZA.PROROGA PIANI PERSONALIZZATI LEGGE N. 162/1998 ANNUALITA'2016/GESTIONE 2017.IMPEGNO DI SPESA .;02-08-2017;1420;2;27;1;Spese correnti;4;Trasferimenti correnti;2;Trasferimenti correnti a Famiglie;2;Interventi assistenziali;999;Altri assegni e sussidi assistenziali;02-08-2017;
1085;1;0;"590,34";"590,34";OMESSO NOMINATIVO NEL RISPETTO DELLA NORMATIVA SULLA PROTEZIONE DATI PERSONALI; ;DELIBERA REGIONALE N. 70/15/2016 -FONDO REGIONALE PER LA NONAUTOSUFFICIENZA.PROROGA PIANI PERSONALIZZATI LEGGE N. 162/1998 ANNUALITA'2016/GESTIONE 2017.IMPEGNO DI SPESA .;02-08-2017;1420;2;27;1;Spese correnti;4;Trasferimenti correnti;2;Trasferimenti correnti a Famiglie;2;Interventi assistenziali;999;Altri assegni e sussidi assistenziali;02-08-2017;
1086;1;0;"1.004,65";"1.004,65";OMESSO NOMINATIVO NEL RISPETTO DELLA NORMATIVA SULLA PROTEZIONE DATI PERSONALI; ;DELIBERA REGIONALE N. 70/15/2016 -FONDO REGIONALE PER LA NONAUTOSUFFICIENZA.PROROGA PIANI PERSONALIZZATI LEGGE N. 162/1998 ANNUALITA'2016/GESTIONE 2017.IMPEGNO DI SPESA .;02-08-2017;1420;2;27;1;Spese correnti;4;Trasferimenti correnti;2;Trasferimenti correnti a Famiglie;2;Interventi assistenziali;999;Altri assegni e sussidi assistenziali;02-08-2017;
1087;1;0;"115,24";"115,24";OMESSO NOMINATIVO NEL RISPETTO DELLA NORMATIVA SULLA PROTEZIONE DATI PERSONALI; ;DELIBERA REGIONALE N. 70/15/2016 -FONDO REGIONALE PER LA NONAUTOSUFFICIENZA.PROROGA PIANI PERSONALIZZATI LEGGE N. 162/1998 ANNUALITA'2016/GESTIONE 2017.IMPEGNO DI SPESA .;02-08-2017;1420;2;27;1;Spese correnti;4;Trasferimenti correnti;2;Trasferimenti correnti a Famiglie;2;Interventi assistenziali;999;Altri assegni e sussidi assistenziali;02-08-2017;
1088;1;0;"155,52";"155,52";OMESSO NOMINATIVO NEL RISPETTO DELLA NORMATIVA SULLA PROTEZIONE DATI PERSONALI; ;DELIBERA REGIONALE N. 70/15/2016 -FONDO REGIONALE PER LA NONAUTOSUFFICIENZA.PROROGA PIANI PERSONALIZZATI LEGGE N. 162/1998 ANNUALITA'2016/GESTIONE 2017.IMPEGNO DI SPESA .;02-08-2017;1420;2;27;1;Spese correnti;4;Trasferimenti correnti;2;Trasferimenti correnti a Famiglie;2;Interventi assistenziali;999;Altri assegni e sussidi assistenziali;02-08-2017;
1089;1;0;"535,27";"535,27";OMESSO NOMINATIVO NEL RISPETTO DELLA NORMATIVA SULLA PROTEZIONE DATI PERSONALI; ;DELIBERA REGIONALE N. 70/15/2016 -FONDO REGIONALE PER LA NONAUTOSUFFICIENZA.PROROGA PIANI PERSONALIZZATI LEGGE N. 162/1998 ANNUALITA'2016/GESTIONE 2017.IMPEGNO DI SPESA .;02-08-2017;1420;2;27;1;Spese correnti;4;Trasferimenti correnti;2;Trasferimenti correnti a Famiglie;2;Interventi assistenziali;999;Altri assegni e sussidi assistenziali;02-08-2017;
1090;1;0;"151,50";"151,50";OMESSO NOMINATIVO NEL RISPETTO DELLA NORMATIVA SULLA PROTEZIONE DATI PERSONALI; ;DELIBERA REGIONALE N. 70/15/2016 -FONDO REGIONALE PER LA NONAUTOSUFFICIENZA.PROROGA PIANI PERSONALIZZATI LEGGE N. 162/1998 ANNUALITA'2016/GESTIONE 2017.IMPEGNO DI SPESA .;02-08-2017;1420;2;27;1;Spese correnti;4;Trasferimenti correnti;2;Trasferimenti correnti a Famiglie;2;Interventi assistenziali;999;Altri assegni e sussidi assistenziali;02-08-2017;
1091;1;0;"530,00";"530,00";BECCA MARIA ANTONIETTA; ;IMPEGNO DI SPESA PER RIMBORSO SPESE VIAGGIO STUDENTI PENDOLARI DELLE SCUOLE SECONDARIE DI II GRADO  A.S. 2016/2017.;02-08-2017;674;0;156;1;Spese correnti;4;Trasferimenti correnti;2;Trasferimenti correnti a Famiglie;2;Interventi assistenziali;999;Altri assegni e sussidi assistenziali;02-08-2017;
1092;1;0;"1.600,00";"1.600,00";Associazione Culturale di Musica SARDOBARDA;ZAC1F21F10;Organizzazione Rassegna E-State a Tula 2017. CONCERTO CAB COLLECTIVE;02-08-2017;746;0;137;1;Spese correnti;3;Acquisto di beni e servizi;2;Acquisto di servizi;2;"Organizzazione eventi, pubblicita` e servizi per trasferta";5;Organizzazione e partecipazione a manifestazioni e convegni;02-08-2017;
1093;1;0;"2.044,29";"2.044,29";COOP. SPES a r.l.;ZE71CACBD3;Fatt.n. 37 PA del 31/07/2017 Fattura Cliente;03-08-2017;118;5;23;1;Spese correnti;3;Acquisto di beni e servizi;2;Acquisto di servizi;13;Servizi ausiliari per il funzionamento dell'ente;2;Servizi di pulizia e lavanderia;03-08-2017;
1094;1;0;"6.498,78";"6.498,78";SINI CARLO;Z9B1C6A906;Fatt.n. FATTPA 2_17 del 02/08/2017;03-08-2017;3781;0;320;2;Spese in conto capitale;2;Investimenti fissi lordi e acquisto di terreni;1;Beni materiali;9;Beni immobili;15;Cimiteri;03-08-2017;
1095;1;0;"5.131,40";"5.131,40";SINI CARLO;Z9B1C6A906;Fatt.n. FATTPA 2_17 del 02/08/2017;03-08-2017;3781;0;390;2;Spese in conto capitale;2;Investimenti fissi lordi e acquisto di terreni;1;Beni materiali;9;Beni immobili;15;Cimiteri;03-08-2017;
1096;1;0;"13.377,02";"13.377,02";COOP. SPES a r.l.;698931338C;Fatt.n. 38 PA del 31/07/2017 Fattura Cliente;03-08-2017;3516;0;323;2;Spese in conto capitale;5;Altre spese in conto capitale;99;Altre spese in conto capitale n.a.c.;99;Altre spese in conto capitale n.a.c.;999;Altre spese in conto capitale n.a.c.;03-08-2017;
1097;1;0;"1.500,00";"1.500,00";SECCHI GIOVANNA; ;APPROVAZIONE BANDO  PER L'EROGAZIONE DI CONTRIBUTI A BENEFICIO DI PRIVATI PER INTERVENTI DI RESTAURO MURATURE ESTERNE - COPERTURE CON RIQUALIFICAZIONE ENERGETICA- INSTALLAZIONE SOLARE TERMICO;03-08-2017;1820;0;104;1;Spese correnti;4;Trasferimenti correnti;2;Trasferimenti correnti a Famiglie;5;Altri trasferimenti a famiglie;999;Altri trasferimenti a famiglie n.a.c.;03-08-2017;
1098;1;0;"4.000,00";"4.000,00";SORO GIUSEPPE; ;APPROVAZIONE BANDO  PER L'EROGAZIONE DI CONTRIBUTI A BENEFICIO DI PRIVATI PER INTERVENTI DI RESTAURO MURATURE ESTERNE - COPERTURE CON RIQUALIFICAZIONE ENERGETICA- INSTALLAZIONE SOLARE TERMICO;03-08-2017;1820;0;104;1;Spese correnti;4;Trasferimenti correnti;2;Trasferimenti correnti a Famiglie;5;Altri trasferimenti a famiglie;999;Altri trasferimenti a famiglie n.a.c.;03-08-2017;
1099;1;0;"97,66";"97,66";ENEL ENERGIA;ZED1E018D9;Fatt.n. 004801007134 del 14/07/2017;03-08-2017;566;4;70;1;Spese correnti;3;Acquisto di beni e servizi;2;Acquisto di servizi;5;Utenze e canoni;4;Energia elettrica;03-08-2017;
1100;1;0;"129,89";"129,89";OMESSO NOMINATIVO NEL RISPETTO DELLA NORMATIVA SULLA PROTEZIONE DATI PERSONALI; ;DELIBERA REGIONALE N. 70/15/2016 -FONDO REGIONALE PER LA NONAUTOSUFFICIENZA.PROROGA PIANI PERSONALIZZATI LEGGE N. 162/1998 ANNUALITA'2016/GESTIONE 2017.IMPEGNO DI SPESA .;04-08-2017;1420;2;27;1;Spese correnti;4;Trasferimenti correnti;2;Trasferimenti correnti a Famiglie;2;Interventi assistenziali;999;Altri assegni e sussidi assistenziali;04-08-2017;
1101;1;0;"601,06";"601,06";OMESSO NOMINATIVO NEL RISPETTO DELLA NORMATIVA SULLA PROTEZIONE DATI PERSONALI; ;DELIBERA REGIONALE N. 70/15/2016 -FONDO REGIONALE PER LA NONAUTOSUFFICIENZA.PROROGA PIANI PERSONALIZZATI LEGGE N. 162/1998 ANNUALITA'2016/GESTIONE 2017.IMPEGNO DI SPESA .;04-08-2017;1420;2;27;1;Spese correnti;4;Trasferimenti correnti;2;Trasferimenti correnti a Famiglie;2;Interventi assistenziali;999;Altri assegni e sussidi assistenziali;04-08-2017;
1102;1;0;"133,85";"133,85";OMESSO NOMINATIVO NEL RISPETTO DELLA NORMATIVA SULLA PROTEZIONE DATI PERSONALI; ;DELIBERA REGIONALE N. 70/15/2016 -FONDO REGIONALE PER LA NONAUTOSUFFICIENZA.PROROGA PIANI PERSONALIZZATI LEGGE N. 162/1998 ANNUALITA'2016/GESTIONE 2017.IMPEGNO DI SPESA .;04-08-2017;1420;2;27;1;Spese correnti;4;Trasferimenti correnti;2;Trasferimenti correnti a Famiglie;2;Interventi assistenziali;999;Altri assegni e sussidi assistenziali;04-08-2017;
1103;1;0;"662,66";"662,66";OMESSO NOMINATIVO NEL RISPETTO DELLA NORMATIVA SULLA PROTEZIONE DATI PERSONALI; ;DELIBERA REGIONALE N. 70/15/2016 -FONDO REGIONALE PER LA NONAUTOSUFFICIENZA.PROROGA PIANI PERSONALIZZATI LEGGE N. 162/1998 ANNUALITA'2016/GESTIONE 2017.IMPEGNO DI SPESA .;04-08-2017;1420;2;27;1;Spese correnti;4;Trasferimenti correnti;2;Trasferimenti correnti a Famiglie;2;Interventi assistenziali;999;Altri assegni e sussidi assistenziali;04-08-2017;
1104;1;0;"177,20";"177,20";OMESSO NOMINATIVO NEL RISPETTO DELLA NORMATIVA SULLA PROTEZIONE DATI PERSONALI; ;DELIBERA REGIONALE N. 70/15/2016 -FONDO REGIONALE PER LA NONAUTOSUFFICIENZA.PROROGA PIANI PERSONALIZZATI LEGGE N. 162/1998 ANNUALITA'2016/GESTIONE 2017.IMPEGNO DI SPESA .;04-08-2017;1420;2;27;1;Spese correnti;4;Trasferimenti correnti;2;Trasferimenti correnti a Famiglie;2;Interventi assistenziali;999;Altri assegni e sussidi assistenziali;04-08-2017;
1105;1;0;"807,80";"807,80";OMESSO NOMINATIVO NEL RISPETTO DELLA NORMATIVA SULLA PROTEZIONE DATI PERSONALI; ;DELIBERA REGIONALE N. 70/15/2016 -FONDO REGIONALE PER LA NONAUTOSUFFICIENZA.PROROGA PIANI PERSONALIZZATI LEGGE N. 162/1998 ANNUALITA'2016/GESTIONE 2017.IMPEGNO DI SPESA .;04-08-2017;1420;2;27;1;Spese correnti;4;Trasferimenti correnti;2;Trasferimenti correnti a Famiglie;2;Interventi assistenziali;999;Altri assegni e sussidi assistenziali;04-08-2017;
1106;1;0;"378,33";"378,33";OMESSO NOMINATIVO NEL RISPETTO DELLA NORMATIVA SULLA PROTEZIONE DATI PERSONALI; ;DELIBERA REGIONALE N. 70/15/2016 -FONDO REGIONALE PER LA NONAUTOSUFFICIENZA.PROROGA PIANI PERSONALIZZATI LEGGE N. 162/1998 ANNUALITA'2016/GESTIONE 2017.IMPEGNO DI SPESA .;04-08-2017;1420;2;27;1;Spese correnti;4;Trasferimenti correnti;2;Trasferimenti correnti a Famiglie;2;Interventi assistenziali;999;Altri assegni e sussidi assistenziali;04-08-2017;
1107;1;0;"870,78";"870,78";COOP. NUOVE IDEE;Z391D734B5;Fatt.n. FATTPA 83_17 del 03/08/2017;04-08-2017;1413;0;52;1;Spese correnti;3;Acquisto di beni e servizi;2;Acquisto di servizi;99;Altri servizi;999;Altri servizi diversi n.a.c.;04-08-2017;
1108;1;0;"5.164,47";"5.164,47";COOP. NUOVE IDEE;Z391D734B5;Fatt.n. FATTPA 84_17 del 03/08/2017;04-08-2017;1416;0;53;1;Spese correnti;3;Acquisto di beni e servizi;2;Acquisto di servizi;11;Prestazioni professionali e specialistiche;999;Altre prestazioni professionali e specialistiche n.a.c.;04-08-2017;
1109;1;0;"6.903,66";"6.903,66";COOP. NUOVE IDEE; ;Fatt.n. FATTPA 81_17 del 31/07/2017;04-08-2017;1420;0;26;1;Spese correnti;3;Acquisto di beni e servizi;2;Acquisto di servizi;15;Contratti di servizio pubblico;9;Contratti di servizio di assistenza sociale domiciliare;04-08-2017;
1110;1;0;"233,28";"233,28";L'ARCOBALENO di Muggianu Rosanna;ZCC1EAEC90;Fatt.n. 371B del 31/07/2017;04-08-2017;714;0;112;1;Spese correnti;3;Acquisto di beni e servizi;1;Acquisto di beni;1;"Giornali, riviste e pubblicazioni";2;Pubblicazioni;04-08-2017;
1111;1;0;"600,00";"600,00";Gruppo Folk San Giorgio USINI;ZAC1F21F10;Organizzazione Rassegna E-State a Tula 2017. Anticipazione del 40%;07-08-2017;746;0;137;1;Spese correnti;3;Acquisto di beni e servizi;2;Acquisto di servizi;2;"Organizzazione eventi, pubblicita` e servizi per trasferta";5;Organizzazione e partecipazione a manifestazioni e convegni;07-08-2017;
1112;1;0;"222,02";"222,02";OMESSO NOMINATIVO NEL RISPETTO DELLA NORMATIVA SULLA PROTEZIONE DATI PERSONALI; ;DELIBERA REGIONALE N. 70/15/2016 -FONDO REGIONALE PER LA NONAUTOSUFFICIENZA.PROROGA PIANI PERSONALIZZATI LEGGE N. 162/1998 ANNUALITA'2016/GESTIONE 2017.IMPEGNO DI SPESA .;07-08-2017;1420;2;27;1;Spese correnti;4;Trasferimenti correnti;2;Trasferimenti correnti a Famiglie;2;Interventi assistenziali;999;Altri assegni e sussidi assistenziali;07-08-2017;
1113;1;0;"5.985,93";"5.985,93";ORVEI COOPERATIVA SOCIALE ONLUS;ZEA1F3D079;Fatt.n. 03/PA del 03/08/2017 INTERVENTO PULIZIA CADITOIE CENTRO ABITATO CIG ZEA1F3D079 DET. N. 100 DEL 04/07/2017;07-08-2017;1011;0;144;1;Spese correnti;3;Acquisto di beni e servizi;2;Acquisto di servizi;9;Manutenzione ordinaria e riparazioni;8;Manutenzione ordinaria e riparazioni di beni immobili;07-08-2017;
1114;1;0;"3.631,78";"3.631,78";PUDDU PALMIRO;ZD71C6B73C;Fatt.n. 11/PA/2017 del 31/07/2017 SERVIZIO;07-08-2017;1264;0;20;1;Spese correnti;3;Acquisto di beni e servizi;2;Acquisto di servizi;15;Contratti di servizio pubblico;4;Contratti di servizio per la raccolta rifiuti;07-08-2017;
1115;1;0;"42,00";"42,00";"EDILCAMPUS S.N.C. DI CAMPUS MASSIMILIANO &amp; CAMPUS";Z4B1E69347;Fatt.n. 5/PA del 30/06/2017;08-08-2017;1261;0;98;1;Spese correnti;3;Acquisto di beni e servizi;2;Acquisto di servizi;99;Altri servizi;999;Altri servizi diversi n.a.c.;08-08-2017;
1116;1;0;"140,03";"140,03";FIORI MARIO;z611ce4d1d;Fatt.n. FATTPA 8_17 del 31/07/2017;08-08-2017;1300;8;30;1;Spese correnti;3;Acquisto di beni e servizi;1;Acquisto di beni;2;Altri beni di consumo;2;"Carburanti, combustibili e lubrificanti";08-08-2017;
1117;1;0;"4.023,56";"4.023,56";BBG SARDEGNA SRL;Z311CF46F1;Fatt.n. FATTPA 43_17 del 07/08/2017;08-08-2017;200;0;6;1;Spese correnti;3;Acquisto di beni e servizi;2;Acquisto di servizi;99;Altri servizi;999;Altri servizi diversi n.a.c.;08-08-2017;
1118;1;0;"568,25";"568,25";FIORI MARIO;ZD71F9B04B;Fatt.n. FATTPA 11_17 del 09/08/2017;10-08-2017;1261;0;163;1;Spese correnti;3;Acquisto di beni e servizi;2;Acquisto di servizi;99;Altri servizi;999;Altri servizi diversi n.a.c.;10-08-2017;
1119;1;0;"1.350,78";"1.350,78";FIORI MARIO;ZAD1F9B1B8;Fatt.n. FATTPA 12_17 del 09/08/2017;10-08-2017;3126;0;164;2;Spese in conto capitale;2;Investimenti fissi lordi e acquisto di terreni;1;Beni materiali;9;Beni immobili;14;Opere per la sistemazione del suolo;10-08-2017;
1120;1;0;"1.952,00";"1.952,00";LADU PIETRO FRANCESCO;Z671F99025;Fatt.n. FATTPA 6_17 del 08/08/2017;10-08-2017;3121;0;160;2;Spese in conto capitale;2;Investimenti fissi lordi e acquisto di terreni;1;Beni materiali;9;Beni immobili;12;Infrastrutture stradali;10-08-2017;
1121;1;0;"2.150,37";"2.150,37";LADU PIETRO FRANCESCO;Z4F1F791B7;Fatt.n. FATTPA 5_17 del 08/08/2017;10-08-2017;255;0;158;1;Spese correnti;3;Acquisto di beni e servizi;2;Acquisto di servizi;9;Manutenzione ordinaria e riparazioni;8;Manutenzione ordinaria e riparazioni di beni immobili;10-08-2017;
1122;1;0;"2.180,63";"2.180,63";LADU PIETRO FRANCESCO;Z4F1F791B7;Fatt.n. FATTPA 5_17 del 08/08/2017;10-08-2017;3140;0;159;2;Spese in conto capitale;2;Investimenti fissi lordi e acquisto di terreni;1;Beni materiali;9;Beni immobili;999;Beni immobili n.a.c.;10-08-2017;
1123;1;0;"103,00";"103,00";OMESSO NOMINATIVO NEL RISPETTO DELLA NORMATIVA SULLA PROTEZIONE DATI PERSONALI; ;DELIBERA REGIONALE N. 70/15/2016 -FONDO REGIONALE PER LA NONAUTOSUFFICIENZA.PROROGA PIANI PERSONALIZZATI LEGGE N. 162/1998 ANNUALITA'2016/GESTIONE 2017.IMPEGNO DI SPESA .;10-08-2017;1420;2;27;1;Spese correnti;4;Trasferimenti correnti;2;Trasferimenti correnti a Famiglie;2;Interventi assistenziali;999;Altri assegni e sussidi assistenziali;10-08-2017;
1124;1;0;"156,48";"156,48";OMESSO NOMINATIVO NEL RISPETTO DELLA NORMATIVA SULLA PROTEZIONE DATI PERSONALI; ;DELIBERA REGIONALE N. 70/15/2016 -FONDO REGIONALE PER LA NONAUTOSUFFICIENZA.PROROGA PIANI PERSONALIZZATI LEGGE N. 162/1998 ANNUALITA'2016/GESTIONE 2017.IMPEGNO DI SPESA .;10-08-2017;1420;2;27;1;Spese correnti;4;Trasferimenti correnti;2;Trasferimenti correnti a Famiglie;2;Interventi assistenziali;999;Altri assegni e sussidi assistenziali;10-08-2017;
1125;1;0;"216,23";"216,23";OMESSO NOMINATIVO NEL RISPETTO DELLA NORMATIVA SULLA PROTEZIONE DATI PERSONALI; ;DELIBERA REGIONALE N. 70/15/2016 -FONDO REGIONALE PER LA NONAUTOSUFFICIENZA.PROROGA PIANI PERSONALIZZATI LEGGE N. 162/1998 ANNUALITA'2016/GESTIONE 2017.IMPEGNO DI SPESA .;10-08-2017;1420;2;27;1;Spese correnti;4;Trasferimenti correnti;2;Trasferimenti correnti a Famiglie;2;Interventi assistenziali;999;Altri assegni e sussidi assistenziali;10-08-2017;
1126;1;0;"604,00";"604,00";OMESSO NOMINATIVO NEL RISPETTO DELLA NORMATIVA SULLA PROTEZIONE DATI PERSONALI; ;L.R. 11/185-PROVVIDENZE A FAVORE DI NEFROPATICI-PRESA IN CARICO ANNO 2017 E IMPEGNO DI SPESA.;10-08-2017;1438;0;33;1;Spese correnti;4;Trasferimenti correnti;2;Trasferimenti correnti a Famiglie;2;Interventi assistenziali;999;Altri assegni e sussidi assistenziali;10-08-2017;
1127;1;0;"604,00";"604,00";OMESSO NOMINATIVO NEL RISPETTO DELLA NORMATIVA SULLA PROTEZIONE DATI PERSONALI; ;L.R. 11/185-PROVVIDENZE A FAVORE DI NEFROPATICI-PRESA IN CARICO ANNO 2017 E IMPEGNO DI SPESA.;10-08-2017;1438;0;33;1;Spese correnti;4;Trasferimenti correnti;2;Trasferimenti correnti a Famiglie;2;Interventi assistenziali;999;Altri assegni e sussidi assistenziali;10-08-2017;
1128;1;0;"2.700,01";"2.700,01";CONSAI SRL;Z1D1B035DF;RINNOVO POLIZZA RC COLPA LIEVE DUAL -  IMPEGNO E LIQUIDAZIONE. DET. N.255;10-08-2017;100;0;167;1;Spese correnti;10;Altre spese correnti;4;Premi di assicurazione;1;Premi di assicurazione contro i danni;3;Premi di assicurazione per responsabilità civile verso terzi;10-08-2017;
1166;1;0;"1.279,57";"1.279,57";SERVIZIO ELETTRICO NAZIONALE - SERVIZIO DI MAGGIOR TUTE;ZF31E46592;Fatt.n. 907151111749411 del 10/08/2017;18-08-2017;118;4;86;1;Spese correnti;3;Acquisto di beni e servizi;2;Acquisto di servizi;5;Utenze e canoni;4;Energia elettrica;18-08-2017;
1167;1;0;"75,58";"75,58";SERVIZIO ELETTRICO NAZIONALE - SERVIZIO DI MAGGIOR TUTE;XA2192E4EF;Fatt.n. 907150481720014 del 10/08/2017;18-08-2017;118;4;82;1;Spese correnti;3;Acquisto di beni e servizi;2;Acquisto di servizi;5;Utenze e canoni;4;Energia elettrica;18-08-2017;
1168;1;0;"638,62";"638,62";ENEL ENERGIA;Z5E1D69123;Fatt.n. 004801116903 del 11/08/2017;18-08-2017;1012;4;42;1;Spese correnti;3;Acquisto di beni e servizi;2;Acquisto di servizi;5;Utenze e canoni;4;Energia elettrica;18-08-2017;
1169;1;0;"76,74";"76,74";ENEL ENERGIA;Z5E1D69123;Fatt.n. 004801116904 del 11/08/2017;18-08-2017;1012;4;42;1;Spese correnti;3;Acquisto di beni e servizi;2;Acquisto di servizi;5;Utenze e canoni;4;Energia elettrica;18-08-2017;
1170;1;0;"1.366,31";"1.366,31";ENEL ENERGIA;Z5E1D69123;Fatt.n. 004801116905 del 11/08/2017;18-08-2017;1012;4;42;1;Spese correnti;3;Acquisto di beni e servizi;2;Acquisto di servizi;5;Utenze e canoni;4;Energia elettrica;18-08-2017;
1171;1;0;"164,98";"164,98";ENEL ENERGIA;Z5E1D69123;Fatt.n. 004801116906 del 11/08/2017;18-08-2017;1012;4;42;1;Spese correnti;3;Acquisto di beni e servizi;2;Acquisto di servizi;5;Utenze e canoni;4;Energia elettrica;18-08-2017;
1172;1;0;"1.525,00";"1.525,00";BECCA GIOVANNI;ZBC1D4E67A;Fatt.n. FATTPA 6_17 del 14/08/2017;18-08-2017;255;0;34;1;Spese correnti;3;Acquisto di beni e servizi;2;Acquisto di servizi;9;Manutenzione ordinaria e riparazioni;8;Manutenzione ordinaria e riparazioni di beni immobili;18-08-2017;
1173;1;0;"650,74";"650,74";SATTA GESUINO; ;INDENNITA DI CARICA SINDACO AGOSTO.DET. N. 256;18-08-2017;14;1;9;1;Spese correnti;3;Acquisto di beni e servizi;2;Acquisto di servizi;1;Organi e incarichi istituzionali dell'amministrazione;1;Organi istituzionali dell'amministrazione - Indennità;18-08-2017;
1174;1;0;"195,22";"748,34";CANU MARIA PAOLA; ;INDENNITA' AMMINISTRATORI COMUNALI  AGOSTO. DET. N. 256;18-08-2017;14;1;9;1;Spese correnti;3;Acquisto di beni e servizi;2;Acquisto di servizi;1;Organi e incarichi istituzionali dell'amministrazione;1;Organi istituzionali dell'amministrazione - Indennità;18-08-2017;
1174;2;0;"97,61";"748,34";GAIAS GIANFRANCO; ;INDENNITA' AMMINISTRATORI COMUNALI  AGOSTO. DET. N. 256;18-08-2017;14;1;9;1;Spese correnti;3;Acquisto di beni e servizi;2;Acquisto di servizi;1;Organi e incarichi istituzionali dell'amministrazione;1;Organi istituzionali dell'amministrazione - Indennità;18-08-2017;
1174;3;0;"260,29";"748,34";PUDDU EMANUELE; ;INDENNITA' AMMINISTRATORI COMUNALI  AGOSTO. DET. N. 256;18-08-2017;14;1;9;1;Spese correnti;3;Acquisto di beni e servizi;2;Acquisto di servizi;1;Organi e incarichi istituzionali dell'amministrazione;1;Organi istituzionali dell'amministrazione - Indennità;18-08-2017;
1174;4;0;"195,22";"748,34";SERUSI BIANCA; ;INDENNITA' AMMINISTRATORI COMUNALI  AGOSTO. DET. N. 256;18-08-2017;14;1;9;1;Spese correnti;3;Acquisto di beni e servizi;2;Acquisto di servizi;1;Organi e incarichi istituzionali dell'amministrazione;1;Organi istituzionali dell'amministrazione - Indennità;18-08-2017;
1175;1;0;"118,92";"118,92";TESORERIA PROV.LE DELLO STATO; ;IRAP SU INDENNITA' AMMINISTRATORI AGOSTO;18-08-2017;14;1;0;1;Spese correnti;3;Acquisto di beni e servizi;2;Acquisto di servizi;1;Organi e incarichi istituzionali dell'amministrazione;1;Organi istituzionali dell'amministrazione - Indennità;18-08-2017;
1176;1;0;"900,00";"900,00";BECCIU ANTONELLA; ;"Programma di assegnazione contributi alle Associazioni locali e Comitati per l'organizzazione delle manifestazioni di carattere sociale, culturale, religioso e sportivo - Anno 2017";18-08-2017;760;0;147;1;Spese correnti;4;Trasferimenti correnti;4;Trasferimenti correnti a Istituzioni Sociali Private;1;Trasferimenti correnti a Istituzioni Sociali Private;1;Trasferimenti correnti a Istituzioni Sociali Private;18-08-2017;
1177;1;0;"500,00";"500,00";BECCIU ANTONELLA; ;"Programma di assegnazione contributi alle Associazioni locali e Comitati per l'organizzazione delle manifestazioni di carattere sociale, culturale, religioso e sportivo - Anno 2017";18-08-2017;760;0;147;1;Spese correnti;4;Trasferimenti correnti;4;Trasferimenti correnti a Istituzioni Sociali Private;1;Trasferimenti correnti a Istituzioni Sociali Private;1;Trasferimenti correnti a Istituzioni Sociali Private;18-08-2017;
1178;1;0;"150,00";"150,00";HALLEY SARDEGNA SRL;Z3E1F3ABEB;Fatt.n. 0000835 del 18/07/2017;22-08-2017;108;0;143;1;Spese correnti;3;Acquisto di beni e servizi;2;Acquisto di servizi;4;Acquisto di servizi per formazione e addestramento del personale dell'ente;999;Acquisto di servizi per altre spese per formazione e addestramento n.a.c.;22-08-2017;
1179;1;0;"2.290,71";"2.290,71";CONSORZIO LA SORGENTE;ZO71D74C7D;Fatt.n. 3/154 del 09/08/2017 VENDITA;22-08-2017;1416;0;63;1;Spese correnti;3;Acquisto di beni e servizi;2;Acquisto di servizi;11;Prestazioni professionali e specialistiche;999;Altre prestazioni professionali e specialistiche n.a.c.;22-08-2017;
1180;1;0;"1.494,03";"1.494,03";SEGESTA GESTIONI SRL;Z4C1D4ABDB;Fatt.n. X-902 del 02/08/2017;22-08-2017;1412;0;36;1;Spese correnti;3;Acquisto di beni e servizi;2;Acquisto di servizi;15;Contratti di servizio pubblico;9;Contratti di servizio di assistenza sociale domiciliare;22-08-2017;
1181;1;0;"211,26";"211,26";ENEL ENERGIA;ZED1E018D9;Fatt.n. 004801116205 del 11/08/2017;22-08-2017;566;4;70;1;Spese correnti;3;Acquisto di beni e servizi;2;Acquisto di servizi;5;Utenze e canoni;4;Energia elettrica;22-08-2017;
1182;1;0;"19,43";"19,43";ENEL ENERGIA;6631327826;Fatt.n. 004801116205 del 11/08/2017;22-08-2017;566;4;64;1;Spese correnti;3;Acquisto di beni e servizi;2;Acquisto di servizi;5;Utenze e canoni;4;Energia elettrica;22-08-2017;
1183;1;0;"274,21";"274,21";SERVIZIO ELETTRICO NAZIONALE - SERVIZIO DI MAGGIOR TUTE;ZF71E5319B;Fatt.n. 907151470732314 del 10/08/2017;22-08-2017;598;4;92;1;Spese correnti;3;Acquisto di beni e servizi;2;Acquisto di servizi;5;Utenze e canoni;4;Energia elettrica;22-08-2017;
1184;1;0;"200,01";"200,01";SERVIZIO ELETTRICO NAZIONALE - SERVIZIO DI MAGGIOR TUTE;ZF71E5319B;Fatt.n. 907151470733516 del 10/08/2017;22-08-2017;618;4;93;1;Spese correnti;3;Acquisto di beni e servizi;2;Acquisto di servizi;5;Utenze e canoni;4;Energia elettrica;22-08-2017;
1185;1;0;"4.698,95";"4.698,95";CONSORZIO NETWORK ETICO;687819848C;Fatt.n. 2/1268 del 16/08/2017 SERV.SAD;23-08-2017;1412;0;3;1;Spese correnti;3;Acquisto di beni e servizi;2;Acquisto di servizi;15;Contratti di servizio pubblico;9;Contratti di servizio di assistenza sociale domiciliare;23-08-2017;
1186;1;0;"108,00";"108,00";SATTA GIOVANNI MICHELE; ;Lavori di prolungamento Via Caprera. Indennita di esproprio. DET. N.259;23-08-2017;3121;0;153;2;Spese in conto capitale;2;Investimenti fissi lordi e acquisto di terreni;1;Beni materiali;9;Beni immobili;13;Altre vie di comunicazione;23-08-2017;
1187;1;0;"570,40";"1.412,20";NRG ITALIA SPA;Z651E12423;Fatt.n. 179316429 del 06/08/2017;24-08-2017;82;1;71;1;Spese correnti;3;Acquisto di beni e servizi;2;Acquisto di servizi;9;Manutenzione ordinaria e riparazioni;11;Manutenzione ordinaria e riparazioni di altri beni materiali;24-08-2017;
1187;2;0;"841,80";"1.412,20";NRG ITALIA SPA;Z651E12423;Fatt.n. 179316145 del 06/08/2017;24-08-2017;82;1;71;1;Spese correnti;3;Acquisto di beni e servizi;2;Acquisto di servizi;9;Manutenzione ordinaria e riparazioni;11;Manutenzione ordinaria e riparazioni di altri beni materiali;24-08-2017;
1188;1;0;"770,00";"770,00";ASS. CULTURALE TEATRO DEL SOTTOSUOL;ZAC1F21F10;Fatt.n. 8 del 11/08/2017;24-08-2017;746;0;137;1;Spese correnti;3;Acquisto di beni e servizi;2;Acquisto di servizi;2;"Organizzazione eventi, pubblicita` e servizi per trasferta";5;Organizzazione e partecipazione a manifestazioni e convegni;24-08-2017;
1189;1;0;"1.400,00";"1.400,00";PRO LOCO TULA; ;"Programma di assegnazione contributi alle Associazioni locali e Comitati per l'organizzazione delle manifestazioni di carattere sociale, culturale, religioso e sportivo - Anno 2017";24-08-2017;760;0;147;1;Spese correnti;4;Trasferimenti correnti;4;Trasferimenti correnti a Istituzioni Sociali Private;1;Trasferimenti correnti a Istituzioni Sociali Private;1;Trasferimenti correnti a Istituzioni Sociali Private;24-08-2017;
1190;1;0;"2.000,00";"2.000,00";GRUPPO FOLK FIGULINAS;ZAC1F21F10;Organizzazione Rassegna E-State a Tula 2017. Impegno di spesa;24-08-2017;746;0;137;1;Spese correnti;3;Acquisto di beni e servizi;2;Acquisto di servizi;2;"Organizzazione eventi, pubblicita` e servizi per trasferta";5;Organizzazione e partecipazione a manifestazioni e convegni;24-08-2017;
1191;1;0;"900,00";"900,00";Associazione Gruppo Strumentale " IL VIOLINO";ZAC1F21F10;Organizzazione Rassegna E-State a Tula 2017. Impegno di spesa;24-08-2017;746;0;137;1;Spese correnti;3;Acquisto di beni e servizi;2;Acquisto di servizi;2;"Organizzazione eventi, pubblicita` e servizi per trasferta";5;Organizzazione e partecipazione a manifestazioni e convegni;24-08-2017;
1192;1;0;"500,00";"500,00";OMESSO NOMINATIVO NEL RISPETTO DELLA NORMATIVA SULLA PROTEZIONE DATI PERSONALI; ;SERVIZI ALLA PERSONA. INSERIMENTO SOFFERENTI MENTALI IN STRUTTURE RESIDENZIALI.IMPEGNO DI SPESA ANNO 2017.;24-08-2017;1412;0;18;1;Spese correnti;3;Acquisto di beni e servizi;2;Acquisto di servizi;15;Contratti di servizio pubblico;9;Contratti di servizio di assistenza sociale domiciliare;24-08-2017;
1193;1;0;"1.700,00";"1.700,00";OMESSO NOMINATIVO NEL RISPETTO DELLA NORMATIVA SULLA PROTEZIONE DATI PERSONALI; ;DELIBERA REGIONALE N. 70/15/2016 -FONDO REGIONALE PER LA NONAUTOSUFFICIENZA.PROROGA PIANI PERSONALIZZATI LEGGE N. 162/1998 ANNUALITA'2016/GESTIONE 2017.IMPEGNO DI SPESA .;24-08-2017;1420;2;27;1;Spese correnti;4;Trasferimenti correnti;2;Trasferimenti correnti a Famiglie;2;Interventi assistenziali;999;Altri assegni e sussidi assistenziali;24-08-2017;
1194;1;0;"604,00";"604,00";OMESSO NOMINATIVO NEL RISPETTO DELLA NORMATIVA SULLA PROTEZIONE DATI PERSONALI; ;L.R. 11/185-PROVVIDENZE A FAVORE DI NEFROPATICI-PRESA IN CARICO ANNO 2017 E IMPEGNO DI SPESA.;24-08-2017;1438;0;33;1;Spese correnti;4;Trasferimenti correnti;2;Trasferimenti correnti a Famiglie;2;Interventi assistenziali;999;Altri assegni e sussidi assistenziali;24-08-2017;
1195;1;0;"148,00";"148,00";OMESSO NOMINATIVO NEL RISPETTO DELLA NORMATIVA SULLA PROTEZIONE DATI PERSONALI; ;"IMPEGNO DI SPESA PER L.R. N.9/2014, ART 1- RICONOSCIMENTO BENEFICI ANNO 2017.";24-08-2017;1438;0;140;1;Spese correnti;4;Trasferimenti correnti;2;Trasferimenti correnti a Famiglie;2;Interventi assistenziali;999;Altri assegni e sussidi assistenziali;24-08-2017;
1196;1;0;"709,00";"709,00";OMESSO NOMINATIVO NEL RISPETTO DELLA NORMATIVA SULLA PROTEZIONE DATI PERSONALI; ;L.R.27/1983 PRESA INCARICO E IMPEGNO DI SPESA ANNO 2017.;24-08-2017;1438;0;47;1;Spese correnti;4;Trasferimenti correnti;2;Trasferimenti correnti a Famiglie;2;Interventi assistenziali;999;Altri assegni e sussidi assistenziali;24-08-2017;
1197;1;0;"164,00";"164,00";SERVIZIO ELETTRICO NAZIONALE - SERVIZIO DI MAGGIOR TUTE;Z6E1DD831E;Fatt.n. 907151471763431 del 10/08/2017;24-08-2017;716;4;61;1;Spese correnti;3;Acquisto di beni e servizi;2;Acquisto di servizi;5;Utenze e canoni;4;Energia elettrica;24-08-2017;
1198;1;0;"416,27";"416,27";SERVIZIO ELETTRICO NAZIONALE - SERVIZIO DI MAGGIOR TUTE;Z6E1DD831E;Fatt.n. 907151201731811 del 10/08/2017;24-08-2017;716;4;61;1;Spese correnti;3;Acquisto di beni e servizi;2;Acquisto di servizi;5;Utenze e canoni;4;Energia elettrica;24-08-2017;
1199;1;0;"42.501,44";"42.501,44";UNIONE DEI COMUNI DEL LOGUDORO; ;Avvio gestione associata servizio di raccolta differenziata e avvio allo smaltimento dei r.s.u. LIQ. II QUADRIMESTRE 2017.LIQ. N. 365;24-08-2017;1265;0;111;1;Spese correnti;4;Trasferimenti correnti;1;Trasferimenti correnti a Amministrazioni Pubbliche;2;Trasferimenti correnti a Amministrazioni Locali;5;Trasferimenti correnti a Unioni di Comuni;24-08-2017;
1200;1;0;"22.522,42";"22.522,42";MILIA ANTONIO;ZC11C6A48F;"Fatt.n. 1/PA del 23/08/2017 LAVORI , VIA PERTINI, TULA (SS)  - CIG ZC11C6A48F DETERMINA DIRIGENZIALE 554 DEL 20.12.2016";24-08-2017;3121;0;340;2;Spese in conto capitale;2;Investimenti fissi lordi e acquisto di terreni;1;Beni materiali;9;Beni immobili;12;Infrastrutture stradali;24-08-2017;
1201;1;0;"250,00";"250,00";OMESSO NOMINATIVO NEL RISPETTO DELLA NORMATIVA SULLA PROTEZIONE DATI PERSONALI; ;SERVIZI ALLA PERSONA-IMPEGNO DI SPESA PER  CONTRIBUTI ECONOMICI A CARATTERE STRAORDINARIO.;25-08-2017;1434;0;171;1;Spese correnti;4;Trasferimenti correnti;2;Trasferimenti correnti a Famiglie;2;Interventi assistenziali;999;Altri assegni e sussidi assistenziali;25-08-2017;
1202;1;0;"900,00";"900,00";OMESSO NOMINATIVO NEL RISPETTO DELLA NORMATIVA SULLA PROTEZIONE DATI PERSONALI; ;SERVIZI ALLA PERSONA-IMPEGNO DI SPESA PER  CONTRIBUTI ECONOMICI A CARATTERE STRAORDINARIO.;25-08-2017;1434;0;171;1;Spese correnti;4;Trasferimenti correnti;2;Trasferimenti correnti a Famiglie;2;Interventi assistenziali;999;Altri assegni e sussidi assistenziali;25-08-2017;
1203;1;0;"1.329,00";"1.329,00";OMESSO NOMINATIVO NEL RISPETTO DELLA NORMATIVA SULLA PROTEZIONE DATI PERSONALI; ;"L.R. 27/1983, PROVVIDENZE  A FAVORE DEI TALASSEMICI, DEGLI EMOFILICI ED EMOLINFOPATICI MALIGNI-PRESA IN CARICO E IMPEGNO DI SPESA ANNO 2017";25-08-2017;1438;0;134;1;Spese correnti;4;Trasferimenti correnti;2;Trasferimenti correnti a Famiglie;2;Interventi assistenziali;999;Altri assegni e sussidi assistenziali;25-08-2017;
1204;1;0;"500,00";"500,00";OMESSO NOMINATIVO NEL RISPETTO DELLA NORMATIVA SULLA PROTEZIONE DATI PERSONALI; ;IMPEGNO DI SPESA PER L.R. N. 18/2016- REDDITO D'INCLUSIONE SOCIALE-AGGIUDU TORRAU-AVVIO ATTIVITA'.;25-08-2017;1435;0;148;1;Spese correnti;3;Acquisto di beni e servizi;2;Acquisto di servizi;99;Altri servizi;999;Altri servizi diversi n.a.c.;25-08-2017;
1205;1;0;"400,00";"400,00";OMESSO NOMINATIVO NEL RISPETTO DELLA NORMATIVA SULLA PROTEZIONE DATI PERSONALI; ;IMPEGNO DI SPESA PER L.R. N. 18/2016- REDDITO D'INCLUSIONE SOCIALE-AGGIUDU TORRAU-AVVIO ATTIVITA'.;25-08-2017;1435;0;148;1;Spese correnti;3;Acquisto di beni e servizi;2;Acquisto di servizi;99;Altri servizi;999;Altri servizi diversi n.a.c.;25-08-2017;
1206;1;0;"400,00";"400,00";OMESSO NOMINATIVO NEL RISPETTO DELLA NORMATIVA SULLA PROTEZIONE DATI PERSONALI; ;IMPEGNO DI SPESA PER L.R. N. 18/2016- REDDITO D'INCLUSIONE SOCIALE-AGGIUDU TORRAU-AVVIO ATTIVITA'.;25-08-2017;1435;0;148;1;Spese correnti;3;Acquisto di beni e servizi;2;Acquisto di servizi;99;Altri servizi;999;Altri servizi diversi n.a.c.;25-08-2017;
1207;1;0;"200,00";"200,00";OMESSO NOMINATIVO NEL RISPETTO DELLA NORMATIVA SULLA PROTEZIONE DATI PERSONALI; ;IMPEGNO DI SPESA PER L.R. N. 18/2016- REDDITO D'INCLUSIONE SOCIALE-AGGIUDU TORRAU-AVVIO ATTIVITA'.;25-08-2017;1435;0;148;1;Spese correnti;3;Acquisto di beni e servizi;2;Acquisto di servizi;99;Altri servizi;999;Altri servizi diversi n.a.c.;25-08-2017;
1208;1;0;"400,00";"400,00";OMESSO NOMINATIVO NEL RISPETTO DELLA NORMATIVA SULLA PROTEZIONE DATI PERSONALI; ;IMPEGNO DI SPESA PER L.R. N. 18/2016- REDDITO D'INCLUSIONE SOCIALE-AGGIUDU TORRAU-AVVIO ATTIVITA'.;25-08-2017;1435;0;148;1;Spese correnti;3;Acquisto di beni e servizi;2;Acquisto di servizi;99;Altri servizi;999;Altri servizi diversi n.a.c.;25-08-2017;
1209;1;0;"200,00";"200,00";OMESSO NOMINATIVO NEL RISPETTO DELLA NORMATIVA SULLA PROTEZIONE DATI PERSONALI; ;IMPEGNO DI SPESA PER L.R. N. 18/2016- REDDITO D'INCLUSIONE SOCIALE-AGGIUDU TORRAU-AVVIO ATTIVITA'.;25-08-2017;1435;0;148;1;Spese correnti;3;Acquisto di beni e servizi;2;Acquisto di servizi;99;Altri servizi;999;Altri servizi diversi n.a.c.;25-08-2017;
1210;1;0;"200,00";"200,00";OMESSO NOMINATIVO NEL RISPETTO DELLA NORMATIVA SULLA PROTEZIONE DATI PERSONALI; ;IMPEGNO DI SPESA PER L.R. N. 18/2016- REDDITO D'INCLUSIONE SOCIALE-AGGIUDU TORRAU-AVVIO ATTIVITA'.;25-08-2017;1435;0;148;1;Spese correnti;3;Acquisto di beni e servizi;2;Acquisto di servizi;99;Altri servizi;999;Altri servizi diversi n.a.c.;25-08-2017;
1211;1;0;"300,00";"300,00";OMESSO NOMINATIVO NEL RISPETTO DELLA NORMATIVA SULLA PROTEZIONE DATI PERSONALI; ;IMPEGNO DI SPESA PER L.R. N. 18/2016- REDDITO D'INCLUSIONE SOCIALE-AGGIUDU TORRAU-AVVIO ATTIVITA'.;25-08-2017;1435;0;148;1;Spese correnti;3;Acquisto di beni e servizi;2;Acquisto di servizi;99;Altri servizi;999;Altri servizi diversi n.a.c.;25-08-2017;
1212;1;0;"200,00";"200,00";OMESSO NOMINATIVO NEL RISPETTO DELLA NORMATIVA SULLA PROTEZIONE DATI PERSONALI; ;IMPEGNO DI SPESA PER L.R. N. 18/2016- REDDITO D'INCLUSIONE SOCIALE-AGGIUDU TORRAU-AVVIO ATTIVITA'.;25-08-2017;1435;0;148;1;Spese correnti;3;Acquisto di beni e servizi;2;Acquisto di servizi;99;Altri servizi;999;Altri servizi diversi n.a.c.;25-08-2017;
1213;1;0;"200,00";"200,00";OMESSO NOMINATIVO NEL RISPETTO DELLA NORMATIVA SULLA PROTEZIONE DATI PERSONALI; ;IMPEGNO DI SPESA PER L.R. N. 18/2016- REDDITO D'INCLUSIONE SOCIALE-AGGIUDU TORRAU-AVVIO ATTIVITA'.;25-08-2017;1435;0;148;1;Spese correnti;3;Acquisto di beni e servizi;2;Acquisto di servizi;99;Altri servizi;999;Altri servizi diversi n.a.c.;25-08-2017;
1214;1;0;"300,00";"300,00";OMESSO NOMINATIVO NEL RISPETTO DELLA NORMATIVA SULLA PROTEZIONE DATI PERSONALI; ;IMPEGNO DI SPESA PER L.R. N. 18/2016- REDDITO D'INCLUSIONE SOCIALE-AGGIUDU TORRAU-AVVIO ATTIVITA'.;25-08-2017;1435;0;148;1;Spese correnti;3;Acquisto di beni e servizi;2;Acquisto di servizi;99;Altri servizi;999;Altri servizi diversi n.a.c.;25-08-2017;
1215;1;0;"300,00";"300,00";ASSOCIAZIONE CULTURALE CANTIGOS A CHITERRA; ;"Programma di assegnazione contributi alle Associazioni locali e Comitati per l'organizzazione delle manifestazioni di carattere sociale, culturale, religioso e sportivo - Anno 2017";25-08-2017;760;0;147;1;Spese correnti;4;Trasferimenti correnti;4;Trasferimenti correnti a Istituzioni Sociali Private;1;Trasferimenti correnti a Istituzioni Sociali Private;1;Trasferimenti correnti a Istituzioni Sociali Private;25-08-2017;
1216;1;0;"800,00";"800,00";GRUPPO FOLK TORPE';ZAC1F21F10;Organizzazione Rassegna E-State a Tula 2017. Impegno di spesa;25-08-2017;746;0;137;1;Spese correnti;3;Acquisto di beni e servizi;2;Acquisto di servizi;2;"Organizzazione eventi, pubblicita` e servizi per trasferta";5;Organizzazione e partecipazione a manifestazioni e convegni;25-08-2017;
1217;1;0;"750,00";"750,00";CREA CENTRO PER LA CREATIVITA' EDUCATIVA SOC. COOP. SOC;ZAC1F21F10;Fatt.n. 29E/PA del 24/08/2017 INCONTRO EDUCATIVO;25-08-2017;746;0;137;1;Spese correnti;3;Acquisto di beni e servizi;2;Acquisto di servizi;2;"Organizzazione eventi, pubblicita` e servizi per trasferta";5;Organizzazione e partecipazione a manifestazioni e convegni;25-08-2017;
1218;1;0;"704,26";"704,26";VODAFONE OMNITEL N.V.;ZDE1DD8EAD;Fatt.n. AH14890386 del 23/08/2017 scissione pagamenti;25-08-2017;566;3;55;1;Spese correnti;3;Acquisto di beni e servizi;2;Acquisto di servizi;5;Utenze e canoni;1;Telefonia fissa;25-08-2017;
1219;1;0;"1.200,00";"1.200,00";Gruppo Compagnia Teatrale Bono;ZAC1F21F10;Organizzazione Rassegna E-State a Tula 2017. Impegno di spesa;25-08-2017;746;0;137;1;Spese correnti;3;Acquisto di beni e servizi;2;Acquisto di servizi;2;"Organizzazione eventi, pubblicita` e servizi per trasferta";5;Organizzazione e partecipazione a manifestazioni e convegni;25-08-2017;
1220;1;0;"100,00";"100,00";OMESSO NOMINATIVO NEL RISPETTO DELLA NORMATIVA SULLA PROTEZIONE DATI PERSONALI; ;SERVIZI ALLA PERSONA-IMPEGNO DI SPESA PER  CONTRIBUTI ECONOMICI A CARATTERE STRAORDINARIO.;28-08-2017;1434;0;171;1;Spese correnti;4;Trasferimenti correnti;2;Trasferimenti correnti a Famiglie;2;Interventi assistenziali;999;Altri assegni e sussidi assistenziali;28-08-2017;
1221;1;0;"650,00";"650,00";Gruppo Folkloristico Citta' di Villacidro;ZAC1F21F10;Organizzazione Rassegna E-State a Tula 2017. Impegno di spesa;28-08-2017;746;0;137;1;Spese correnti;3;Acquisto di beni e servizi;2;Acquisto di servizi;2;"Organizzazione eventi, pubblicita` e servizi per trasferta";5;Organizzazione e partecipazione a manifestazioni e convegni;28-08-2017;
1222;1;0;"650,00";"650,00";CORO VOHES DE ONNE;ZAC1F21F10;Organizzazione Rassegna E-State a Tula 2017. Impegno di spesa;28-08-2017;746;0;137;1;Spese correnti;3;Acquisto di beni e servizi;2;Acquisto di servizi;2;"Organizzazione eventi, pubblicita` e servizi per trasferta";5;Organizzazione e partecipazione a manifestazioni e convegni;28-08-2017;
1223;1;0;"1.650,00";"1.650,00";Associazione Gruppo Strumentale " IL VIOLINO";ZAC1F21F10;Organizzazione Rassegna E-State a Tula 2017. Impegno di spesa;28-08-2017;746;0;137;1;Spese correnti;3;Acquisto di beni e servizi;2;Acquisto di servizi;2;"Organizzazione eventi, pubblicita` e servizi per trasferta";5;Organizzazione e partecipazione a manifestazioni e convegni;28-08-2017;
1225;1;0;"25,56";"25,56";OMESSO NOMINATIVO NEL RISPETTO DELLA NORMATIVA SULLA PROTEZIONE DATI PERSONALI; ;DELIBERA REGIONALE N. 70/15/2016 -FONDO REGIONALE PER LA NONAUTOSUFFICIENZA.PROROGA PIANI PERSONALIZZATI LEGGE N. 162/1998 ANNUALITA'2016/GESTIONE 2017.IMPEGNO DI SPESA .;29-08-2017;1420;2;27;1;Spese correnti;4;Trasferimenti correnti;2;Trasferimenti correnti a Famiglie;2;Interventi assistenziali;999;Altri assegni e sussidi assistenziali;29-08-2017;
1226;1;0;"100,00";"100,00";OMESSO NOMINATIVO NEL RISPETTO DELLA NORMATIVA SULLA PROTEZIONE DATI PERSONALI; ;SERVIZI ALLA PERSONA-CONCESSIONE CONTRIBUTO ECONOMICO-IMPEGNO DI SPESA.;29-08-2017;1434;0;109;1;Spese correnti;4;Trasferimenti correnti;2;Trasferimenti correnti a Famiglie;2;Interventi assistenziali;999;Altri assegni e sussidi assistenziali;29-08-2017;
1227;1;0;"616,13";"616,13";OMESSO NOMINATIVO NEL RISPETTO DELLA NORMATIVA SULLA PROTEZIONE DATI PERSONALI; ;L.R. 11/185-PROVVIDENZE A FAVORE DI NEFROPATICI-PRESA IN CARICO ANNO 2017 E IMPEGNO DI SPESA.;29-08-2017;1438;0;33;1;Spese correnti;4;Trasferimenti correnti;2;Trasferimenti correnti a Famiglie;2;Interventi assistenziali;999;Altri assegni e sussidi assistenziali;29-08-2017;
1229;1;0;"2.840,40";"2.840,40";HALLEY SARDEGNA SRL;ZD71D0213A;Fatt.n. 0000713 del 04/07/2017;01-09-2017;82;2;45;1;Spese correnti;3;Acquisto di beni e servizi;2;Acquisto di servizi;19;Servizi informatici e di telecomunicazioni;1;Gestione e manutenzione applicazioni;01-09-2017;
1230;1;0;"89,06";"89,06";Italiaonline S.p.A.;Z201F79D8F;Fatt.n. AI00201478 del 29/08/2017;01-09-2017;82;0;155;1;Spese correnti;3;Acquisto di beni e servizi;1;Acquisto di beni;2;Altri beni di consumo;7;Altri materiali tecnico-specialistici non sanitari;01-09-2017;
1231;1;0;"154,26";"1.296,18";MC LINK SPA;Z441C42009;Fatt.n. 610001965 del 24/08/2017 FATTURA DI VENDITA SERVIZI;01-09-2017;118;3;39;1;Spese correnti;3;Acquisto di beni e servizi;2;Acquisto di servizi;5;Utenze e canoni;1;Telefonia fissa;01-09-2017;
1231;2;0;"156,16";"1.296,18";MC LINK SPA;Z441C42009;Fatt.n. 610001964 del 24/08/2017 FATTURA DI VENDITA SERVIZI;01-09-2017;118;3;39;1;Spese correnti;3;Acquisto di beni e servizi;2;Acquisto di servizi;5;Utenze e canoni;1;Telefonia fissa;01-09-2017;
1231;3;0;"204,96";"1.296,18";MC LINK SPA;Z441C42009;Fatt.n. 610001963 del 24/08/2017 FATTURA DI VENDITA SERVIZI;01-09-2017;118;3;39;1;Spese correnti;3;Acquisto di beni e servizi;2;Acquisto di servizi;5;Utenze e canoni;1;Telefonia fissa;01-09-2017;
1231;4;0;"780,80";"1.296,18";MC LINK SPA;Z441C42009;Fatt.n. 610001962 del 24/08/2017 FATTURA DI VENDITA SERVIZI;01-09-2017;118;3;39;1;Spese correnti;3;Acquisto di beni e servizi;2;Acquisto di servizi;5;Utenze e canoni;1;Telefonia fissa;01-09-2017;
1232;1;0;"37,78";"623,38";MC LINK SPA;Z371DDA551;Fatt.n. 610001821 del 10/08/2017 FATTURA DI VENDITA SERVIZI;01-09-2017;118;3;64;1;Spese correnti;3;Acquisto di beni e servizi;2;Acquisto di servizi;5;Utenze e canoni;1;Telefonia fissa;01-09-2017;
1232;2;0;"48,80";"623,38";MC LINK SPA;Z371DDA551;Fatt.n. 610001960 del 24/08/2017 FATTURA DI VENDITA SERVIZI;01-09-2017;118;3;64;1;Spese correnti;3;Acquisto di beni e servizi;2;Acquisto di servizi;5;Utenze e canoni;1;Telefonia fissa;01-09-2017;
1232;3;0;"536,80";"623,38";MC LINK SPA;Z371DDA551;Fatt.n. 610001961 del 24/08/2017 FATTURA DI VENDITA SERVIZI;01-09-2017;118;3;64;1;Spese correnti;3;Acquisto di beni e servizi;2;Acquisto di servizi;5;Utenze e canoni;1;Telefonia fissa;01-09-2017;
1233;1;0;"2,00";"96,13";POSTE ITALIANE Spa;Z8D1F0ACEA;Fatt.n. 8717243448 del 31/08/2017 Fattura Elettronica relativa all'Identificativo Rendiconto 2093210812;01-09-2017;118;2;127;1;Spese correnti;3;Acquisto di beni e servizi;2;Acquisto di servizi;16;Servizi amministrativi;2;Spese postali;01-09-2017;
1233;2;0;"94,13";"96,13";POSTE ITALIANE Spa;Z8D1F0ACEA;Fatt.n. 8717243448 del 31/08/2017 Fattura Elettronica relativa all'Identificativo Rendiconto 2093210812;01-09-2017;118;2;127;1;Spese correnti;3;Acquisto di beni e servizi;2;Acquisto di servizi;16;Servizi amministrativi;2;Spese postali;01-09-2017;
1234;1;0;"400,00";"400,00";Associazione Culturale G.M. Baravaglia; ;"Programma di assegnazione contributi alle Associazioni locali e Comitati per l'organizzazione delle manifestazioni di carattere sociale, culturale, religioso e sportivo - Anno 2017";01-09-2017;760;0;147;1;Spese correnti;4;Trasferimenti correnti;4;Trasferimenti correnti a Istituzioni Sociali Private;1;Trasferimenti correnti a Istituzioni Sociali Private;1;Trasferimenti correnti a Istituzioni Sociali Private;01-09-2017;
1235;1;0;"3.631,78";"3.631,78";PUDDU PALMIRO;ZD71C6B73C;Fatt.n. 12/PA/2017 del 31/08/2017 SERVIZIO;04-09-2017;1302;0;22;1;Spese correnti;3;Acquisto di beni e servizi;2;Acquisto di servizi;13;Servizi ausiliari per il funzionamento dell'ente;999;Altri servizi ausiliari n.a.c.;04-09-2017;
1236;1;0;"151,50";"151,50";OMESSO NOMINATIVO NEL RISPETTO DELLA NORMATIVA SULLA PROTEZIONE DATI PERSONALI; ;DELIBERA REGIONALE N. 70/15/2016 -FONDO REGIONALE PER LA NONAUTOSUFFICIENZA.PROROGA PIANI PERSONALIZZATI LEGGE N. 162/1998 ANNUALITA'2016/GESTIONE 2017.IMPEGNO DI SPESA .;04-09-2017;1420;2;27;1;Spese correnti;4;Trasferimenti correnti;2;Trasferimenti correnti a Famiglie;2;Interventi assistenziali;999;Altri assegni e sussidi assistenziali;04-09-2017;
1237;1;0;"171,99";"171,99";OMESSO NOMINATIVO NEL RISPETTO DELLA NORMATIVA SULLA PROTEZIONE DATI PERSONALI; ;DELIBERA REGIONALE N. 70/15/2016 -FONDO REGIONALE PER LA NONAUTOSUFFICIENZA.PROROGA PIANI PERSONALIZZATI LEGGE N. 162/1998 ANNUALITA'2016/GESTIONE 2017.IMPEGNO DI SPESA .;04-09-2017;1420;2;27;1;Spese correnti;4;Trasferimenti correnti;2;Trasferimenti correnti a Famiglie;2;Interventi assistenziali;999;Altri assegni e sussidi assistenziali;04-09-2017;
1238;1;0;"82,81";"82,81";OMESSO NOMINATIVO NEL RISPETTO DELLA NORMATIVA SULLA PROTEZIONE DATI PERSONALI; ;DELIBERA REGIONALE N. 70/15/2016 -FONDO REGIONALE PER LA NONAUTOSUFFICIENZA.PROROGA PIANI PERSONALIZZATI LEGGE N. 162/1998 ANNUALITA'2016/GESTIONE 2017.IMPEGNO DI SPESA .;04-09-2017;1420;2;27;1;Spese correnti;4;Trasferimenti correnti;2;Trasferimenti correnti a Famiglie;2;Interventi assistenziali;999;Altri assegni e sussidi assistenziali;04-09-2017;
1239;1;0;"118,80";"118,80";OMESSO NOMINATIVO NEL RISPETTO DELLA NORMATIVA SULLA PROTEZIONE DATI PERSONALI; ;DELIBERA REGIONALE N. 70/15/2016 -FONDO REGIONALE PER LA NONAUTOSUFFICIENZA.PROROGA PIANI PERSONALIZZATI LEGGE N. 162/1998 ANNUALITA'2016/GESTIONE 2017.IMPEGNO DI SPESA .;04-09-2017;1420;2;27;1;Spese correnti;4;Trasferimenti correnti;2;Trasferimenti correnti a Famiglie;2;Interventi assistenziali;999;Altri assegni e sussidi assistenziali;04-09-2017;
1240;1;0;"193,85";"193,85";OMESSO NOMINATIVO NEL RISPETTO DELLA NORMATIVA SULLA PROTEZIONE DATI PERSONALI; ;DELIBERA REGIONALE N. 70/15/2016 -FONDO REGIONALE PER LA NONAUTOSUFFICIENZA.PROROGA PIANI PERSONALIZZATI LEGGE N. 162/1998 ANNUALITA'2016/GESTIONE 2017.IMPEGNO DI SPESA .;04-09-2017;1420;2;27;1;Spese correnti;4;Trasferimenti correnti;2;Trasferimenti correnti a Famiglie;2;Interventi assistenziali;999;Altri assegni e sussidi assistenziali;04-09-2017;
1241;1;0;"137,46";"137,46";OMESSO NOMINATIVO NEL RISPETTO DELLA NORMATIVA SULLA PROTEZIONE DATI PERSONALI; ;DELIBERA REGIONALE N. 70/15/2016 -FONDO REGIONALE PER LA NONAUTOSUFFICIENZA.PROROGA PIANI PERSONALIZZATI LEGGE N. 162/1998 ANNUALITA'2016/GESTIONE 2017.IMPEGNO DI SPESA .;04-09-2017;1420;2;27;1;Spese correnti;4;Trasferimenti correnti;2;Trasferimenti correnti a Famiglie;2;Interventi assistenziali;999;Altri assegni e sussidi assistenziali;04-09-2017;
1242;1;0;"133,33";"133,33";OMESSO NOMINATIVO NEL RISPETTO DELLA NORMATIVA SULLA PROTEZIONE DATI PERSONALI; ;DELIBERA REGIONALE N. 70/15/2016 -FONDO REGIONALE PER LA NONAUTOSUFFICIENZA.PROROGA PIANI PERSONALIZZATI LEGGE N. 162/1998 ANNUALITA'2016/GESTIONE 2017.IMPEGNO DI SPESA .;04-09-2017;1420;2;27;1;Spese correnti;4;Trasferimenti correnti;2;Trasferimenti correnti a Famiglie;2;Interventi assistenziali;999;Altri assegni e sussidi assistenziali;04-09-2017;
1243;1;0;"241,69";"241,69";OMESSO NOMINATIVO NEL RISPETTO DELLA NORMATIVA SULLA PROTEZIONE DATI PERSONALI; ;DELIBERA REGIONALE N. 70/15/2016 -FONDO REGIONALE PER LA NONAUTOSUFFICIENZA.PROROGA PIANI PERSONALIZZATI LEGGE N. 162/1998 ANNUALITA'2016/GESTIONE 2017.IMPEGNO DI SPESA .;04-09-2017;1420;2;27;1;Spese correnti;4;Trasferimenti correnti;2;Trasferimenti correnti a Famiglie;2;Interventi assistenziali;999;Altri assegni e sussidi assistenziali;04-09-2017;
1244;1;0;"187,50";"187,50";OMESSO NOMINATIVO NEL RISPETTO DELLA NORMATIVA SULLA PROTEZIONE DATI PERSONALI; ;DELIBERA REGIONALE N. 70/15/2016 -FONDO REGIONALE PER LA NONAUTOSUFFICIENZA.PROROGA PIANI PERSONALIZZATI LEGGE N. 162/1998 ANNUALITA'2016/GESTIONE 2017.IMPEGNO DI SPESA .;04-09-2017;1420;2;27;1;Spese correnti;4;Trasferimenti correnti;2;Trasferimenti correnti a Famiglie;2;Interventi assistenziali;999;Altri assegni e sussidi assistenziali;04-09-2017;
1246;1;0;"190,73";"190,73";OMESSO NOMINATIVO NEL RISPETTO DELLA NORMATIVA SULLA PROTEZIONE DATI PERSONALI; ;DELIBERA REGIONALE N. 70/15/2016 -FONDO REGIONALE PER LA NONAUTOSUFFICIENZA.PROROGA PIANI PERSONALIZZATI LEGGE N. 162/1998 ANNUALITA'2016/GESTIONE 2017.IMPEGNO DI SPESA .;04-09-2017;1420;2;27;1;Spese correnti;4;Trasferimenti correnti;2;Trasferimenti correnti a Famiglie;2;Interventi assistenziali;999;Altri assegni e sussidi assistenziali;04-09-2017;
1247;1;0;"115,06";"115,06";OMESSO NOMINATIVO NEL RISPETTO DELLA NORMATIVA SULLA PROTEZIONE DATI PERSONALI; ;DELIBERA REGIONALE N. 70/15/2016 -FONDO REGIONALE PER LA NONAUTOSUFFICIENZA.PROROGA PIANI PERSONALIZZATI LEGGE N. 162/1998 ANNUALITA'2016/GESTIONE 2017.IMPEGNO DI SPESA .;04-09-2017;1420;2;27;1;Spese correnti;4;Trasferimenti correnti;2;Trasferimenti correnti a Famiglie;2;Interventi assistenziali;999;Altri assegni e sussidi assistenziali;04-09-2017;
1248;1;0;"40,00";"40,00";SECHI ANNA RESP. SERV. FINANZ.TRIBUTI ECONOMATO; ;RIMBORSO MISSIONE AMMINISTRATORI. LIQ. N. 389;05-09-2017;14;4;0;1;Spese correnti;3;Acquisto di beni e servizi;2;Acquisto di servizi;1;Organi e incarichi istituzionali dell'amministrazione;2;Organi istituzionali dell'amministrazione - Rimborsi;05-09-2017;
1249;1;0;"121,66";"121,66";SECHI ANNA RESP. SERV. FINANZ.TRIBUTI ECONOMATO; ;RIMBORSO SPESE VARIE D'UFFICIO. LIQ. N. 389;05-09-2017;82;0;0;1;Spese correnti;3;Acquisto di beni e servizi;1;Acquisto di beni;2;Altri beni di consumo;999;Altri beni e materiali di consumo n.a.c.;05-09-2017;
1250;1;0;"427,00";"427,00";SECHI ANNA RESP. SERV. FINANZ.TRIBUTI ECONOMATO; ;RIMBORSO SPESE IMPOSTA CONTRATTI AFFITTO CASERMA E P.I.LIQ. N. 389;05-09-2017;122;0;0;1;Spese correnti;3;Acquisto di beni e servizi;2;Acquisto di servizi;99;Altri servizi;999;Altri servizi diversi n.a.c.;05-09-2017;
1251;1;0;"393,00";"393,00";SECHI ANNA RESP. SERV. FINANZ.TRIBUTI ECONOMATO; ;RIMB. SPESE CHIUSURA CONTO TARSU. LIQ. N. 389;05-09-2017;1266;0;0;1;Spese correnti;3;Acquisto di beni e servizi;1;Acquisto di beni;2;Altri beni di consumo;999;Altri beni e materiali di consumo n.a.c.;05-09-2017;
1252;1;0;"366,57";"366,57";SECHI ANNA RESP. SERV. FINANZ.TRIBUTI ECONOMATO; ;Organizzazione Rassegna E-State a Tula 2017.RIMBORSO SPESE. LIQ. N. 389;05-09-2017;746;1;138;1;Spese correnti;3;Acquisto di beni e servizi;1;Acquisto di beni;2;Altri beni di consumo;999;Altri beni e materiali di consumo n.a.c.;05-09-2017;
1253;1;0;"120,00";"120,00";SECHI ANNA RESP. SERV. FINANZ.TRIBUTI ECONOMATO; ;RIMBORSO SPESE MONTAGGIO BATTERIA ECC.LIQ. N. 389;05-09-2017;1302;6;0;1;Spese correnti;3;Acquisto di beni e servizi;2;Acquisto di servizi;9;Manutenzione ordinaria e riparazioni;1;"Manutenzione ordinaria e riparazioni di mezzi di trasporto ad uso civile, di sicurezza e ordine pubblico";05-09-2017;
1254;1;0;"50,00";"50,00";SECHI ANNA RESP. SERV. FINANZ.TRIBUTI ECONOMATO; ;RIMB. ACQ. GASOLIO. LIQ. N. 389;05-09-2017;1300;8;0;1;Spese correnti;3;Acquisto di beni e servizi;1;Acquisto di beni;2;Altri beni di consumo;2;"Carburanti, combustibili e lubrificanti";05-09-2017;
1255;1;0;"29,01";"29,01";SECHI ANNA RESP. SERV. FINANZ.TRIBUTI ECONOMATO; ;Approvazione progetto definitivo Lavori di prolungamento Via Caprera. RIMBORSO NOTIFICHE.LIQ. N. 389;05-09-2017;3121;0;153;2;Spese in conto capitale;2;Investimenti fissi lordi e acquisto di terreni;1;Beni materiali;9;Beni immobili;13;Altre vie di comunicazione;05-09-2017;
1256;1;0;"2.040,00";"2.040,00";SATTA VINCENZO;ZA71BAA596;Fatt.n. 1/PA del 29/08/2017;05-09-2017;3516;0;273;2;Spese in conto capitale;5;Altre spese in conto capitale;99;Altre spese in conto capitale n.a.c.;99;Altre spese in conto capitale n.a.c.;999;Altre spese in conto capitale n.a.c.;05-09-2017;
1257;1;0;"1.024,68";"1.024,68";OMESSO NOMINATIVO NEL RISPETTO DELLA NORMATIVA SULLA PROTEZIONE DATI PERSONALI; ;DELIBERA REGIONALE N. 70/15/2016 -FONDO REGIONALE PER LA NONAUTOSUFFICIENZA.PROROGA PIANI PERSONALIZZATI LEGGE N. 162/1998 ANNUALITA'2016/GESTIONE 2017.IMPEGNO DI SPESA .;05-09-2017;1420;2;27;1;Spese correnti;4;Trasferimenti correnti;2;Trasferimenti correnti a Famiglie;2;Interventi assistenziali;999;Altri assegni e sussidi assistenziali;05-09-2017;
1258;1;0;"1.079,82";"1.079,82";COOP. NUOVE IDEE;Z7C1E09453;Fatt.n. FATTPA 87_17 del 01/09/2017;05-09-2017;715;0;76;1;Spese correnti;3;Acquisto di beni e servizi;2;Acquisto di servizi;11;Prestazioni professionali e specialistiche;999;Altre prestazioni professionali e specialistiche n.a.c.;05-09-2017;
1259;1;0;"827,86";"827,86";COOP. NUOVE IDEE;ZAC1F21F10;Fatt.n. FATTPA 88_17 del 01/09/2017;05-09-2017;746;0;137;1;Spese correnti;3;Acquisto di beni e servizi;2;Acquisto di servizi;2;"Organizzazione eventi, pubblicita` e servizi per trasferta";5;Organizzazione e partecipazione a manifestazioni e convegni;05-09-2017;
1260;1;0;"73,00";"73,00";FIORI MARIO;z611ce4d1d;Fatt.n. FATTPA 13_17 del 01/09/2017;05-09-2017;1300;8;30;1;Spese correnti;3;Acquisto di beni e servizi;1;Acquisto di beni;2;Altri beni di consumo;2;"Carburanti, combustibili e lubrificanti";05-09-2017;
1261;1;0;"200,00";"200,00";OMESSO NOMINATIVO NEL RISPETTO DELLA NORMATIVA SULLA PROTEZIONE DATI PERSONALI; ;SERVIZI ALLA PERSONA. INSERIMENTO SOFFERENTI MENTALI IN STRUTTURE RESIDENZIALI.IMPEGNO DI SPESA ANNO 2017.;13-09-2017;1412;0;18;1;Spese correnti;3;Acquisto di beni e servizi;2;Acquisto di servizi;15;Contratti di servizio pubblico;9;Contratti di servizio di assistenza sociale domiciliare;13-09-2017;
1262;1;0;"950,85";"950,85";OMESSO NOMINATIVO NEL RISPETTO DELLA NORMATIVA SULLA PROTEZIONE DATI PERSONALI; ;DELIBERA REGIONALE N. 70/15/2016 -FONDO REGIONALE PER LA NONAUTOSUFFICIENZA.PROROGA PIANI PERSONALIZZATI LEGGE N. 162/1998 ANNUALITA'2016/GESTIONE 2017.IMPEGNO DI SPESA .;13-09-2017;1420;2;27;1;Spese correnti;4;Trasferimenti correnti;2;Trasferimenti correnti a Famiglie;2;Interventi assistenziali;999;Altri assegni e sussidi assistenziali;13-09-2017;
1263;1;0;"606,55";"606,55";OMESSO NOMINATIVO NEL RISPETTO DELLA NORMATIVA SULLA PROTEZIONE DATI PERSONALI; ;DELIBERA REGIONALE N. 70/15/2016 -FONDO REGIONALE PER LA NONAUTOSUFFICIENZA.PROROGA PIANI PERSONALIZZATI LEGGE N. 162/1998 ANNUALITA'2016/GESTIONE 2017.IMPEGNO DI SPESA .;13-09-2017;1420;2;27;1;Spese correnti;4;Trasferimenti correnti;2;Trasferimenti correnti a Famiglie;2;Interventi assistenziali;999;Altri assegni e sussidi assistenziali;13-09-2017;
1264;1;0;"134,72";"134,72";OMESSO NOMINATIVO NEL RISPETTO DELLA NORMATIVA SULLA PROTEZIONE DATI PERSONALI; ;DELIBERA REGIONALE N. 70/15/2016 -FONDO REGIONALE PER LA NONAUTOSUFFICIENZA.PROROGA PIANI PERSONALIZZATI LEGGE N. 162/1998 ANNUALITA'2016/GESTIONE 2017.IMPEGNO DI SPESA .;13-09-2017;1420;2;27;1;Spese correnti;4;Trasferimenti correnti;2;Trasferimenti correnti a Famiglie;2;Interventi assistenziali;999;Altri assegni e sussidi assistenziali;13-09-2017;
1265;1;0;"133,85";"133,85";OMESSO NOMINATIVO NEL RISPETTO DELLA NORMATIVA SULLA PROTEZIONE DATI PERSONALI; ;DELIBERA REGIONALE N. 70/15/2016 -FONDO REGIONALE PER LA NONAUTOSUFFICIENZA.PROROGA PIANI PERSONALIZZATI LEGGE N. 162/1998 ANNUALITA'2016/GESTIONE 2017.IMPEGNO DI SPESA .;13-09-2017;1420;2;27;1;Spese correnti;4;Trasferimenti correnti;2;Trasferimenti correnti a Famiglie;2;Interventi assistenziali;999;Altri assegni e sussidi assistenziali;13-09-2017;
1266;1;0;"662,66";"662,66";OMESSO NOMINATIVO NEL RISPETTO DELLA NORMATIVA SULLA PROTEZIONE DATI PERSONALI; ;DELIBERA REGIONALE N. 70/15/2016 -FONDO REGIONALE PER LA NONAUTOSUFFICIENZA.PROROGA PIANI PERSONALIZZATI LEGGE N. 162/1998 ANNUALITA'2016/GESTIONE 2017.IMPEGNO DI SPESA .;13-09-2017;1420;2;27;1;Spese correnti;4;Trasferimenti correnti;2;Trasferimenti correnti a Famiglie;2;Interventi assistenziali;999;Altri assegni e sussidi assistenziali;13-09-2017;
1267;1;0;"252,00";"252,00";Cooperativa Sviluppo Servizi Italia;ZCD1CE6D2A;Fatt.n. 164 del 31/08/2017;13-09-2017;1416;0;12;1;Spese correnti;3;Acquisto di beni e servizi;2;Acquisto di servizi;11;Prestazioni professionali e specialistiche;999;Altre prestazioni professionali e specialistiche n.a.c.;13-09-2017;
1268;1;0;"1.097,23";"1.097,23";COOP. NUOVE IDEE;Z391D734B5;Fatt.n. FATTPA 96_17 del 05/09/2017;13-09-2017;1413;0;52;1;Spese correnti;3;Acquisto di beni e servizi;2;Acquisto di servizi;99;Altri servizi;999;Altri servizi diversi n.a.c.;13-09-2017;
1269;1;0;"5.591,59";"5.591,59";COOP. NUOVE IDEE;Z391D734B5;Fatt.n. FATTPA 95_17 del 05/09/2017;13-09-2017;1416;0;53;1;Spese correnti;3;Acquisto di beni e servizi;2;Acquisto di servizi;11;Prestazioni professionali e specialistiche;999;Altre prestazioni professionali e specialistiche n.a.c.;13-09-2017;
1270;1;0;"4.000,00";"4.000,00";SCUOLA MATERNA PIETRO FADDA FARINA; ;CONCESSIONE CONTRIBUTO SCUOLA MATERNA PARITARIA PIETRO FADDA FARINA-A.S. 2016/2017-IMPEGNO DI SPESA.;13-09-2017;676;0;305;1;Spese correnti;4;Trasferimenti correnti;4;Trasferimenti correnti a Istituzioni Sociali Private;1;Trasferimenti correnti a Istituzioni Sociali Private;1;Trasferimenti correnti a Istituzioni Sociali Private;13-09-2017;
1271;1;0;"6.903,66";"6.903,66";COOP. NUOVE IDEE; ;Fatt.n. FATTPA 89_17 del 01/09/2017;13-09-2017;1420;0;26;1;Spese correnti;3;Acquisto di beni e servizi;2;Acquisto di servizi;15;Contratti di servizio pubblico;9;Contratti di servizio di assistenza sociale domiciliare;13-09-2017;
1272;1;0;"500,00";"500,00";OMESSO NOMINATIVO NEL RISPETTO DELLA NORMATIVA SULLA PROTEZIONE DATI PERSONALI; ;SERVIZI ALLA PERSONA. INSERIMENTO SOFFERENTI MENTALI IN STRUTTURE RESIDENZIALI.IMPEGNO DI SPESA ANNO 2017.;13-09-2017;1412;0;18;1;Spese correnti;3;Acquisto di beni e servizi;2;Acquisto di servizi;15;Contratti di servizio pubblico;9;Contratti di servizio di assistenza sociale domiciliare;13-09-2017;
1273;1;0;"200,04";"200,04";OMESSO NOMINATIVO NEL RISPETTO DELLA NORMATIVA SULLA PROTEZIONE DATI PERSONALI; ;DELIBERA REGIONALE N. 70/15/2016 -FONDO REGIONALE PER LA NONAUTOSUFFICIENZA.PROROGA PIANI PERSONALIZZATI LEGGE N. 162/1998 ANNUALITA'2016/GESTIONE 2017.IMPEGNO DI SPESA .;13-09-2017;1420;2;27;1;Spese correnti;4;Trasferimenti correnti;2;Trasferimenti correnti a Famiglie;2;Interventi assistenziali;999;Altri assegni e sussidi assistenziali;13-09-2017;
1274;1;0;"223,88";"223,88";OMESSO NOMINATIVO NEL RISPETTO DELLA NORMATIVA SULLA PROTEZIONE DATI PERSONALI; ;DELIBERA REGIONALE N. 70/15/2016 -FONDO REGIONALE PER LA NONAUTOSUFFICIENZA.PROROGA PIANI PERSONALIZZATI LEGGE N. 162/1998 ANNUALITA'2016/GESTIONE 2017.IMPEGNO DI SPESA .;13-09-2017;1420;2;27;1;Spese correnti;4;Trasferimenti correnti;2;Trasferimenti correnti a Famiglie;2;Interventi assistenziali;999;Altri assegni e sussidi assistenziali;13-09-2017;
1275;1;0;"644,00";"644,00";OMESSO NOMINATIVO NEL RISPETTO DELLA NORMATIVA SULLA PROTEZIONE DATI PERSONALI; ;L.R. 11/185-PROVVIDENZE A FAVORE DI NEFROPATICI-PRESA IN CARICO ANNO 2017 E IMPEGNO DI SPESA.;13-09-2017;1438;0;33;1;Spese correnti;4;Trasferimenti correnti;2;Trasferimenti correnti a Famiglie;2;Interventi assistenziali;999;Altri assegni e sussidi assistenziali;13-09-2017;
1276;1;0;"644,00";"644,00";OMESSO NOMINATIVO NEL RISPETTO DELLA NORMATIVA SULLA PROTEZIONE DATI PERSONALI; ;L.R. 11/185-PROVVIDENZE A FAVORE DI NEFROPATICI-PRESA IN CARICO ANNO 2017 E IMPEGNO DI SPESA.;13-09-2017;1438;0;33;1;Spese correnti;4;Trasferimenti correnti;2;Trasferimenti correnti a Famiglie;2;Interventi assistenziali;999;Altri assegni e sussidi assistenziali;13-09-2017;
1277;1;0;"114,00";"114,00";OMESSO NOMINATIVO NEL RISPETTO DELLA NORMATIVA SULLA PROTEZIONE DATI PERSONALI; ;"IMPEGNO DI SPESA PER L.R. N.9/2014, ART 1- RICONOSCIMENTO BENEFICI ANNO 2017.";13-09-2017;1438;0;140;1;Spese correnti;4;Trasferimenti correnti;2;Trasferimenti correnti a Famiglie;2;Interventi assistenziali;999;Altri assegni e sussidi assistenziali;13-09-2017;
1278;1;0;"4,25";"4,25";TESORIERE COMUNALE BANCO SARDEGNA SASSARI; ;COMMISSIONI SU BONIFICO;13-09-2017;152;0;0;1;Spese correnti;3;Acquisto di beni e servizi;2;Acquisto di servizi;17;Servizi finanziari;999;Spese per servizi finanziari n.a.c.;13-09-2017;
1279;1;0;"452,00";"452,00";NEMEA SISTEMI;Z4C1FC7CCF;Fatt.n. 151/2017 del 05/09/2017 Fatturazione Corporate annuale fornitura GeoMedia 2015/2016 + APP. AnnualitÃ  2017 (2 postazioni) Det N. 124 del 05-09-2017 CIG Z4C1FC7CCF;13-09-2017;82;0;175;1;Spese correnti;3;Acquisto di beni e servizi;1;Acquisto di beni;2;Altri beni di consumo;6;Materiale informatico;13-09-2017;
1280;1;0;"1.500,00";"1.500,00";NEMEA SISTEMI;Z4C1FC7CCF;Fatt.n. 151/2017 del 05/09/2017 Fatturazione Corporate annuale fornitura GeoMedia 2015/2016 + APP. AnnualitÃ  2017 (2 postazioni) Det N. 124 del 05-09-2017 CIG Z4C1FC7CCF;13-09-2017;241;1;176;1;Spese correnti;3;Acquisto di beni e servizi;2;Acquisto di servizi;19;Servizi informatici e di telecomunicazioni;1;Gestione e manutenzione applicazioni;13-09-2017;
1281;1;0;"634,40";"634,40";MURA ENRICO;Z9F1CFECE0;Fatt.n. FATTPA 9_17 del 08/09/2017;14-09-2017;254;0;10;1;Spese correnti;3;Acquisto di beni e servizi;2;Acquisto di servizi;11;Prestazioni professionali e specialistiche;999;Altre prestazioni professionali e specialistiche n.a.c.;14-09-2017;
1282;1;0;"900,00";"900,00";Gruppo Folk San Giorgio USINI;ZAC1F21F10;Organizzazione Rassegna E-State a Tula 2017. Impegno di spesa;14-09-2017;746;0;137;1;Spese correnti;3;Acquisto di beni e servizi;2;Acquisto di servizi;2;"Organizzazione eventi, pubblicita` e servizi per trasferta";5;Organizzazione e partecipazione a manifestazioni e convegni;14-09-2017;
1283;1;0;"431,72";"1.089,75";ENEL ENERGIA;6934049E3D;Fatt.n. 004801183968 del 25/08/2017;14-09-2017;2037;0;346;2;Spese in conto capitale;2;Investimenti fissi lordi e acquisto di terreni;1;Beni materiali;4;Impianti e macchinari;2;Impianti;14-09-2017;
1283;2;0;"658,03";"1.089,75";ENEL ENERGIA;6934049E3D;Fatt.n. 004801183969 del 25/08/2017;14-09-2017;2037;0;346;2;Spese in conto capitale;2;Investimenti fissi lordi e acquisto di terreni;1;Beni materiali;4;Impianti e macchinari;2;Impianti;14-09-2017;
1284;1;0;"234,86";"234,86";ASSOCIAZIONE PRIMAVERA ONLUS;ZCF1E79B4E;Fatt.n. 60C/17/PA del 09/08/2017;14-09-2017;1349;0;99;1;Spese correnti;3;Acquisto di beni e servizi;2;Acquisto di servizi;15;Contratti di servizio pubblico;11;Contratti di servizio per la lotta al randagismo;14-09-2017;
1285;1;0;"2.044,29";"2.044,29";COOP. SPES a r.l.;ZE71CACBD3;Fatt.n. 44 PA del 31/08/2017 Fattura Cliente;14-09-2017;716;5;24;1;Spese correnti;3;Acquisto di beni e servizi;2;Acquisto di servizi;13;Servizi ausiliari per il funzionamento dell'ente;2;Servizi di pulizia e lavanderia;14-09-2017;
1286;1;0;"688,87";"688,87";PARROCCHIA SANT'ELENA; ;Restauro edifici di culto dagli oneri di urbanizzazione;14-09-2017;2038;5;367;2;Spese in conto capitale;2;Investimenti fissi lordi e acquisto di terreni;1;Beni materiali;9;Beni immobili;8;Opere destinate al culto;14-09-2017;
1287;1;0;"5.179,37";"5.179,37";CONSORZIO NETWORK ETICO;687819848C;Fatt.n. 2/1393 del 13/09/2017 SERV.SAD;15-09-2017;1412;0;3;1;Spese correnti;3;Acquisto di beni e servizi;2;Acquisto di servizi;15;Contratti di servizio pubblico;9;Contratti di servizio di assistenza sociale domiciliare;15-09-2017;
1288;1;0;"234,70";"234,70";OMESSO NOMINATIVO NEL RISPETTO DELLA NORMATIVA SULLA PROTEZIONE DATI PERSONALI; ;DELIBERA REGIONALE N. 70/15/2016 -FONDO REGIONALE PER LA NONAUTOSUFFICIENZA.PROROGA PIANI PERSONALIZZATI LEGGE N. 162/1998 ANNUALITA'2016/GESTIONE 2017.IMPEGNO DI SPESA .;18-09-2017;1420;2;27;1;Spese correnti;4;Trasferimenti correnti;2;Trasferimenti correnti a Famiglie;2;Interventi assistenziali;999;Altri assegni e sussidi assistenziali;18-09-2017;
1289;1;0;"315,83";"315,83";OMESSO NOMINATIVO NEL RISPETTO DELLA NORMATIVA SULLA PROTEZIONE DATI PERSONALI; ;DELIBERA REGIONALE N. 70/15/2016 -FONDO REGIONALE PER LA NONAUTOSUFFICIENZA.PROROGA PIANI PERSONALIZZATI LEGGE N. 162/1998 ANNUALITA'2016/GESTIONE 2017.IMPEGNO DI SPESA .;18-09-2017;1420;2;27;1;Spese correnti;4;Trasferimenti correnti;2;Trasferimenti correnti a Famiglie;2;Interventi assistenziali;999;Altri assegni e sussidi assistenziali;18-09-2017;
1290;1;0;"300,00";"300,00";OMESSO NOMINATIVO NEL RISPETTO DELLA NORMATIVA SULLA PROTEZIONE DATI PERSONALI; ;SERVIZI ALLA PERSONA-IMPEGNO DI SPESA PER CONCESSIONE CONTRIBUTO ECONOMICO STRAORDINARIO.;18-09-2017;1434;0;180;1;Spese correnti;4;Trasferimenti correnti;2;Trasferimenti correnti a Famiglie;2;Interventi assistenziali;999;Altri assegni e sussidi assistenziali;18-09-2017;
1291;1;0;"745,92";"745,92";ENEL ENERGIA;Z5E1D69123;Fatt.n. 004801260027 del 10/09/2017;18-09-2017;1012;4;42;1;Spese correnti;3;Acquisto di beni e servizi;2;Acquisto di servizi;5;Utenze e canoni;4;Energia elettrica;18-09-2017;
1292;1;0;"85,88";"85,88";ENEL ENERGIA;Z5E1D69123;Fatt.n. 004801260028 del 10/09/2017;18-09-2017;1012;4;42;1;Spese correnti;3;Acquisto di beni e servizi;2;Acquisto di servizi;5;Utenze e canoni;4;Energia elettrica;18-09-2017;
1293;1;0;"1.518,68";"1.518,68";ENEL ENERGIA;Z5E1D69123;Fatt.n. 004801260029 del 10/09/2017;18-09-2017;1012;4;42;1;Spese correnti;3;Acquisto di beni e servizi;2;Acquisto di servizi;5;Utenze e canoni;4;Energia elettrica;18-09-2017;
1294;1;0;"182,51";"182,51";ENEL ENERGIA;Z5E1D69123;Fatt.n. 004801260030 del 10/09/2017;18-09-2017;1012;4;42;1;Spese correnti;3;Acquisto di beni e servizi;2;Acquisto di servizi;5;Utenze e canoni;4;Energia elettrica;18-09-2017;
1295;1;0;"138,71";"138,71";ENEL ENERGIA;Z111EAE54D;Fatt.n. 004801259364 del 10/09/2017;18-09-2017;1013;0;114;1;Spese correnti;3;Acquisto di beni e servizi;2;Acquisto di servizi;5;Utenze e canoni;4;Energia elettrica;18-09-2017;
1296;1;0;"73,13";"73,13";ENEL ENERGIA;XF2192E4ED;Fatt.n. 004801259363 del 10/09/2017;18-09-2017;1013;0;80;1;Spese correnti;3;Acquisto di beni e servizi;2;Acquisto di servizi;5;Utenze e canoni;4;Energia elettrica;18-09-2017;
1297;1;0;"332,45";"332,45";ENEL ENERGIA;Z111EAE54D;Fatt.n. 004801259358 del 10/09/2017;18-09-2017;1300;0;113;1;Spese correnti;3;Acquisto di beni e servizi;1;Acquisto di beni;2;Altri beni di consumo;999;Altri beni e materiali di consumo n.a.c.;18-09-2017;
1298;1;0;"203,23";"203,23";ENEL ENERGIA;Z111EAE54D;Fatt.n. 004801259360 del 10/09/2017;18-09-2017;1488;3;115;1;Spese correnti;3;Acquisto di beni e servizi;2;Acquisto di servizi;5;Utenze e canoni;4;Energia elettrica;18-09-2017;
1299;1;0;"56,00";"56,00";SERVIZIO ELETTRICO NAZIONALE - SERVIZIO DI MAGGIOR TUTE;Z5E1D69123;Fatt.n. 907152430000317 del 10/09/2017;18-09-2017;1012;4;42;1;Spese correnti;3;Acquisto di beni e servizi;2;Acquisto di servizi;5;Utenze e canoni;4;Energia elettrica;18-09-2017;
1300;1;0;"27,25";"154,79";SERVIZIO ELETTRICO NAZIONALE - SERVIZIO DI MAGGIOR TUTE;XA2192E4EF;Fatt.n. 907152430000417 del 10/09/2017;18-09-2017;1012;4;83;1;Spese correnti;3;Acquisto di beni e servizi;2;Acquisto di servizi;5;Utenze e canoni;4;Energia elettrica;18-09-2017;
1300;2;0;"127,54";"154,79";SERVIZIO ELETTRICO NAZIONALE - SERVIZIO DI MAGGIOR TUTE;XA2192E4EF;Fatt.n. 907157770720017 del 10/09/2017;18-09-2017;1012;4;83;1;Spese correnti;3;Acquisto di beni e servizi;2;Acquisto di servizi;5;Utenze e canoni;4;Energia elettrica;18-09-2017;
1301;1;0;"427,00";"427,00";Kronoweb di Sanna Salvatore;ZD11EAF0DA;Fatt.n. 0091/E del 09/09/2017 FATTURA P.A. SPLIT;19-09-2017;82;2;117;1;Spese correnti;3;Acquisto di beni e servizi;2;Acquisto di servizi;19;Servizi informatici e di telecomunicazioni;1;Gestione e manutenzione applicazioni;19-09-2017;
1302;1;0;"321,44";"321,44";L'ARCOBALENO di Muggianu Rosanna;ZCC1EAEC90;Fatt.n. 394B del 14/09/2017;19-09-2017;714;0;112;1;Spese correnti;3;Acquisto di beni e servizi;1;Acquisto di beni;1;"Giornali, riviste e pubblicazioni";2;Pubblicazioni;19-09-2017;
1303;1;0;"108,56";"108,56";ENEL ENERGIA;Z5C1DD8230;Fatt.n. 004801259359 del 10/09/2017;19-09-2017;824;0;60;1;Spese correnti;3;Acquisto di beni e servizi;2;Acquisto di servizi;5;Utenze e canoni;4;Energia elettrica;19-09-2017;
1304;1;0;"1.064,23";"1.064,23";COOP. NUOVE IDEE;Z391D734B5;Fatt.n. FATTPA 7_17 del 09/02/2017;19-09-2017;1413;0;52;1;Spese correnti;3;Acquisto di beni e servizi;2;Acquisto di servizi;99;Altri servizi;999;Altri servizi diversi n.a.c.;19-09-2017;
1305;1;0;"604,00";"604,00";OMESSO NOMINATIVO NEL RISPETTO DELLA NORMATIVA SULLA PROTEZIONE DATI PERSONALI; ;L.R. 11/185-PROVVIDENZE A FAVORE DI NEFROPATICI-PRESA IN CARICO ANNO 2017 E IMPEGNO DI SPESA.;19-09-2017;1438;0;33;1;Spese correnti;4;Trasferimenti correnti;2;Trasferimenti correnti a Famiglie;2;Interventi assistenziali;999;Altri assegni e sussidi assistenziali;19-09-2017;
1306;1;0;"55.000,00";"55.000,00";COMUNE DI TULA; ;GIROFONDI DA RISORSE COMUNALI PER AGEVOLAZIONI TARI 2017.;19-09-2017;1267;0;185;1;Spese correnti;4;Trasferimenti correnti;1;Trasferimenti correnti a Amministrazioni Pubbliche;2;Trasferimenti correnti a Amministrazioni Locali;3;Trasferimenti correnti a Comuni;19-09-2017;
1307;1;0;"60,00";"60,00";TESORERIA PROV.LE DELLO STATO; ;CA01295796Q Vers. deposito amministrativo indennita' non liquidabile esprorio area in loc. Fundore. DITTA PIRAS SATTA SALIS.DET. 517;19-09-2017;3126;0;111;2;Spese in conto capitale;2;Investimenti fissi lordi e acquisto di terreni;1;Beni materiali;9;Beni immobili;14;Opere per la sistemazione del suolo;19-09-2017;
1308;1;0;"13.377,02";"13.377,02";COOP. SPES a r.l.;698931338C;Fatt.n. 45 PA del 31/08/2017 Fattura Cliente;20-09-2017;3516;0;323;2;Spese in conto capitale;5;Altre spese in conto capitale;99;Altre spese in conto capitale n.a.c.;99;Altre spese in conto capitale n.a.c.;999;Altre spese in conto capitale n.a.c.;20-09-2017;
1337;1;0;"2.000,00";"2.000,00";CONSULTA GIOVANILE TULA; ;IMPEGNO DI SPESA  PER CONTRIBUTO CONSULTA GIOVANILE DI TULA ATTIVITA' 2017.;21-09-2017;761;0;188;1;Spese correnti;4;Trasferimenti correnti;4;Trasferimenti correnti a Istituzioni Sociali Private;1;Trasferimenti correnti a Istituzioni Sociali Private;1;Trasferimenti correnti a Istituzioni Sociali Private;21-09-2017;
1338;1;0;"1.000,00";"1.000,00";OMESSO NOMINATIVO NEL RISPETTO DELLA NORMATIVA SULLA PROTEZIONE DATI PERSONALI; ;IMPEGNO DI SPESA CON SCUOLA SECONDARIA DI SECONDO GRADO A.S. 2017/2018.;21-09-2017;1434;0;187;1;Spese correnti;4;Trasferimenti correnti;2;Trasferimenti correnti a Famiglie;2;Interventi assistenziali;999;Altri assegni e sussidi assistenziali;21-09-2017;
1339;1;0;"2.786,14";"2.786,14";PUDDU SERGIO;Z471FECF;Fatt.n. FATTPA 4_17 del 19/09/2017;21-09-2017;2614;0;181;2;Spese in conto capitale;2;Investimenti fissi lordi e acquisto di terreni;1;Beni materiali;4;Impianti e macchinari;2;Impianti;21-09-2017;
1340;1;0;"900,00";"900,00";SINI CRISTIANO GABRIELE; ;"Programma di assegnazione contributi alle Associazioni locali e Comitati per l'organizzazione delle manifestazioni di carattere sociale, culturale, religioso e sportivo - Anno 2017";21-09-2017;760;0;147;1;Spese correnti;4;Trasferimenti correnti;4;Trasferimenti correnti a Istituzioni Sociali Private;1;Trasferimenti correnti a Istituzioni Sociali Private;1;Trasferimenti correnti a Istituzioni Sociali Private;21-09-2017;
1341;1;0;"7.092,97";"7.092,97";Tedde Gian Michele;Z1B1BE4E70;Fatt.n. FATTPA 5_17 del 12/09/2017;21-09-2017;2037;0;286;2;Spese in conto capitale;2;Investimenti fissi lordi e acquisto di terreni;1;Beni materiali;4;Impianti e macchinari;2;Impianti;21-09-2017;
1342;1;0;"988,00";"988,00";TESORERIA PROV.LE DELLO STATO; ;CA01307016L VERS. deposito amministrativo indennita esproprio non liquidabile area Via Caprera DITTA FURRU COSSU. DET.N.292;21-09-2017;3121;0;153;2;Spese in conto capitale;2;Investimenti fissi lordi e acquisto di terreni;1;Beni materiali;9;Beni immobili;13;Altre vie di comunicazione;21-09-2017;
1343;1;0;"600,00";"600,00";SECHI ANNA RESP. SERV. FINANZ.TRIBUTI ECONOMATO; ;Lavori di prolungamento Via Caprera ESPROPRI.SPESE REG.IPOTECARIA E CATASTALE. DET. N. 292;21-09-2017;3121;0;153;2;Spese in conto capitale;2;Investimenti fissi lordi e acquisto di terreni;1;Beni materiali;9;Beni immobili;13;Altre vie di comunicazione;21-09-2017;
1344;1;0;"500,00";"500,00";SECHI ANNA RESP. SERV. FINANZ.TRIBUTI ECONOMATO; ;Lavori di prolungamento Via Caprera ESPROPRI.SPESE REG.IPOTECARIA E CATASTALE. DET. N. 292;21-09-2017;3121;0;153;2;Spese in conto capitale;2;Investimenti fissi lordi e acquisto di terreni;1;Beni materiali;9;Beni immobili;13;Altre vie di comunicazione;21-09-2017;
1345;1;0;"650,74";"650,74";SATTA GESUINO; ;ART. 82 D. LGS. N. 267/2000 - INDENNITA' DI CARICA AL SINDACO SETTEMBRE.DET. N. 295;22-09-2017;14;1;9;1;Spese correnti;3;Acquisto di beni e servizi;2;Acquisto di servizi;1;Organi e incarichi istituzionali dell'amministrazione;1;Organi istituzionali dell'amministrazione - Indennità;22-09-2017;
1346;1;0;"195,22";"748,34";CANU MARIA PAOLA; ;ART. 82 D. LGS. N. 267/2000 - INDENNITA' ASSESSORI COMUNALI SETTEMBRE. DET. N. 295;22-09-2017;14;1;9;1;Spese correnti;3;Acquisto di beni e servizi;2;Acquisto di servizi;1;Organi e incarichi istituzionali dell'amministrazione;1;Organi istituzionali dell'amministrazione - Indennità;22-09-2017;
1346;2;0;"97,61";"748,34";GAIAS GIANFRANCO; ;ART. 82 D. LGS. N. 267/2000 - INDENNITA' ASSESSORI COMUNALI SETTEMBRE. DET. N. 295;22-09-2017;14;1;9;1;Spese correnti;3;Acquisto di beni e servizi;2;Acquisto di servizi;1;Organi e incarichi istituzionali dell'amministrazione;1;Organi istituzionali dell'amministrazione - Indennità;22-09-2017;
1346;3;0;"260,29";"748,34";PUDDU EMANUELE; ;ART. 82 D. LGS. N. 267/2000 - INDENNITA' ASSESSORI COMUNALI SETTEMBRE. DET. N. 295;22-09-2017;14;1;9;1;Spese correnti;3;Acquisto di beni e servizi;2;Acquisto di servizi;1;Organi e incarichi istituzionali dell'amministrazione;1;Organi istituzionali dell'amministrazione - Indennità;22-09-2017;
1346;4;0;"195,22";"748,34";SERUSI BIANCA; ;ART. 82 D. LGS. N. 267/2000 - INDENNITA' ASSESSORI COMUNALI SETTEMBRE. DET. N. 295;22-09-2017;14;1;9;1;Spese correnti;3;Acquisto di beni e servizi;2;Acquisto di servizi;1;Organi e incarichi istituzionali dell'amministrazione;1;Organi istituzionali dell'amministrazione - Indennità;22-09-2017;
1347;1;0;"118,92";"118,92";TESORERIA PROV.LE DELLO STATO; ;IRAP SU INDENNITA' AMMINISTRATORI SETTEMBRE;22-09-2017;14;1;0;1;Spese correnti;3;Acquisto di beni e servizi;2;Acquisto di servizi;1;Organi e incarichi istituzionali dell'amministrazione;1;Organi istituzionali dell'amministrazione - Indennità;22-09-2017;
1348;1;0;"186,69";"186,69";ENEL ENERGIA;Z111EAE54D;Fatt.n. 004801259365 del 10/09/2017;22-09-2017;1013;0;114;1;Spese correnti;3;Acquisto di beni e servizi;2;Acquisto di servizi;5;Utenze e canoni;4;Energia elettrica;22-09-2017;
1349;1;0;"2.806,37";"2.806,37";CONSORZIO LA SORGENTE;ZO71D74C7D;Fatt.n. 3/180 del 20/09/2017 VENDITA;22-09-2017;1416;0;63;1;Spese correnti;3;Acquisto di beni e servizi;2;Acquisto di servizi;11;Prestazioni professionali e specialistiche;999;Altre prestazioni professionali e specialistiche n.a.c.;22-09-2017;
1350;1;0;"79,61";"79,61";SERVIZIO ELETTRICO NAZIONALE - SERVIZIO DI MAGGIOR TUTE;X7A192E4F0;Fatt.n. 907154150716017 del 10/09/2017;22-09-2017;1013;0;84;1;Spese correnti;3;Acquisto di beni e servizi;2;Acquisto di servizi;5;Utenze e canoni;4;Energia elettrica;22-09-2017;
1351;1;0;"56,19";"56,19";SERVIZIO ELETTRICO NAZIONALE - SERVIZIO DI MAGGIOR TUTE;X7A192E4F0;Fatt.n. 907152430000217 del 10/09/2017;22-09-2017;1013;0;84;1;Spese correnti;3;Acquisto di beni e servizi;2;Acquisto di servizi;5;Utenze e canoni;4;Energia elettrica;22-09-2017;
1352;1;0;"122,00";"122,00";E-DISTRIBUZIONE SPA; ;Fatt.n. 0000917900004794 del 20/09/2017;25-09-2017;3121;0;287;2;Spese in conto capitale;2;Investimenti fissi lordi e acquisto di terreni;1;Beni materiali;9;Beni immobili;12;Infrastrutture stradali;25-09-2017;
1353;1;0;"68,03";"68,03";POSTE ITALIANE Spa;Z8D1F0ACEA;Fatt.n. 8717283926 del 21/09/2017 Fattura Elettronica relativa all'Identificativo Rendiconto 2093625464;25-09-2017;118;2;127;1;Spese correnti;3;Acquisto di beni e servizi;2;Acquisto di servizi;16;Servizi amministrativi;2;Spese postali;25-09-2017;
1354;1;0;"1.006,00";"1.006,00";MONGILI FRANCO;ZA01FFA0E2;Fatt.n. 1PA del 22/09/2017;25-09-2017;3121;0;190;2;Spese in conto capitale;2;Investimenti fissi lordi e acquisto di terreni;1;Beni materiali;9;Beni immobili;12;Infrastrutture stradali;25-09-2017;
1355;1;0;"5.760,36";"5.760,36";ITM TELEMATICA;6934049E3D;Fatt.n. 577 PA del 07/09/2017 DETERM.DIRIG. N.17 DEL 01/02/2017 REG.GEN. N.38 CIG 6934049E3D CONTRATTO APPALTO REPERTORIO N. 09/2017 BUONO N.233/2017/SS;25-09-2017;2037;0;346;2;Spese in conto capitale;2;Investimenti fissi lordi e acquisto di terreni;1;Beni materiali;4;Impianti e macchinari;2;Impianti;25-09-2017;
1356;1;0;"114,12";"114,12";GASPARI;Z751F996DC;Fatt.n. 11775 del 21/09/2017;25-09-2017;82;0;161;1;Spese correnti;3;Acquisto di beni e servizi;1;Acquisto di beni;2;Altri beni di consumo;1;"Carta, cancelleria e stampati";25-09-2017;
1357;1;0;"298,90";"298,90";GASPARI;Z751F996DC;Fatt.n. 11265 del 31/08/2017;25-09-2017;1266;0;162;1;Spese correnti;3;Acquisto di beni e servizi;1;Acquisto di beni;2;Altri beni di consumo;1;"Carta, cancelleria e stampati";25-09-2017;
1359;1;0;"234,86";"234,86";ASSOCIAZIONE PRIMAVERA ONLUS;ZCF1E79B4E;Fatt.n. 70C/17/PA del 11/09/2017;26-09-2017;1349;0;99;1;Spese correnti;3;Acquisto di beni e servizi;2;Acquisto di servizi;15;Contratti di servizio pubblico;11;Contratti di servizio per la lotta al randagismo;26-09-2017;
1360;1;0;"1.494,03";"1.494,03";SEGESTA GESTIONI SRL;Z4C1D4ABDB;Fatt.n. X-1036 del 08/09/2017;26-09-2017;1412;0;36;1;Spese correnti;3;Acquisto di beni e servizi;2;Acquisto di servizi;15;Contratti di servizio pubblico;9;Contratti di servizio di assistenza sociale domiciliare;26-09-2017;
1361;1;0;"500,00";"500,00";OMESSO NOMINATIVO NEL RISPETTO DELLA NORMATIVA SULLA PROTEZIONE DATI PERSONALI; ;IMPEGNO DI SPESA PER L.R. N. 18/2016- REDDITO D'INCLUSIONE SOCIALE-AGGIUDU TORRAU-AVVIO ATTIVITA'.;26-09-2017;1435;0;148;1;Spese correnti;3;Acquisto di beni e servizi;2;Acquisto di servizi;99;Altri servizi;999;Altri servizi diversi n.a.c.;26-09-2017;
1362;1;0;"400,00";"400,00";OMESSO NOMINATIVO NEL RISPETTO DELLA NORMATIVA SULLA PROTEZIONE DATI PERSONALI; ;IMPEGNO DI SPESA PER L.R. N. 18/2016- REDDITO D'INCLUSIONE SOCIALE-AGGIUDU TORRAU-AVVIO ATTIVITA'.;26-09-2017;1435;0;148;1;Spese correnti;3;Acquisto di beni e servizi;2;Acquisto di servizi;99;Altri servizi;999;Altri servizi diversi n.a.c.;26-09-2017;
1363;1;0;"400,00";"400,00";OMESSO NOMINATIVO NEL RISPETTO DELLA NORMATIVA SULLA PROTEZIONE DATI PERSONALI; ;IMPEGNO DI SPESA PER L.R. N. 18/2016- REDDITO D'INCLUSIONE SOCIALE-AGGIUDU TORRAU-AVVIO ATTIVITA'.;26-09-2017;1435;0;148;1;Spese correnti;3;Acquisto di beni e servizi;2;Acquisto di servizi;99;Altri servizi;999;Altri servizi diversi n.a.c.;26-09-2017;
1364;1;0;"200,00";"200,00";OMESSO NOMINATIVO NEL RISPETTO DELLA NORMATIVA SULLA PROTEZIONE DATI PERSONALI; ;IMPEGNO DI SPESA PER L.R. N. 18/2016- REDDITO D'INCLUSIONE SOCIALE-AGGIUDU TORRAU-AVVIO ATTIVITA'.;26-09-2017;1435;0;148;1;Spese correnti;3;Acquisto di beni e servizi;2;Acquisto di servizi;99;Altri servizi;999;Altri servizi diversi n.a.c.;26-09-2017;
1365;1;0;"200,00";"200,00";OMESSO NOMINATIVO NEL RISPETTO DELLA NORMATIVA SULLA PROTEZIONE DATI PERSONALI; ;IMPEGNO DI SPESA PER L.R. N. 18/2016- REDDITO D'INCLUSIONE SOCIALE-AGGIUDU TORRAU-AVVIO ATTIVITA'.;26-09-2017;1435;0;148;1;Spese correnti;3;Acquisto di beni e servizi;2;Acquisto di servizi;99;Altri servizi;999;Altri servizi diversi n.a.c.;26-09-2017;
1366;1;0;"200,00";"200,00";OMESSO NOMINATIVO NEL RISPETTO DELLA NORMATIVA SULLA PROTEZIONE DATI PERSONALI; ;IMPEGNO DI SPESA PER L.R. N. 18/2016- REDDITO D'INCLUSIONE SOCIALE-AGGIUDU TORRAU-AVVIO ATTIVITA'.;26-09-2017;1435;0;148;1;Spese correnti;3;Acquisto di beni e servizi;2;Acquisto di servizi;99;Altri servizi;999;Altri servizi diversi n.a.c.;26-09-2017;
1367;1;0;"300,00";"300,00";OMESSO NOMINATIVO NEL RISPETTO DELLA NORMATIVA SULLA PROTEZIONE DATI PERSONALI; ;IMPEGNO DI SPESA PER L.R. N. 18/2016- REDDITO D'INCLUSIONE SOCIALE-AGGIUDU TORRAU-AVVIO ATTIVITA'.;26-09-2017;1435;0;148;1;Spese correnti;3;Acquisto di beni e servizi;2;Acquisto di servizi;99;Altri servizi;999;Altri servizi diversi n.a.c.;26-09-2017;
1368;1;0;"200,00";"200,00";OMESSO NOMINATIVO NEL RISPETTO DELLA NORMATIVA SULLA PROTEZIONE DATI PERSONALI; ;IMPEGNO DI SPESA PER L.R. N. 18/2016- REDDITO D'INCLUSIONE SOCIALE-AGGIUDU TORRAU-AVVIO ATTIVITA'.;26-09-2017;1435;0;148;1;Spese correnti;3;Acquisto di beni e servizi;2;Acquisto di servizi;99;Altri servizi;999;Altri servizi diversi n.a.c.;26-09-2017;
1369;1;0;"200,00";"200,00";OMESSO NOMINATIVO NEL RISPETTO DELLA NORMATIVA SULLA PROTEZIONE DATI PERSONALI; ;IMPEGNO DI SPESA PER L.R. N. 18/2016- REDDITO D'INCLUSIONE SOCIALE-AGGIUDU TORRAU-AVVIO ATTIVITA'.;26-09-2017;1435;0;148;1;Spese correnti;3;Acquisto di beni e servizi;2;Acquisto di servizi;99;Altri servizi;999;Altri servizi diversi n.a.c.;26-09-2017;
1370;1;0;"300,00";"300,00";OMESSO NOMINATIVO NEL RISPETTO DELLA NORMATIVA SULLA PROTEZIONE DATI PERSONALI; ;IMPEGNO DI SPESA PER L.R. N. 18/2016- REDDITO D'INCLUSIONE SOCIALE-AGGIUDU TORRAU-AVVIO ATTIVITA'.;26-09-2017;1435;0;148;1;Spese correnti;3;Acquisto di beni e servizi;2;Acquisto di servizi;99;Altri servizi;999;Altri servizi diversi n.a.c.;26-09-2017;
1371;1;0;"3.500,00";"3.500,00";CONSAI SRL;Z401B569F5;RINNOVO POLIZZA TUTELA LEGALE ENTE - IMPEGNO E LIQUIDAZIONE.;26-09-2017;100;0;197;1;Spese correnti;10;Altre spese correnti;4;Premi di assicurazione;1;Premi di assicurazione contro i danni;3;Premi di assicurazione per responsabilità civile verso terzi;26-09-2017;
1372;1;0;"600,00";"600,00";SECHI ANNA RESP. SERV. FINANZ.TRIBUTI ECONOMATO; ;Lavori di prolungamento Via Caprera. SPESE REG. IPOTECARIA E CATASTALE. DET. N. 259;27-09-2017;3121;0;153;2;Spese in conto capitale;2;Investimenti fissi lordi e acquisto di terreni;1;Beni materiali;9;Beni immobili;13;Altre vie di comunicazione;27-09-2017;
1373;1;0;"500,00";"500,00";SECHI ANNA RESP. SERV. FINANZ.TRIBUTI ECONOMATO; ;Lavori di prolungamento Via Caprera. SALDO SPESE REG. IPOT.E CATASTALE. DET. N. 259;27-09-2017;3121;0;153;2;Spese in conto capitale;2;Investimenti fissi lordi e acquisto di terreni;1;Beni materiali;9;Beni immobili;13;Altre vie di comunicazione;27-09-2017;
1377;1;0;"1.982,62";"1.982,62";BECCIU SARA;Z681FED19E;Fatt.n. 1/PA del 22/09/2017 IMPEGNO DI SPESA PER FORNITURA LIBRI SCUOLA PRIMARIA ANNO SCOLASTICO 2017/2018. DETERMINA REG. GEN.LE N 280 DEL 18/09/2017  CIG Z681FED19E;27-09-2017;606;0;182;1;Spese correnti;4;Trasferimenti correnti;2;Trasferimenti correnti a Famiglie;5;Altri trasferimenti a famiglie;999;Altri trasferimenti a famiglie n.a.c.;27-09-2017;
1379;1;0;"400,00";"400,00";OMESSO NOMINATIVO NEL RISPETTO DELLA NORMATIVA SULLA PROTEZIONE DATI PERSONALI; ;IMPEGNO DI SPESA PER L.R. N. 18/2016- REDDITO D'INCLUSIONE SOCIALE-AGGIUDU TORRAU-AVVIO ATTIVITA'.;28-09-2017;1435;0;148;1;Spese correnti;3;Acquisto di beni e servizi;2;Acquisto di servizi;99;Altri servizi;999;Altri servizi diversi n.a.c.;28-09-2017;
1380;1;0;"274,50";"274,50";PUDDU PALMIRO;Z721FE0C4C;Fatt.n. 13/PA/2017 del 26/09/2017 SERVIZIO;28-09-2017;2614;0;179;2;Spese in conto capitale;2;Investimenti fissi lordi e acquisto di terreni;1;Beni materiali;4;Impianti e macchinari;2;Impianti;28-09-2017;
1381;1;0;"1.626,66";"1.626,66";SOTGIU GIUSEPPE;Z311D4E83B;Fatt.n. 9/PA del 26/09/2017 AFFIDAMENTO LAVORI DI MANUTENZIONE ORDINARIA IMPIANTO DI ILLUMINAZIONE DITTA SOTGIU GIUSEPPE ANNO 2017- CIG Z311D4E83B REG. GEN NR. 56 DEL 09-02-2017-BIMESTRE LUGLIO-AGOSTO 2017;28-09-2017;1012;0;35;1;Spese correnti;3;Acquisto di beni e servizi;2;Acquisto di servizi;9;Manutenzione ordinaria e riparazioni;4;Manutenzione ordinaria e riparazioni di impianti e macchinari;28-09-2017;
1382;1;0;"2.999,98";"2.999,98";FIORI ANTONIO;Z641FB8D2E;Fatt.n. 3PA del 19/09/2017;28-09-2017;3121;0;170;2;Spese in conto capitale;2;Investimenti fissi lordi e acquisto di terreni;1;Beni materiali;9;Beni immobili;12;Infrastrutture stradali;28-09-2017;
1383;1;0;"488,00";"488,00";CHIRIGONI ALESSANDRO;Z661FED20F;Fatt.n. 18_PA_17 del 22/09/2017;28-09-2017;654;0;183;1;Spese correnti;3;Acquisto di beni e servizi;2;Acquisto di servizi;15;Contratti di servizio pubblico;6;Contratti di servizio per le mense scolastiche;28-09-2017;
1385;1;0;"827,94";"827,94";GOODEA SRL;ZF32015212;ACCONTO Fatt.n. 1896/A  del 10/10/2017;02-10-2017;122;0;201;1;Spese correnti;3;Acquisto di beni e servizi;2;Acquisto di servizi;99;Altri servizi;999;Altri servizi diversi n.a.c.;02-10-2017;
1386;1;0;"92,00";"92,00";FIORI MARIO;Z10201DBEC;Fatt.n. FATTPA 14_17 del 30/09/2017;03-10-2017;1300;8;205;1;Spese correnti;3;Acquisto di beni e servizi;1;Acquisto di beni;2;Altri beni di consumo;2;"Carburanti, combustibili e lubrificanti";03-10-2017;
1387;1;0;"200,00";"200,00";OMESSO NOMINATIVO NEL RISPETTO DELLA NORMATIVA SULLA PROTEZIONE DATI PERSONALI; ;SERVIZI ALLA PERSONA. INSERIMENTO SOFFERENTI MENTALI IN STRUTTURE RESIDENZIALI.IMPEGNO DI SPESA ANNO 2017.;04-10-2017;1412;0;18;1;Spese correnti;3;Acquisto di beni e servizi;2;Acquisto di servizi;15;Contratti di servizio pubblico;9;Contratti di servizio di assistenza sociale domiciliare;04-10-2017;
1388;1;0;"151,50";"151,50";OMESSO NOMINATIVO NEL RISPETTO DELLA NORMATIVA SULLA PROTEZIONE DATI PERSONALI; ;DELIBERA REGIONALE N. 70/15/2016 -FONDO REGIONALE PER LA NONAUTOSUFFICIENZA.PROROGA PIANI PERSONALIZZATI LEGGE N. 162/1998 ANNUALITA'2016/GESTIONE 2017.IMPEGNO DI SPESA .;04-10-2017;1420;2;27;1;Spese correnti;4;Trasferimenti correnti;2;Trasferimenti correnti a Famiglie;2;Interventi assistenziali;999;Altri assegni e sussidi assistenziali;04-10-2017;
1389;1;0;"144,67";"144,67";OMESSO NOMINATIVO NEL RISPETTO DELLA NORMATIVA SULLA PROTEZIONE DATI PERSONALI; ;DELIBERA REGIONALE N. 70/15/2016 -FONDO REGIONALE PER LA NONAUTOSUFFICIENZA.PROROGA PIANI PERSONALIZZATI LEGGE N. 162/1998 ANNUALITA'2016/GESTIONE 2017.IMPEGNO DI SPESA .;04-10-2017;1420;2;27;1;Spese correnti;4;Trasferimenti correnti;2;Trasferimenti correnti a Famiglie;2;Interventi assistenziali;999;Altri assegni e sussidi assistenziali;04-10-2017;
1390;1;0;"188,69";"188,69";OMESSO NOMINATIVO NEL RISPETTO DELLA NORMATIVA SULLA PROTEZIONE DATI PERSONALI; ;DELIBERA REGIONALE N. 70/15/2016 -FONDO REGIONALE PER LA NONAUTOSUFFICIENZA.PROROGA PIANI PERSONALIZZATI LEGGE N. 162/1998 ANNUALITA'2016/GESTIONE 2017.IMPEGNO DI SPESA .;04-10-2017;1420;2;27;1;Spese correnti;4;Trasferimenti correnti;2;Trasferimenti correnti a Famiglie;2;Interventi assistenziali;999;Altri assegni e sussidi assistenziali;04-10-2017;
1391;1;0;"997,97";"997,97";OMESSO NOMINATIVO NEL RISPETTO DELLA NORMATIVA SULLA PROTEZIONE DATI PERSONALI; ;DELIBERA REGIONALE N. 70/15/2016 -FONDO REGIONALE PER LA NONAUTOSUFFICIENZA.PROROGA PIANI PERSONALIZZATI LEGGE N. 162/1998 ANNUALITA'2016/GESTIONE 2017.IMPEGNO DI SPESA .;04-10-2017;1420;2;27;1;Spese correnti;4;Trasferimenti correnti;2;Trasferimenti correnti a Famiglie;2;Interventi assistenziali;999;Altri assegni e sussidi assistenziali;04-10-2017;
1392;1;0;"632,06";"632,06";OMESSO NOMINATIVO NEL RISPETTO DELLA NORMATIVA SULLA PROTEZIONE DATI PERSONALI; ;DELIBERA REGIONALE N. 70/15/2016 -FONDO REGIONALE PER LA NONAUTOSUFFICIENZA.PROROGA PIANI PERSONALIZZATI LEGGE N. 162/1998 ANNUALITA'2016/GESTIONE 2017.IMPEGNO DI SPESA .;04-10-2017;1420;2;27;1;Spese correnti;4;Trasferimenti correnti;2;Trasferimenti correnti a Famiglie;2;Interventi assistenziali;999;Altri assegni e sussidi assistenziali;04-10-2017;
1393;1;0;"10.341,38";"10.341,38";Habitat Sardegna S.r.l;Z2E1C80FDF;Fatt.n. FATTPA 15_17 del 02/10/2017;04-10-2017;2611;0;190;2;Spese in conto capitale;2;Investimenti fissi lordi e acquisto di terreni;1;Beni materiali;9;Beni immobili;999;Beni immobili n.a.c.;04-10-2017;
1394;1;0;"37,08";"37,08";"EDILCAMPUS S.N.C. DI CAMPUS MASSIMILIANO &amp; CAMPUS";ZA11FFB5BE;Fatt.n. 6/PA del 31/08/2017;04-10-2017;1422;0;193;1;Spese correnti;3;Acquisto di beni e servizi;1;Acquisto di beni;2;Altri beni di consumo;999;Altri beni e materiali di consumo n.a.c.;04-10-2017;
1395;1;0;"199,27";"199,27";OMESSO NOMINATIVO NEL RISPETTO DELLA NORMATIVA SULLA PROTEZIONE DATI PERSONALI; ;DELIBERA REGIONALE N. 70/15/2016 -FONDO REGIONALE PER LA NONAUTOSUFFICIENZA.PROROGA PIANI PERSONALIZZATI LEGGE N. 162/1998 ANNUALITA'2016/GESTIONE 2017.IMPEGNO DI SPESA .;05-10-2017;1420;2;27;1;Spese correnti;4;Trasferimenti correnti;2;Trasferimenti correnti a Famiglie;2;Interventi assistenziali;999;Altri assegni e sussidi assistenziali;05-10-2017;
1396;1;0;"1.256,17";"1.256,17";OMESSO NOMINATIVO NEL RISPETTO DELLA NORMATIVA SULLA PROTEZIONE DATI PERSONALI; ;DELIBERA REGIONALE N. 70/15/2016 -FONDO REGIONALE PER LA NONAUTOSUFFICIENZA.PROROGA PIANI PERSONALIZZATI LEGGE N. 162/1998 ANNUALITA'2016/GESTIONE 2017.IMPEGNO DI SPESA .;05-10-2017;1420;2;27;1;Spese correnti;4;Trasferimenti correnti;2;Trasferimenti correnti a Famiglie;2;Interventi assistenziali;999;Altri assegni e sussidi assistenziali;05-10-2017;
1397;1;0;"162,37";"162,37";OMESSO NOMINATIVO NEL RISPETTO DELLA NORMATIVA SULLA PROTEZIONE DATI PERSONALI; ;DELIBERA REGIONALE N. 70/15/2016 -FONDO REGIONALE PER LA NONAUTOSUFFICIENZA.PROROGA PIANI PERSONALIZZATI LEGGE N. 162/1998 ANNUALITA'2016/GESTIONE 2017.IMPEGNO DI SPESA .;05-10-2017;1420;2;27;1;Spese correnti;4;Trasferimenti correnti;2;Trasferimenti correnti a Famiglie;2;Interventi assistenziali;999;Altri assegni e sussidi assistenziali;05-10-2017;
1398;1;0;"89,09";"89,09";OMESSO NOMINATIVO NEL RISPETTO DELLA NORMATIVA SULLA PROTEZIONE DATI PERSONALI; ;DELIBERA REGIONALE N. 70/15/2016 -FONDO REGIONALE PER LA NONAUTOSUFFICIENZA.PROROGA PIANI PERSONALIZZATI LEGGE N. 162/1998 ANNUALITA'2016/GESTIONE 2017.IMPEGNO DI SPESA .;05-10-2017;1420;2;27;1;Spese correnti;4;Trasferimenti correnti;2;Trasferimenti correnti a Famiglie;2;Interventi assistenziali;999;Altri assegni e sussidi assistenziali;05-10-2017;
1399;1;0;"193,85";"193,85";OMESSO NOMINATIVO NEL RISPETTO DELLA NORMATIVA SULLA PROTEZIONE DATI PERSONALI; ;DELIBERA REGIONALE N. 70/15/2016 -FONDO REGIONALE PER LA NONAUTOSUFFICIENZA.PROROGA PIANI PERSONALIZZATI LEGGE N. 162/1998 ANNUALITA'2016/GESTIONE 2017.IMPEGNO DI SPESA .;05-10-2017;1420;2;27;1;Spese correnti;4;Trasferimenti correnti;2;Trasferimenti correnti a Famiglie;2;Interventi assistenziali;999;Altri assegni e sussidi assistenziali;05-10-2017;
1400;1;0;"187,50";"187,50";OMESSO NOMINATIVO NEL RISPETTO DELLA NORMATIVA SULLA PROTEZIONE DATI PERSONALI; ;DELIBERA REGIONALE N. 70/15/2016 -FONDO REGIONALE PER LA NONAUTOSUFFICIENZA.PROROGA PIANI PERSONALIZZATI LEGGE N. 162/1998 ANNUALITA'2016/GESTIONE 2017.IMPEGNO DI SPESA .;05-10-2017;1420;2;27;1;Spese correnti;4;Trasferimenti correnti;2;Trasferimenti correnti a Famiglie;2;Interventi assistenziali;999;Altri assegni e sussidi assistenziali;05-10-2017;
1401;1;0;"194,58";"194,58";OMESSO NOMINATIVO NEL RISPETTO DELLA NORMATIVA SULLA PROTEZIONE DATI PERSONALI; ;DELIBERA REGIONALE N. 70/15/2016 -FONDO REGIONALE PER LA NONAUTOSUFFICIENZA.PROROGA PIANI PERSONALIZZATI LEGGE N. 162/1998 ANNUALITA'2016/GESTIONE 2017.IMPEGNO DI SPESA .;05-10-2017;1420;2;27;1;Spese correnti;4;Trasferimenti correnti;2;Trasferimenti correnti a Famiglie;2;Interventi assistenziali;999;Altri assegni e sussidi assistenziali;05-10-2017;
1402;1;0;"377,91";"377,91";OMESSO NOMINATIVO NEL RISPETTO DELLA NORMATIVA SULLA PROTEZIONE DATI PERSONALI; ;DELIBERA REGIONALE N. 70/15/2016 -FONDO REGIONALE PER LA NONAUTOSUFFICIENZA.PROROGA PIANI PERSONALIZZATI LEGGE N. 162/1998 ANNUALITA'2016/GESTIONE 2017.IMPEGNO DI SPESA .;05-10-2017;1420;2;27;1;Spese correnti;4;Trasferimenti correnti;2;Trasferimenti correnti a Famiglie;2;Interventi assistenziali;999;Altri assegni e sussidi assistenziali;05-10-2017;
1403;1;0;"212,00";"212,00";OMESSO NOMINATIVO NEL RISPETTO DELLA NORMATIVA SULLA PROTEZIONE DATI PERSONALI; ;L.R.N. 9/2004- ART. 1 PRESA IN CARICO E IMPEGNO DI SPESA 2017.;05-10-2017;1438;0;96;1;Spese correnti;4;Trasferimenti correnti;2;Trasferimenti correnti a Famiglie;2;Interventi assistenziali;999;Altri assegni e sussidi assistenziali;05-10-2017;
1404;1;0;"2.044,29";"2.044,29";COOP. SPES a r.l.;ZE71CACBD3;Fatt.n. 50 PA del 30/09/2017 Fattura Cliente;05-10-2017;118;5;23;1;Spese correnti;3;Acquisto di beni e servizi;2;Acquisto di servizi;13;Servizi ausiliari per il funzionamento dell'ente;2;Servizi di pulizia e lavanderia;05-10-2017;
1405;1;0;"2.055,60";"2.055,60";UNIONE DEI COMUNI DEL LOGUDORO; ;SERVIZIO ASSOCIATO NUCLEO DI VALUTAZIONE - ANNUALITA' 2017 - IMPEGNO E LIQUIDAZIONE.;05-10-2017;35;0;207;1;Spese correnti;4;Trasferimenti correnti;1;Trasferimenti correnti a Amministrazioni Pubbliche;2;Trasferimenti correnti a Amministrazioni Locali;5;Trasferimenti correnti a Unioni di Comuni;05-10-2017;
1406;1;0;"2.793,80";"2.793,80";SOTGIU GIUSEPPE;ZC42022AD5;Fatt.n. 11/PA del 05/10/2017 MANUTENZIONE STRAORDINARIA  ILLUMINAZIONE PUBBLICA CIG ZC42022AD5 DET REG. GEN.LE 310 DEL 03/10/2017;09-10-2017;3121;0;206;2;Spese in conto capitale;2;Investimenti fissi lordi e acquisto di terreni;1;Beni materiali;9;Beni immobili;12;Infrastrutture stradali;09-10-2017;
1407;1;0;"3.631,78";"3.631,78";PUDDU PALMIRO;ZD71C6B73C;Fatt.n. 14/PA/2017 del 29/09/2017 SERVIZIO;09-10-2017;1488;0;21;1;Spese correnti;3;Acquisto di beni e servizi;2;Acquisto di servizi;13;Servizi ausiliari per il funzionamento dell'ente;999;Altri servizi ausiliari n.a.c.;09-10-2017;
1408;1;0;"4.604,28";"4.604,28";BBG SARDEGNA SRL;Z311CF46F1;Fatt.n. FATTPA 59_17 del 06/10/2017;09-10-2017;200;0;6;1;Spese correnti;3;Acquisto di beni e servizi;2;Acquisto di servizi;99;Altri servizi;999;Altri servizi diversi n.a.c.;09-10-2017;
1409;1;0;"198,78";"198,78";OMESSO NOMINATIVO NEL RISPETTO DELLA NORMATIVA SULLA PROTEZIONE DATI PERSONALI; ;DELIBERA REGIONALE N. 70/15/2016 -FONDO REGIONALE PER LA NONAUTOSUFFICIENZA.PROROGA PIANI PERSONALIZZATI LEGGE N. 162/1998 ANNUALITA'2016/GESTIONE 2017.IMPEGNO DI SPESA .;10-10-2017;1420;2;27;1;Spese correnti;4;Trasferimenti correnti;2;Trasferimenti correnti a Famiglie;2;Interventi assistenziali;999;Altri assegni e sussidi assistenziali;10-10-2017;
1410;1;0;"352,23";"352,23";OMESSO NOMINATIVO NEL RISPETTO DELLA NORMATIVA SULLA PROTEZIONE DATI PERSONALI; ;DELIBERA REGIONALE N. 70/15/2016 -FONDO REGIONALE PER LA NONAUTOSUFFICIENZA.PROROGA PIANI PERSONALIZZATI LEGGE N. 162/1998 ANNUALITA'2016/GESTIONE 2017.IMPEGNO DI SPESA .;10-10-2017;1420;2;27;1;Spese correnti;4;Trasferimenti correnti;2;Trasferimenti correnti a Famiglie;2;Interventi assistenziali;999;Altri assegni e sussidi assistenziali;10-10-2017;
1411;1;0;"561,66";"561,66";OMESSO NOMINATIVO NEL RISPETTO DELLA NORMATIVA SULLA PROTEZIONE DATI PERSONALI; ;DELIBERA REGIONALE N. 70/15/2016 -FONDO REGIONALE PER LA NONAUTOSUFFICIENZA.PROROGA PIANI PERSONALIZZATI LEGGE N. 162/1998 ANNUALITA'2016/GESTIONE 2017.IMPEGNO DI SPESA .;10-10-2017;1420;2;27;1;Spese correnti;4;Trasferimenti correnti;2;Trasferimenti correnti a Famiglie;2;Interventi assistenziali;999;Altri assegni e sussidi assistenziali;10-10-2017;
1412;1;0;"222,82";"222,82";OMESSO NOMINATIVO NEL RISPETTO DELLA NORMATIVA SULLA PROTEZIONE DATI PERSONALI; ;DELIBERA REGIONALE N. 70/15/2016 -FONDO REGIONALE PER LA NONAUTOSUFFICIENZA.PROROGA PIANI PERSONALIZZATI LEGGE N. 162/1998 ANNUALITA'2016/GESTIONE 2017.IMPEGNO DI SPESA .;10-10-2017;1420;2;27;1;Spese correnti;4;Trasferimenti correnti;2;Trasferimenti correnti a Famiglie;2;Interventi assistenziali;999;Altri assegni e sussidi assistenziali;10-10-2017;
1413;1;0;"234,76";"234,76";OMESSO NOMINATIVO NEL RISPETTO DELLA NORMATIVA SULLA PROTEZIONE DATI PERSONALI; ;DELIBERA REGIONALE N. 70/15/2016 -FONDO REGIONALE PER LA NONAUTOSUFFICIENZA.PROROGA PIANI PERSONALIZZATI LEGGE N. 162/1998 ANNUALITA'2016/GESTIONE 2017.IMPEGNO DI SPESA .;10-10-2017;1420;2;27;1;Spese correnti;4;Trasferimenti correnti;2;Trasferimenti correnti a Famiglie;2;Interventi assistenziali;999;Altri assegni e sussidi assistenziali;10-10-2017;
1414;1;0;"100,82";"100,82";OMESSO NOMINATIVO NEL RISPETTO DELLA NORMATIVA SULLA PROTEZIONE DATI PERSONALI; ;DELIBERA REGIONALE N. 70/15/2016 -FONDO REGIONALE PER LA NONAUTOSUFFICIENZA.PROROGA PIANI PERSONALIZZATI LEGGE N. 162/1998 ANNUALITA'2016/GESTIONE 2017.IMPEGNO DI SPESA .;10-10-2017;1420;2;27;1;Spese correnti;4;Trasferimenti correnti;2;Trasferimenti correnti a Famiglie;2;Interventi assistenziali;999;Altri assegni e sussidi assistenziali;10-10-2017;
1415;1;0;"458,92";"458,92";OMESSO NOMINATIVO NEL RISPETTO DELLA NORMATIVA SULLA PROTEZIONE DATI PERSONALI; ;DELIBERA REGIONALE N. 70/15/2016 -FONDO REGIONALE PER LA NONAUTOSUFFICIENZA.PROROGA PIANI PERSONALIZZATI LEGGE N. 162/1998 ANNUALITA'2016/GESTIONE 2017.IMPEGNO DI SPESA .;10-10-2017;1420;2;27;1;Spese correnti;4;Trasferimenti correnti;2;Trasferimenti correnti a Famiglie;2;Interventi assistenziali;999;Altri assegni e sussidi assistenziali;10-10-2017;
1416;1;0;"548,00";"548,00";OMESSO NOMINATIVO NEL RISPETTO DELLA NORMATIVA SULLA PROTEZIONE DATI PERSONALI; ;DELIBERA REGIONALE N. 70/15/2016 -FONDO REGIONALE PER LA NONAUTOSUFFICIENZA.PROROGA PIANI PERSONALIZZATI LEGGE N. 162/1998 ANNUALITA'2016/GESTIONE 2017.IMPEGNO DI SPESA .;10-10-2017;1420;2;27;1;Spese correnti;4;Trasferimenti correnti;2;Trasferimenti correnti a Famiglie;2;Interventi assistenziali;999;Altri assegni e sussidi assistenziali;10-10-2017;
1417;1;0;"235,68";"235,68";OMESSO NOMINATIVO NEL RISPETTO DELLA NORMATIVA SULLA PROTEZIONE DATI PERSONALI; ;DELIBERA REGIONALE N. 70/15/2016 -FONDO REGIONALE PER LA NONAUTOSUFFICIENZA.PROROGA PIANI PERSONALIZZATI LEGGE N. 162/1998 ANNUALITA'2016/GESTIONE 2017.IMPEGNO DI SPESA .;10-10-2017;1420;2;27;1;Spese correnti;4;Trasferimenti correnti;2;Trasferimenti correnti a Famiglie;2;Interventi assistenziali;999;Altri assegni e sussidi assistenziali;10-10-2017;
1418;1;0;"604,00";"604,00";OMESSO NOMINATIVO NEL RISPETTO DELLA NORMATIVA SULLA PROTEZIONE DATI PERSONALI; ;L.R. 11/185-PROVVIDENZE A FAVORE DI NEFROPATICI-PRESA IN CARICO ANNO 2017 E IMPEGNO DI SPESA.;10-10-2017;1438;0;33;1;Spese correnti;4;Trasferimenti correnti;2;Trasferimenti correnti a Famiglie;2;Interventi assistenziali;999;Altri assegni e sussidi assistenziali;10-10-2017;
1419;1;0;"2.840,40";"2.840,40";HALLEY SARDEGNA SRL;ZD71D0213A;Fatt.n. 0001073 del 04/10/2017;10-10-2017;82;2;45;1;Spese correnti;3;Acquisto di beni e servizi;2;Acquisto di servizi;19;Servizi informatici e di telecomunicazioni;1;Gestione e manutenzione applicazioni;10-10-2017;
1420;1;0;"26,46";"26,46";MC LINK SPA;Z371DDA551;Fatt.n. 610002145 del 15/09/2017 FATTURA DI VENDITA SERVIZI;10-10-2017;118;3;64;1;Spese correnti;3;Acquisto di beni e servizi;2;Acquisto di servizi;5;Utenze e canoni;1;Telefonia fissa;10-10-2017;
1421;1;0;"100,00";"100,00";ASSOCIAZIONE CULTURALE CANTIGOS A CHITERRA;ZAC1F21F10;Organizzazione Rassegna E-State a Tula 2017. Impegno di spesa;10-10-2017;746;0;137;1;Spese correnti;3;Acquisto di beni e servizi;2;Acquisto di servizi;2;"Organizzazione eventi, pubblicita` e servizi per trasferta";5;Organizzazione e partecipazione a manifestazioni e convegni;10-10-2017;
1422;1;0;"300,00";"300,00";SINI CRISTIANO GABRIELE; ;Integrazione calendario manifestazioni inserire della rassegna estiva "E-state a Tula" 2017;10-10-2017;746;0;211;1;Spese correnti;3;Acquisto di beni e servizi;2;Acquisto di servizi;2;"Organizzazione eventi, pubblicita` e servizi per trasferta";5;Organizzazione e partecipazione a manifestazioni e convegni;10-10-2017;
1423;1;0;"1.333,00";"1.333,00";Cooperativa Sviluppo Servizi Italia;ZCD1CE6D2A;Fatt.n. 135 del 31/07/2017;10-10-2017;1416;0;12;1;Spese correnti;3;Acquisto di beni e servizi;2;Acquisto di servizi;11;Prestazioni professionali e specialistiche;999;Altre prestazioni professionali e specialistiche n.a.c.;10-10-2017;
1424;1;0;"1.257,82";"1.257,82";ALPINE SRL;Z2920145C9;Fatt.n. 6/E del 06/10/2017;11-10-2017;2614;0;200;2;Spese in conto capitale;2;Investimenti fissi lordi e acquisto di terreni;1;Beni materiali;4;Impianti e macchinari;2;Impianti;11-10-2017;
1425;1;0;"1.039,50";"1.039,50";elio giacomo pittalis;Z8B1F6A9D4;Fatt.n. FATTPA 3_17 del 02/10/2017;11-10-2017;254;0;157;1;Spese correnti;3;Acquisto di beni e servizi;2;Acquisto di servizi;11;Prestazioni professionali e specialistiche;999;Altre prestazioni professionali e specialistiche n.a.c.;11-10-2017;
1426;1;0;"737,88";"737,88";COOP. NUOVE IDEE;Z7C1E09453;Fatt.n. FATTPA 97_17 del 10/10/2017;11-10-2017;715;0;76;1;Spese correnti;3;Acquisto di beni e servizi;2;Acquisto di servizi;11;Prestazioni professionali e specialistiche;999;Altre prestazioni professionali e specialistiche n.a.c.;11-10-2017;
1427;1;0;"500,00";"500,00";OMESSO NOMINATIVO NEL RISPETTO DELLA NORMATIVA SULLA PROTEZIONE DATI PERSONALI; ;SERVIZI ALLA PERSONA. INSERIMENTO SOFFERENTI MENTALI IN STRUTTURE RESIDENZIALI.IMPEGNO DI SPESA ANNO 2017.;11-10-2017;1412;0;18;1;Spese correnti;3;Acquisto di beni e servizi;2;Acquisto di servizi;15;Contratti di servizio pubblico;9;Contratti di servizio di assistenza sociale domiciliare;11-10-2017;
1428;1;0;"2.210,00";"2.210,00";FONDAZIONE LA SPERANZA;Z4E2001AE9;IMPEGNO DI SPESA CON LA FONDAZIONE "LA SPERANZA" DI OZIERI PER INSERIMENTO NELLA COMUNITA' ALLOGGIO TOLA GAJAS.;11-10-2017;1416;0;195;1;Spese correnti;3;Acquisto di beni e servizi;2;Acquisto di servizi;11;Prestazioni professionali e specialistiche;999;Altre prestazioni professionali e specialistiche n.a.c.;11-10-2017;
1429;1;0;"604,00";"604,00";OMESSO NOMINATIVO NEL RISPETTO DELLA NORMATIVA SULLA PROTEZIONE DATI PERSONALI; ;L.R. 11/185-PROVVIDENZE A FAVORE DI NEFROPATICI-PRESA IN CARICO ANNO 2017 E IMPEGNO DI SPESA.;11-10-2017;1438;0;33;1;Spese correnti;4;Trasferimenti correnti;2;Trasferimenti correnti a Famiglie;2;Interventi assistenziali;999;Altri assegni e sussidi assistenziali;11-10-2017;
1430;1;0;"604,00";"604,00";OMESSO NOMINATIVO NEL RISPETTO DELLA NORMATIVA SULLA PROTEZIONE DATI PERSONALI; ;L.R. 11/185-PROVVIDENZE A FAVORE DI NEFROPATICI-PRESA IN CARICO ANNO 2017 E IMPEGNO DI SPESA.;11-10-2017;1438;0;33;1;Spese correnti;4;Trasferimenti correnti;2;Trasferimenti correnti a Famiglie;2;Interventi assistenziali;999;Altri assegni e sussidi assistenziali;11-10-2017;
1431;1;0;"1.998,36";"1.998,36";ORVEI COOPERATIVA SOCIALE ONLUS;ZAE1FFA799;Fatt.n. 04/PA del 06/10/2017 LAVORI DI MANUTENZIONE STRAORDINARIA PULIZIA CANALE SMALTIMENTO ACQUE BIANCHE STRADA SANTU PEDRU CIG ZAE1FFA799 DET. N. 127 DEL 11/09/2017;12-10-2017;3126;0;191;2;Spese in conto capitale;2;Investimenti fissi lordi e acquisto di terreni;1;Beni materiali;9;Beni immobili;14;Opere per la sistemazione del suolo;12-10-2017;
1433;1;0;"12.200,00";"12.200,00";MONGILI FRANCO;Z8E1E9C566;Fatt.n. 2PA del 03/10/2017;12-10-2017;3404;0;124;2;Spese in conto capitale;2;Investimenti fissi lordi e acquisto di terreni;1;Beni materiali;9;Beni immobili;10;Infrastrutture idrauliche;12-10-2017;
1434;1;0;"2.080,00";"2.080,00";COMUNE DI NULVI; ;Scuola Civica di Musica SONOS - Attivita' didattica periodo marzo / giugno 2017. Impegno di spesa;12-10-2017;722;0;210;1;Spese correnti;4;Trasferimenti correnti;1;Trasferimenti correnti a Amministrazioni Pubbliche;2;Trasferimenti correnti a Amministrazioni Locali;3;Trasferimenti correnti a Comuni;12-10-2017;
1435;1;0;"4.120,00";"4.120,00";COMUNE DI NULVI; ;Attivita' didattica CORSO MUSICA anno 2016/2017.;12-10-2017;722;0;369;1;Spese correnti;4;Trasferimenti correnti;1;Trasferimenti correnti a Amministrazioni Pubbliche;2;Trasferimenti correnti a Amministrazioni Locali;3;Trasferimenti correnti a Comuni;12-10-2017;
1437;1;0;"150,00";"150,00";DITTA MURGAS ALFREDO;X2A192E4F2;Fatt.n. 00007/PA del 11/10/2017 DETERMINA 307 DEL 02-10-2017 SISTEMAZIONE PERDITA IDRICA CIG ZAF201DD99;12-10-2017;255;0;90;1;Spese correnti;3;Acquisto di beni e servizi;2;Acquisto di servizi;9;Manutenzione ordinaria e riparazioni;8;Manutenzione ordinaria e riparazioni di beni immobili;12-10-2017;
1438;1;0;"6.344,00";"6.344,00";CAMBULA FABIO;ZC51BAED67;Fatt.n. E-22 del 06/10/2017 ONORARI E RIMBORSI SPESE PER STUDIO FATTIBILITA' ALTERNATIVE PROGETTUALI "INTERVENTI MESSA IN SICUREZZA IDRAULICA CENTRO ABITATO";12-10-2017;2098;0;100;2;Spese in conto capitale;2;Investimenti fissi lordi e acquisto di terreni;3;Beni immateriali;5;Incarichi professionali per la realizzazione di investimenti;1;Incarichi professionali per la realizzazione di investimenti;12-10-2017;
1439;1;0;"227,29";"227,29";ASSOCIAZIONE PRIMAVERA ONLUS;ZCF1E79B4E;Fatt.n. 80C/17/PA del 04/10/2017;13-10-2017;1349;0;99;1;Spese correnti;3;Acquisto di beni e servizi;2;Acquisto di servizi;15;Contratti di servizio pubblico;11;Contratti di servizio per la lotta al randagismo;13-10-2017;
1440;1;0;"1.223,62";"1.223,62";SERVIZIO ELETTRICO NAZIONALE - SERVIZIO DI MAGGIOR TUTE;ZF31E46592;Fatt.n. 907151111749412 del 10/10/2017;13-10-2017;118;4;86;1;Spese correnti;3;Acquisto di beni e servizi;2;Acquisto di servizi;5;Utenze e canoni;4;Energia elettrica;13-10-2017;
1441;1;0;"78,95";"78,95";SERVIZIO ELETTRICO NAZIONALE - SERVIZIO DI MAGGIOR TUTE;XA2192E4EF;Fatt.n. 907150481720015 del 10/10/2017;13-10-2017;118;4;82;1;Spese correnti;3;Acquisto di beni e servizi;2;Acquisto di servizi;5;Utenze e canoni;4;Energia elettrica;13-10-2017;
1442;1;0;"1.191,67";"1.191,67";E-DISTRIBUZIONE SPA;7104167012;Fatt.n. 0000917900005155 del 11/10/2017;13-10-2017;3368;0;216;2;Spese in conto capitale;2;Investimenti fissi lordi e acquisto di terreni;1;Beni materiali;9;Beni immobili;999;Beni immobili n.a.c.;13-10-2017;
1443;1;0;"172,97";"172,97";SERVIZIO ELETTRICO NAZIONALE - SERVIZIO DI MAGGIOR TUTE;Z6E1DD831E;Fatt.n. 907151471763432 del 10/10/2017;13-10-2017;716;4;61;1;Spese correnti;3;Acquisto di beni e servizi;2;Acquisto di servizi;5;Utenze e canoni;4;Energia elettrica;13-10-2017;
1444;1;0;"198,86";"198,86";ENEL ENERGIA;Z5C1DD8230;Fatt.n. 004801401663 del 11/10/2017;13-10-2017;824;0;60;1;Spese correnti;3;Acquisto di beni e servizi;2;Acquisto di servizi;5;Utenze e canoni;4;Energia elettrica;13-10-2017;
1445;1;0;"352,18";"352,18";SERVIZIO ELETTRICO NAZIONALE - SERVIZIO DI MAGGIOR TUTE;Z6E1DD831E;Fatt.n. 907151201731812 del 10/10/2017;13-10-2017;716;4;61;1;Spese correnti;3;Acquisto di beni e servizi;2;Acquisto di servizi;5;Utenze e canoni;4;Energia elettrica;13-10-2017;
1446;1;0;"216,94";"216,94";CONSAI SRL;ZD8204C8FB;REGOLAZIONE PREMIO POLIZZA RCT/O -03/2140552;16-10-2017;100;0;215;1;Spese correnti;10;Altre spese correnti;4;Premi di assicurazione;1;Premi di assicurazione contro i danni;3;Premi di assicurazione per responsabilità civile verso terzi;16-10-2017;
1447;1;0;"40,32";"40,32";ENEL ENERGIA;Z5E1D69123;Fatt.n. 004801402809 del 11/10/2017;16-10-2017;1012;4;42;1;Spese correnti;3;Acquisto di beni e servizi;2;Acquisto di servizi;5;Utenze e canoni;4;Energia elettrica;16-10-2017;
1448;1;0;"200,31";"200,31";ENEL ENERGIA;Z5E1D69123;Fatt.n. 004801401530 del 11/10/2017;16-10-2017;1012;4;42;1;Spese correnti;3;Acquisto di beni e servizi;2;Acquisto di servizi;5;Utenze e canoni;4;Energia elettrica;16-10-2017;
1449;1;0;"1.555,35";"1.555,35";ENEL ENERGIA;Z5E1D69123;Fatt.n. 004801401529 del 11/10/2017;16-10-2017;1012;4;42;1;Spese correnti;3;Acquisto di beni e servizi;2;Acquisto di servizi;5;Utenze e canoni;4;Energia elettrica;16-10-2017;
1450;1;0;"94,60";"94,60";ENEL ENERGIA;Z5E1D69123;Fatt.n. 004801401528 del 11/10/2017;16-10-2017;1012;4;42;1;Spese correnti;3;Acquisto di beni e servizi;2;Acquisto di servizi;5;Utenze e canoni;4;Energia elettrica;16-10-2017;
1451;1;0;"842,41";"842,41";ENEL ENERGIA;Z5E1D69123;Fatt.n. 004801401527 del 11/10/2017;16-10-2017;1012;4;42;1;Spese correnti;3;Acquisto di beni e servizi;2;Acquisto di servizi;5;Utenze e canoni;4;Energia elettrica;16-10-2017;
1452;1;0;"231,15";"231,15";OMESSO NOMINATIVO NEL RISPETTO DELLA NORMATIVA SULLA PROTEZIONE DATI PERSONALI; ;DELIBERA REGIONALE N. 70/15/2016 -FONDO REGIONALE PER LA NONAUTOSUFFICIENZA.PROROGA PIANI PERSONALIZZATI LEGGE N. 162/1998 ANNUALITA'2016/GESTIONE 2017.IMPEGNO DI SPESA .;16-10-2017;1420;2;27;1;Spese correnti;4;Trasferimenti correnti;2;Trasferimenti correnti a Famiglie;2;Interventi assistenziali;999;Altri assegni e sussidi assistenziali;16-10-2017;
1453;1;0;"250,00";"250,00";OMESSO NOMINATIVO NEL RISPETTO DELLA NORMATIVA SULLA PROTEZIONE DATI PERSONALI; ;SERVIZI ALLA PERSONA CONCESSIONE CONTRIBUTO ECONOMICO CONTINUATIVO.;16-10-2017;1434;0;194;1;Spese correnti;4;Trasferimenti correnti;2;Trasferimenti correnti a Famiglie;2;Interventi assistenziali;999;Altri assegni e sussidi assistenziali;16-10-2017;
1454;1;0;"200,00";"200,00";OMESSO NOMINATIVO NEL RISPETTO DELLA NORMATIVA SULLA PROTEZIONE DATI PERSONALI; ;SERVIZI ALLA PERSONA CONCESSIONE CONTRIBUTO ECONOMICO CONTINUATIVO.;16-10-2017;1434;0;194;1;Spese correnti;4;Trasferimenti correnti;2;Trasferimenti correnti a Famiglie;2;Interventi assistenziali;999;Altri assegni e sussidi assistenziali;16-10-2017;
1456;1;0;"170,54";"170,54";NRG ITALIA SPA;Z03146F47C;Fatt.n. 176431578 del 13/10/2017;17-10-2017;82;1;38;1;Spese correnti;3;Acquisto di beni e servizi;2;Acquisto di servizi;9;Manutenzione ordinaria e riparazioni;11;Manutenzione ordinaria e riparazioni di altri beni materiali;17-10-2017;
1457;1;0;"671,26";"671,26";NRG ITALIA SPA;Z651E12423;Fatt.n. 176431578 del 13/10/2017;17-10-2017;82;1;71;1;Spese correnti;3;Acquisto di beni e servizi;2;Acquisto di servizi;9;Manutenzione ordinaria e riparazioni;11;Manutenzione ordinaria e riparazioni di altri beni materiali;17-10-2017;
1458;1;0;"13.377,02";"13.377,02";COOP. SPES a r.l.;698931338C;Fatt.n. 51 PA del 30/09/2017 Fattura Cliente;18-10-2017;3516;0;323;2;Spese in conto capitale;5;Altre spese in conto capitale;99;Altre spese in conto capitale n.a.c.;99;Altre spese in conto capitale n.a.c.;999;Altre spese in conto capitale n.a.c.;18-10-2017;
1459;1;0;"801,78";"801,78";COOP. NUOVE IDEE;Z391D734B5;Fatt.n. FATTPA 99_17 del 10/10/2017;18-10-2017;1413;0;52;1;Spese correnti;3;Acquisto di beni e servizi;2;Acquisto di servizi;99;Altri servizi;999;Altri servizi diversi n.a.c.;18-10-2017;
1460;1;0;"6.903,66";"6.903,66";COOP. NUOVE IDEE; ;Fatt.n. FATTPA 98_17 del 10/10/2017;18-10-2017;1420;0;26;1;Spese correnti;3;Acquisto di beni e servizi;2;Acquisto di servizi;15;Contratti di servizio pubblico;9;Contratti di servizio di assistenza sociale domiciliare;18-10-2017;
1461;1;0;"411,84";"411,84";COOP. NUOVE IDEE; ;Fatt.n. FATTPA 101_17 del 10/10/2017;18-10-2017;1434;0;150;1;Spese correnti;4;Trasferimenti correnti;2;Trasferimenti correnti a Famiglie;2;Interventi assistenziali;999;Altri assegni e sussidi assistenziali;18-10-2017;
1463;1;0;"2.169,24";"2.169,24";CONSORZIO LA SORGENTE;ZO71D74C7D;Fatt.n. 3/205 del 12/10/2017 VENDITA;18-10-2017;1416;0;63;1;Spese correnti;3;Acquisto di beni e servizi;2;Acquisto di servizi;11;Prestazioni professionali e specialistiche;999;Altre prestazioni professionali e specialistiche n.a.c.;18-10-2017;
1464;1;0;"4.511,66";"4.511,66";CONSORZIO NETWORK ETICO;687819848C;Fatt.n. 2/1597 del 16/10/2017 SERV.SAD;18-10-2017;1412;0;3;1;Spese correnti;3;Acquisto di beni e servizi;2;Acquisto di servizi;15;Contratti di servizio pubblico;9;Contratti di servizio di assistenza sociale domiciliare;18-10-2017;
1465;1;0;"1.500,00";"1.500,00";SARDEGNA FOR YOU ASSOCIATION; ;IMPEGNO DI SPESA CON SARDEGNA FOR YOU PER ADESIONE INIZIATIVA ANCI E ORGANIZZAZIONE INCONTRO DI SENSIBILIZZAZIONE.;18-10-2017;1416;0;212;1;Spese correnti;3;Acquisto di beni e servizi;2;Acquisto di servizi;11;Prestazioni professionali e specialistiche;999;Altre prestazioni professionali e specialistiche n.a.c.;18-10-2017;
1466;1;0;"102,24";"102,24";OMESSO NOMINATIVO NEL RISPETTO DELLA NORMATIVA SULLA PROTEZIONE DATI PERSONALI; ;DELIBERA REGIONALE N. 70/15/2016 -FONDO REGIONALE PER LA NONAUTOSUFFICIENZA.PROROGA PIANI PERSONALIZZATI LEGGE N. 162/1998 ANNUALITA'2016/GESTIONE 2017.IMPEGNO DI SPESA .;18-10-2017;1420;2;27;1;Spese correnti;4;Trasferimenti correnti;2;Trasferimenti correnti a Famiglie;2;Interventi assistenziali;999;Altri assegni e sussidi assistenziali;18-10-2017;
1467;1;0;"350,74";"350,74";OMESSO NOMINATIVO NEL RISPETTO DELLA NORMATIVA SULLA PROTEZIONE DATI PERSONALI; ;DELIBERA REGIONALE N. 70/15/2016 -FONDO REGIONALE PER LA NONAUTOSUFFICIENZA.PROROGA PIANI PERSONALIZZATI LEGGE N. 162/1998 ANNUALITA'2016/GESTIONE 2017.IMPEGNO DI SPESA .;18-10-2017;1420;2;27;1;Spese correnti;4;Trasferimenti correnti;2;Trasferimenti correnti a Famiglie;2;Interventi assistenziali;999;Altri assegni e sussidi assistenziali;18-10-2017;
1468;1;0;"615,64";"615,64";SECHI ANNA RESP. SERV. FINANZ.TRIBUTI ECONOMATO; ;LIQUIDAZIONE CARTELLA AGENZIA DELLE ENTRATE MANCATO ACCATASTAMENTO IMMOBILE COMUNALE CAMPO SPORTIVO. LIQ. N. 466.;19-10-2017;82;1;0;1;Spese correnti;3;Acquisto di beni e servizi;2;Acquisto di servizi;9;Manutenzione ordinaria e riparazioni;8;Manutenzione ordinaria e riparazioni di beni immobili;19-10-2017;
1496;1;0;"1.445,90";"1.445,90";SEGESTA GESTIONI SRL;Z4C1D4ABDB;Fatt.n. X-1130 del 06/10/2017;19-10-2017;1412;0;36;1;Spese correnti;3;Acquisto di beni e servizi;2;Acquisto di servizi;15;Contratti di servizio pubblico;9;Contratti di servizio di assistenza sociale domiciliare;19-10-2017;
1497;1;0;"238,56";"238,56";SERVIZIO ELETTRICO NAZIONALE - SERVIZIO DI MAGGIOR TUTE;ZF71E5319B;Fatt.n. 907151470732315 del 10/10/2017;19-10-2017;598;4;92;1;Spese correnti;3;Acquisto di beni e servizi;2;Acquisto di servizi;5;Utenze e canoni;4;Energia elettrica;19-10-2017;
1498;1;0;"235,52";"235,52";SERVIZIO ELETTRICO NAZIONALE - SERVIZIO DI MAGGIOR TUTE;ZF71E5319B;Fatt.n. 907151470733517 del 10/10/2017;19-10-2017;618;4;93;1;Spese correnti;3;Acquisto di beni e servizi;2;Acquisto di servizi;5;Utenze e canoni;4;Energia elettrica;19-10-2017;
1499;1;0;"900,00";"900,00";A.S.D. Gruppo Motori TULA; ;"Programma di assegnazione contributi alle Associazioni locali e Comitati per l'organizzazione delle manifestazioni di carattere sociale, culturale, religioso e sportivo - Anno 2017";19-10-2017;760;0;147;1;Spese correnti;4;Trasferimenti correnti;4;Trasferimenti correnti a Istituzioni Sociali Private;1;Trasferimenti correnti a Istituzioni Sociali Private;1;Trasferimenti correnti a Istituzioni Sociali Private;19-10-2017;
1500;1;0;"300,00";"300,00";OMESSO NOMINATIVO NEL RISPETTO DELLA NORMATIVA SULLA PROTEZIONE DATI PERSONALI; ;SERVIZI ALLA PERSONA  - CONCESSIONE CONTRIBUTO ECONOMICO STRAORDINARIO.;23-10-2017;1434;0;219;1;Spese correnti;4;Trasferimenti correnti;2;Trasferimenti correnti a Famiglie;2;Interventi assistenziali;999;Altri assegni e sussidi assistenziali;23-10-2017;
1501;1;0;"1.217,96";"1.217,96";DESSENA MARIA ANTONINA; ;APPROVAZIONE BANDO  PER L'EROGAZIONE DI CONTRIBUTI A BENEFICIO DI PRIVATI PER INTERVENTI DI RESTAURO MURATURE ESTERNE - COPERTURE CON RIQUALIFICAZIONE ENERGETICA- INSTALLAZIONE SOLARE TERMICO;23-10-2017;1820;0;104;1;Spese correnti;4;Trasferimenti correnti;2;Trasferimenti correnti a Famiglie;5;Altri trasferimenti a famiglie;999;Altri trasferimenti a famiglie n.a.c.;23-10-2017;
1503;1;0;"2,00";"116,49";POSTE ITALIANE Spa;Z8D1F0ACEA;Fatt.n. 8717324978 del 23/10/2017 Fattura Elettronica relativa all'Identificativo Rendiconto 2094216183;25-10-2017;118;2;127;1;Spese correnti;3;Acquisto di beni e servizi;2;Acquisto di servizi;16;Servizi amministrativi;2;Spese postali;25-10-2017;
1503;2;0;"114,49";"116,49";POSTE ITALIANE Spa;Z8D1F0ACEA;Fatt.n. 8717324978 del 23/10/2017 Fattura Elettronica relativa all'Identificativo Rendiconto 2094216183;25-10-2017;118;2;127;1;Spese correnti;3;Acquisto di beni e servizi;2;Acquisto di servizi;16;Servizi amministrativi;2;Spese postali;25-10-2017;
1504;1;0;"400,00";"400,00";OMESSO NOMINATIVO NEL RISPETTO DELLA NORMATIVA SULLA PROTEZIONE DATI PERSONALI; ;IMPEGNO DI SPESA PER L.R. N. 18/2016- REDDITO D'INCLUSIONE SOCIALE-AGGIUDU TORRAU-AVVIO ATTIVITA'.;25-10-2017;1435;0;148;1;Spese correnti;3;Acquisto di beni e servizi;2;Acquisto di servizi;99;Altri servizi;999;Altri servizi diversi n.a.c.;25-10-2017;
1505;1;0;"180,00";"180,00";OMESSO NOMINATIVO NEL RISPETTO DELLA NORMATIVA SULLA PROTEZIONE DATI PERSONALI; ;IMPEGNO DI SPESA PER L.R. N. 18/2016- REDDITO D'INCLUSIONE SOCIALE-AGGIUDU TORRAU-AVVIO ATTIVITA'.;25-10-2017;1435;0;148;1;Spese correnti;3;Acquisto di beni e servizi;2;Acquisto di servizi;99;Altri servizi;999;Altri servizi diversi n.a.c.;25-10-2017;
1506;1;0;"400,00";"400,00";OMESSO NOMINATIVO NEL RISPETTO DELLA NORMATIVA SULLA PROTEZIONE DATI PERSONALI; ;IMPEGNO DI SPESA PER L.R. N. 18/2016- REDDITO D'INCLUSIONE SOCIALE-AGGIUDU TORRAU-AVVIO ATTIVITA'.;25-10-2017;1435;0;148;1;Spese correnti;3;Acquisto di beni e servizi;2;Acquisto di servizi;99;Altri servizi;999;Altri servizi diversi n.a.c.;25-10-2017;
1507;1;0;"200,00";"200,00";OMESSO NOMINATIVO NEL RISPETTO DELLA NORMATIVA SULLA PROTEZIONE DATI PERSONALI; ;IMPEGNO DI SPESA PER L.R. N. 18/2016- REDDITO D'INCLUSIONE SOCIALE-AGGIUDU TORRAU-AVVIO ATTIVITA'.;25-10-2017;1435;0;148;1;Spese correnti;3;Acquisto di beni e servizi;2;Acquisto di servizi;99;Altri servizi;999;Altri servizi diversi n.a.c.;25-10-2017;
1508;1;0;"400,00";"400,00";OMESSO NOMINATIVO NEL RISPETTO DELLA NORMATIVA SULLA PROTEZIONE DATI PERSONALI; ;IMPEGNO DI SPESA PER L.R. N. 18/2016- REDDITO D'INCLUSIONE SOCIALE-AGGIUDU TORRAU-AVVIO ATTIVITA'.;25-10-2017;1435;0;148;1;Spese correnti;3;Acquisto di beni e servizi;2;Acquisto di servizi;99;Altri servizi;999;Altri servizi diversi n.a.c.;25-10-2017;
1509;1;0;"200,00";"200,00";OMESSO NOMINATIVO NEL RISPETTO DELLA NORMATIVA SULLA PROTEZIONE DATI PERSONALI; ;IMPEGNO DI SPESA PER L.R. N. 18/2016- REDDITO D'INCLUSIONE SOCIALE-AGGIUDU TORRAU-AVVIO ATTIVITA'.;25-10-2017;1435;0;148;1;Spese correnti;3;Acquisto di beni e servizi;2;Acquisto di servizi;99;Altri servizi;999;Altri servizi diversi n.a.c.;25-10-2017;
1510;1;0;"200,00";"200,00";OMESSO NOMINATIVO NEL RISPETTO DELLA NORMATIVA SULLA PROTEZIONE DATI PERSONALI; ;IMPEGNO DI SPESA PER L.R. N. 18/2016- REDDITO D'INCLUSIONE SOCIALE-AGGIUDU TORRAU-AVVIO ATTIVITA'.;25-10-2017;1435;0;148;1;Spese correnti;3;Acquisto di beni e servizi;2;Acquisto di servizi;99;Altri servizi;999;Altri servizi diversi n.a.c.;25-10-2017;
1511;1;0;"300,00";"300,00";OMESSO NOMINATIVO NEL RISPETTO DELLA NORMATIVA SULLA PROTEZIONE DATI PERSONALI; ;IMPEGNO DI SPESA PER L.R. N. 18/2016- REDDITO D'INCLUSIONE SOCIALE-AGGIUDU TORRAU-AVVIO ATTIVITA'.;25-10-2017;1435;0;148;1;Spese correnti;3;Acquisto di beni e servizi;2;Acquisto di servizi;99;Altri servizi;999;Altri servizi diversi n.a.c.;25-10-2017;
1512;1;0;"200,00";"200,00";OMESSO NOMINATIVO NEL RISPETTO DELLA NORMATIVA SULLA PROTEZIONE DATI PERSONALI; ;IMPEGNO DI SPESA PER L.R. N. 18/2016- REDDITO D'INCLUSIONE SOCIALE-AGGIUDU TORRAU-AVVIO ATTIVITA'.;25-10-2017;1435;0;148;1;Spese correnti;3;Acquisto di beni e servizi;2;Acquisto di servizi;99;Altri servizi;999;Altri servizi diversi n.a.c.;25-10-2017;
1513;1;0;"200,00";"200,00";OMESSO NOMINATIVO NEL RISPETTO DELLA NORMATIVA SULLA PROTEZIONE DATI PERSONALI; ;IMPEGNO DI SPESA PER L.R. N. 18/2016- REDDITO D'INCLUSIONE SOCIALE-AGGIUDU TORRAU-AVVIO ATTIVITA'.;25-10-2017;1435;0;148;1;Spese correnti;3;Acquisto di beni e servizi;2;Acquisto di servizi;99;Altri servizi;999;Altri servizi diversi n.a.c.;25-10-2017;
1514;1;0;"300,00";"300,00";OMESSO NOMINATIVO NEL RISPETTO DELLA NORMATIVA SULLA PROTEZIONE DATI PERSONALI; ;IMPEGNO DI SPESA PER L.R. N. 18/2016- REDDITO D'INCLUSIONE SOCIALE-AGGIUDU TORRAU-AVVIO ATTIVITA'.;25-10-2017;1435;0;148;1;Spese correnti;3;Acquisto di beni e servizi;2;Acquisto di servizi;99;Altri servizi;999;Altri servizi diversi n.a.c.;25-10-2017;
1515;1;0;"1.525,00";"1.525,00";BECCA GIOVANNI;ZBC1D4E67A;Fatt.n. FATTPA 7_17 del 20/10/2017;25-10-2017;255;0;34;1;Spese correnti;3;Acquisto di beni e servizi;2;Acquisto di servizi;9;Manutenzione ordinaria e riparazioni;8;Manutenzione ordinaria e riparazioni di beni immobili;25-10-2017;
1516;1;0;"2.874,56";"2.874,56";BERNER S.P.A.;ZCE1FFB520;Fatt.n. 1480530275 del 16/10/2017;25-10-2017;3781;0;192;2;Spese in conto capitale;2;Investimenti fissi lordi e acquisto di terreni;1;Beni materiali;9;Beni immobili;15;Cimiteri;25-10-2017;
1517;1;0;"217,67";"217,67";BERNER S.P.A.;ZA11FFB5BE;Fatt.n. 1480530276 del 16/10/2017;25-10-2017;1422;0;193;1;Spese correnti;3;Acquisto di beni e servizi;1;Acquisto di beni;2;Altri beni di consumo;999;Altri beni e materiali di consumo n.a.c.;25-10-2017;
1518;1;0;"4.752,63";"4.752,63";LORINI MASSIMO;Z271C5DF28;Fatt.n. FATTPA 4_17 del 21/10/2017;25-10-2017;2098;0;266;2;Spese in conto capitale;2;Investimenti fissi lordi e acquisto di terreni;3;Beni immateriali;5;Incarichi professionali per la realizzazione di investimenti;1;Incarichi professionali per la realizzazione di investimenti;25-10-2017;
1519;1;0;"24.860,00";"24.860,00";MANCA FRANCO;6277456092;Fatt.n. 25/PA del 20/10/2017;25-10-2017;2040;0;184;2;Spese in conto capitale;2;Investimenti fissi lordi e acquisto di terreni;1;Beni materiali;9;Beni immobili;14;Opere per la sistemazione del suolo;25-10-2017;
1520;1;0;"102,00";"102,00";OMESSO NOMINATIVO NEL RISPETTO DELLA NORMATIVA SULLA PROTEZIONE DATI PERSONALI; ;"IMPEGNO DI SPESA PER L.R. N.9/2014, ART 1- RICONOSCIMENTO BENEFICI ANNO 2017.";25-10-2017;1438;0;140;1;Spese correnti;4;Trasferimenti correnti;2;Trasferimenti correnti a Famiglie;2;Interventi assistenziali;999;Altri assegni e sussidi assistenziali;25-10-2017;
1521;1;0;"1.400,00";"1.400,00";BECCA ANTONELLA; ;"Programma di assegnazione contributi alle Associazioni locali e Comitati per l'organizzazione delle manifestazioni di carattere sociale, culturale, religioso e sportivo - Anno 2017";25-10-2017;760;0;147;1;Spese correnti;4;Trasferimenti correnti;4;Trasferimenti correnti a Istituzioni Sociali Private;1;Trasferimenti correnti a Istituzioni Sociali Private;1;Trasferimenti correnti a Istituzioni Sociali Private;25-10-2017;
1522;1;0;"417,84";"417,84";L'ARCOBALENO di Muggianu Rosanna;ZCC1EAEC90;Fatt.n. 445B del 11/10/2017;25-10-2017;714;0;112;1;Spese correnti;3;Acquisto di beni e servizi;1;Acquisto di beni;1;"Giornali, riviste e pubblicazioni";2;Pubblicazioni;25-10-2017;
1523;1;0;"41,64";"1.386,62";MC LINK SPA;Z441C42009;Fatt.n. 610002250 del 12/10/2017 FATTURA DI VENDITA SERVIZI;25-10-2017;118;3;39;1;Spese correnti;3;Acquisto di beni e servizi;2;Acquisto di servizi;5;Utenze e canoni;1;Telefonia fissa;25-10-2017;
1523;2;0;"48,80";"1.386,62";MC LINK SPA;Z441C42009;Fatt.n. 610002391 del 18/10/2017 FATTURA DI VENDITA SERVIZI;25-10-2017;118;3;39;1;Spese correnti;3;Acquisto di beni e servizi;2;Acquisto di servizi;5;Utenze e canoni;1;Telefonia fissa;25-10-2017;
1523;3;0;"154,26";"1.386,62";MC LINK SPA;Z441C42009;Fatt.n. 610002396 del 18/10/2017 FATTURA DI VENDITA SERVIZI;25-10-2017;118;3;39;1;Spese correnti;3;Acquisto di beni e servizi;2;Acquisto di servizi;5;Utenze e canoni;1;Telefonia fissa;25-10-2017;
1523;4;0;"156,16";"1.386,62";MC LINK SPA;Z441C42009;Fatt.n. 610002395 del 18/10/2017 FATTURA DI VENDITA SERVIZI;25-10-2017;118;3;39;1;Spese correnti;3;Acquisto di beni e servizi;2;Acquisto di servizi;5;Utenze e canoni;1;Telefonia fissa;25-10-2017;
1523;5;0;"204,96";"1.386,62";MC LINK SPA;Z441C42009;Fatt.n. 610002394 del 18/10/2017 FATTURA DI VENDITA SERVIZI;25-10-2017;118;3;39;1;Spese correnti;3;Acquisto di beni e servizi;2;Acquisto di servizi;5;Utenze e canoni;1;Telefonia fissa;25-10-2017;
1523;6;0;"780,80";"1.386,62";MC LINK SPA;Z441C42009;Fatt.n. 610002393 del 18/10/2017 FATTURA DI VENDITA SERVIZI;25-10-2017;118;3;39;1;Spese correnti;3;Acquisto di beni e servizi;2;Acquisto di servizi;5;Utenze e canoni;1;Telefonia fissa;25-10-2017;
1524;1;0;"124,86";"124,86";MC LINK SPA;Z441C42009;Fatt.n. 610002392 del 18/10/2017 FATTURA DI VENDITA SERVIZI;25-10-2017;118;3;39;1;Spese correnti;3;Acquisto di beni e servizi;2;Acquisto di servizi;5;Utenze e canoni;1;Telefonia fissa;25-10-2017;
1525;1;0;"411,94";"411,94";MC LINK SPA;Z371DDA551;Fatt.n. 610002392 del 18/10/2017 FATTURA DI VENDITA SERVIZI;25-10-2017;118;3;301;1;Spese correnti;3;Acquisto di beni e servizi;2;Acquisto di servizi;5;Utenze e canoni;1;Telefonia fissa;25-10-2017;
